{"text_format":"1","workbook":"xlsx","n_sheets":6,"sheets":["K3VL-Mobile","M spec","K3VL-Industrial J","I spec","translation","history"],"not_rendered":{"charts":0,"images":5,"macros":1,"external_links":0,"defined_names":105,"comments":0,"pivot_tables":0},"unopened":[],"bounds":{"document_bytes":16777216,"sheet_cells":100000,"rows_first":2000,"rows_last":500,"rows_between":2000,"halvings":0,"cell_chars":16384,"cell_head_chars":4096},"cells_cut":0,"cells_raw":0,"read":"whole","date_system":"1900"}

{"sheet":"K3VL-Mobile","index":0,"n_rows":73,"n_cols":51,"rows_kept":73,"cut":false,"hidden":false,"merged":[[30,22,31,22],[32,7,33,12],[30,7,31,12],[32,13,33,18],[34,19,35,19],[34,21,35,21],[34,20,35,20],[34,22,35,22],[34,23,35,23],[26,1,28,5],[26,6,28,6],[26,19,28,19],[26,21,28,21],[26,20,28,20],[26,22,28,22],[26,23,28,23],[26,24,28,24],[27,7,27,18],[28,7,28,18],[49,1,76,12],[49,13,76,24],[36,7,36,12],[39,7,39,18],[41,7,41,18],[40,7,40,18],[42,7,42,18],[40,1,40,5],[39,1,39,5],[43,1,43,5],[43,7,43,18],[40,19,40,24],[43,23,43,24],[44,23,44,24],[37,13,37,18],[38,13,38,18],[44,7,44,18],[38,19,38,21],[41,19,41,24],[42,19,42,24],[54,27,57,31],[12,22,13,24],[12,20,13,21],[42,1,42,5],[29,1,29,5],[30,1,31,5],[32,1,33,5],[32,19,33,19],[36,1,36,5],[37,1,37,5],[41,1,41,5],[29,13,29,18],[13,9,14,9],[13,10,14,10],[13,7,14,7],[13,11,14,11],[13,12,14,12],[16,7,16,18],[13,13,14,13],[48,1,48,12],[48,13,48,24],[13,16,14,16],[12,1,14,2],[13,5,14,5],[69,46,72,50],[20,46,20,50],[24,49,24,50],[25,49,25,50],[26,49,26,50],[27,49,27,50],[28,49,28,50],[29,49,29,50],[22,47,22,48],[22,49,22,50],[21,47,21,48],[21,49,21,50],[59,46,59,47],[60,46,60,50],[61,48,61,49],[62,48,62,49],[63,48,63,49],[64,48,64,49],[58,46,58,50],[34,24,35,24],[38,22,38,23],[59,48,59,49],[65,46,68,50],[26,47,26,48],[61,46,61,47],[62,46,62,47],[63,46,63,47],[64,46,64,47],[58,32,68,32],[30,45,32,45],[58,45,68,45],[33,45,45,45],[30,32,32,32],[54,45,57,45],[51,45,53,45],[54,32,57,32],[30,33,30,38],[30,39,30,44],[46,46,50,50],[51,46,53,50],[54,46,57,50],[46,32,50,32],[18,27,19,31],[19,20,24,24],[17,20,18,24],[17,19,24,19],[33,27,45,31],[30,27,32,31],[32,20,33,20],[30,20,31,20],[38,1,38,5],[30,19,31,19],[30,13,31,18],[34,1,35,5],[44,1,44,5],[45,1,45,5],[34,7,35,12],[34,13,35,18],[38,7,38,12],[37,7,37,12],[36,13,36,18],[26,13,26,18],[25,7,25,18],[26,7,26,12],[29,7,29,12],[45,7,45,18],[1,46,1,50],[2,46,2,50],[3,46,5,50],[6,46,6,50],[7,46,17,50],[18,46,19,50],[30,46,32,50],[33,46,45,50],[1,33,1,44],[27,47,27,48],[28,47,28,48],[24,47,24,48],[23,46,23,50],[7,45,17,45],[18,32,19,32],[29,47,29,48],[25,47,25,48],[46,45,50,45],[51,32,53,32],[33,39,33,44],[33,33,33,38],[33,32,45,32],[16,1,16,5],[16,20,16,24],[17,1,24,5],[17,6,24,6],[25,1,25,5],[18,8,18,10],[19,8,19,10],[20,8,20,10],[21,8,21,10],[22,8,22,10],[23,8,23,10],[17,11,17,12],[17,13,17,14],[17,15,17,16],[17,17,17,18],[24,8,24,10],[11,1,11,9],[17,8,17,10],[13,8,14,8],[13,3,14,3],[13,4,14,4],[2,27,2,31],[3,27,5,31],[13,17,14,17],[13,18,14,18],[3,1,4,10],[3,11,4,13],[6,11,7,13],[9,11,10,13],[3,14,4,17],[6,14,7,17],[9,14,10,17],[6,18,7,20],[9,18,10,20],[5,1,7,10],[8,1,10,10],[1,6,2,9],[13,6,14,6],[13,14,14,14],[13,15,14,15],[69,45,72,45],[69,27,72,31],[69,32,72,32],[6,27,6,31],[1,21,1,23],[25,20,25,23],[1,27,1,31],[51,27,53,31],[3,32,5,32],[3,45,5,45],[39,19,39,24],[7,32,17,32],[18,45,19,45],[7,27,17,31],[20,27,29,31],[20,32,29,32],[20,45,29,45],[32,22,33,22],[58,27,68,31],[46,27,50,31],[3,21,4,24],[6,21,7,24],[9,21,10,24],[3,18,4,20]]}
[]
[null,null,null,null,null,null,{"$f":"IF(AND(U26<>\"\",U27<>\"\",U30<>\"\",U31<>\"\",U33<>\"\",U37<>\"\",X37<>\"\",X27<>\"\",X30<>\"\",X31<>\"\",X32<>\"\",X33<>\"\",X34<>\"\",T41<>\"\",X43<>\"\",X44<>\"\",U43<>\"\",U44<>\"\"),\"\",translation!E16)","v":"All required fields are not filled in."},null,null,null,null,null,null,null,null,null,null,null,null,null,null,"Language : English",null,null,"Rev: 1",null,null,{"$f":"translation!E90","v":"Items"},null,null,null,null,{"$f":"translation!E91","v":"No."},{"$f":"translation!E92","v":"Standard Specifications"},null,null,null,null,null,null,null,null,null,null,null,{"$f":"translation!E93","v":"Code"},{"$f":"translation!E94","v":"Note"}]
[null,null,null,null,null,null,null,null,null,null,null,null,null,null,null,null,null,null,null,null,null,null,null,null,null,null,null,{"$f":"translation!E96","v":"Design Series"},null,null,null,null,3,{"$f":"IF(T18=28,\"/C \",\"/B \")","v":"/B "},null,null,null,null,null,null,null,null,null,null,{"$f":"IF('M spec'!K55=\"★\",\"★\",IF('M spec'!K55=\"▲\",\"▲\",IF('M spec'!K55=\"◆\",\"◆\",\"\")))","v":""},{"$f":"IF(T18=28,\"/C\",\"/B\")","v":"/B"}]
[null,{"$f":"translation!E3","v":"K3VL series for Mobiles Inquiry Form"},null,null,null,null,null,null,null,null,null,{"$f":"translation!E8","v":"Fill-in Date ："},null,null,null,null,null,null,{"$f":"translation!E9","v":"Author ："},null,null,null,null,null,null,null,null,{"$f":"translation!E97","v":"Hydraulic Fluid Type"},null,null,null,null,4,"- ",{"$f":"translation!E115","v":" Mineral Oil (Orings: Nitrile rubber, Shaft Seal: Fluoro rubber)"},null,null,null,null,null,null,null,null,null,{"$f":"IF('M spec'!K56=\"★\",\"★\",IF('M spec'!K56=\"▲\",\"▲\",IF('M spec'!K56=\"◆\",\"◆\",\"\")))","v":""},"-"]
[null,null,null,null,null,null,null,null,null,null,null,null,null,null,null,null,null,null,null,null,null,null,null,null,null,null,null,null,null,null,null,null,null,"V ",{"$f":"translation!E116","v":" Viton Seal Throughout (Orings: Fluoro rubber, Shaft Seal: Fluoro rubber)"},null,null,null,null,null,null,null,null,null,{"$f":"IF('M spec'!K57=\"★\",\"★\",IF('M spec'!K57=\"▲\",\"▲\",IF('M spec'!K57=\"◆\",\"◆\",\"\")))","v":""}]
[null,{"$f":"translation!E5","v":"Please select an item from a drop down list in a cell with thick red borders. Options with ★ is that please contact Kawasaki, options with ◆ is available in Europe/US."},null,null,null,null,null,null,null,null,null,null,null,null,null,null,null,null,null,null,null,null,null,null,null,null,null,null,null,null,null,null,null,"W ",{"$f":"translation!E117","v":" Water Glycol (Orings: Nitrile rubber, Shaft Seal: Nitrile rubber)"},null,null,null,null,null,null,null,null,null,{"$f":"IF('M spec'!K58=\"★\",\"★\",IF('M spec'!K58=\"▲\",\"▲\",IF('M spec'!K58=\"◆\",\"◆\",\"\")))","v":""}]
[null,null,null,null,null,null,null,null,null,null,null,{"$f":"translation!E10","v":"Application ："},null,null,null,null,null,null,{"$f":"translation!E11","v":"Machine M/C ："},null,null,null,null,null,null,null,null,{"$f":"translation!E98","v":"Series Type Code"},null,null,null,null,5,"1 ",{"$f":"translation!E118","v":" Standard Type"},null,null,null,null,null,null,null,null,null,{"$f":"IF('M spec'!K59=\"★\",\"★\",IF('M spec'!K59=\"▲\",\"▲\",IF('M spec'!K59=\"◆\",\"◆\",\"\")))","v":""},{"$f":"'M spec'!B59","v":1}]
[null,null,null,null,null,null,null,null,null,null,null,null,null,null,null,null,null,null,null,null,null,null,null,null,null,null,null,{"$f":"translation!E99","v":"Through Drive and Porting"},null,null,null,null,6," 0 ",{"$f":"translation!E119","v":" w/o Through Drive, Side Ported (Only Clockwise)"},null,null,null,null,null,null,null,null,null,{"$f":"IF('M spec'!K60=\"★\",\"★\",IF('M spec'!K60=\"▲\",\"▲\",IF('M spec'!K60=\"◆\",\"◆\",\"\")))","v":""},"A"]
[null,{"$f":"translation!E7","v":"If the cell's color is red, the request is out of Kawasaki standard specifications range. Even if the request is out of Kawasaki specification range, please describe the detail on the note and consult with Kawasaki."},null,null,null,null,null,null,null,null,null,null,null,null,null,null,null,null,null,null,null,null,null,null,null,null,null,null,null,null,null,null,null,"A ",{"$f":"translation!E120","v":" SAE-A 2 bolt Through Drive, Side Ported"},null,null,null,null,null,null,null,null,null,{"$f":"IF('M spec'!K61=\"★\",\"★\",IF('M spec'!K61=\"▲\",\"▲\",IF('M spec'!K61=\"◆\",\"◆\",\"\")))","v":""}]
[null,null,null,null,null,null,null,null,null,null,null,{"$f":"translation!E12","v":"Customer ："},null,null,null,null,null,null,{"$f":"translation!E13","v":"Pump Model ："},null,null,{"$f":"D14&E14&F14&G14&H14&I14&J14&K14&L14&M14&N14&O14&P14&Q14&R14&S14","v":"K3VL80/B-1ARKM-L0"},null,null,null,null,null,null,null,null,null,null,null,"B ",{"$f":"translation!E121","v":" SAE-B 2 bolt Through Drive, Side Ported"},null,null,null,null,null,null,null,null,null,{"$f":"IF('M spec'!K62=\"★\",\"★\",IF('M spec'!K62=\"▲\",\"▲\",IF('M spec'!K62=\"◆\",\"◆\",\"\")))","v":""}]
[null,null,null,null,null,null,null,null,null,null,null,null,null,null,null,null,null,null,null,null,null,null,null,null,null,null,null,null,null,null,null,null,null,"BB ",{"$f":"translation!E122","v":" SAE-BB 2 bolt Through Drive, Side Ported"},null,null,null,null,null,null,null,null,null,{"$f":"IF('M spec'!K63=\"★\",\"★\",IF('M spec'!K63=\"▲\",\"▲\",IF('M spec'!K63=\"◆\",\"◆\",\"\")))","v":""}]
[null,{"$f":"translation!E14","v":"Swash Plate Type Axial Piston Pump"},null,null,null,null,null,null,null,null,null,null,null,null,null,null,null,null,null,null,null,null,null,null,null,null,null,null,null,null,null,null,null,"C ",{"$f":"translation!E123","v":" SAE-C 2 bolt Through Drive, Side Ported"},null,null,null,null,null,null,null,null,null,{"$f":"IF('M spec'!K64=\"★\",\"★\",IF('M spec'!K64=\"▲\",\"▲\",IF('M spec'!K64=\"◆\",\"◆\",\"\")))","v":""}]
[null,{"$f":"translation!E15","v":"Model Code"},null,1,2,3,4,5,6,7,8,9,null,10,11,12,13,14,15,null,{"$f":"translation!E222","v":"Confirmation by KPM (UK):"},null,null,null,null,null,null,null,null,null,null,null,null,"C4 ",{"$f":"translation!E124","v":" SAE-C 4 bolt Through Drive, Side Ported"},null,null,null,null,null,null,null,null,null,{"$f":"IF('M spec'!K65=\"★\",\"★\",IF('M spec'!K65=\"▲\",\"▲\",IF('M spec'!K65=\"◆\",\"◆\",\"\")))","v":""}]
[null,null,null,"K3VL",{"$f":"T18","v":80},{"$f":"AT3","v":"/B"},{"$f":"AT4","v":"-"},{"$f":"AT7","v":1},{"$f":"AT8","v":"A"},{"$f":"AT19","v":"R"},{"$f":"AT21","v":"K"},{"$f":"AT31","v":"M"},"-",{"$f":"AT34","v":"L0"},{"$f":"IF(AT47=\"Blank\",\"\",AT47)","v":""},{"$f":"IF(AT52=\"Blank\",\"\",AT52)","v":""},{"$f":"IF(AT55=\"Blank\",\"\",AT55)","v":""},{"$f":"IF(AT59=\"Blank\",\"\",AT59)","v":""},{"$f":"IF(AT70=\"Blank\",\"\",AT70)","v":""},null,null,null,null,null,null,null,null,null,null,null,null,null,null,"CC ",{"$f":"translation!E125","v":" SAE-CC 2 bolt Through Drive, Side Ported"},null,null,null,null,null,null,null,null,null,{"$f":"IF('M spec'!K66=\"★\",\"★\",IF('M spec'!K66=\"▲\",\"▲\",IF('M spec'!K66=\"◆\",\"◆\",\"\")))","v":""}]
[null,null,null,null,null,null,null,null,null,null,null,null,null,null,null,null,null,null,null,null,null,null,null,null,null,null,null,null,null,null,null,null,null,"D ",{"$f":"translation!E126","v":" SAE-D 4 bolt Through Drive, Side Ported"},null,null,null,null,null,null,null,null,null,{"$f":"IF('M spec'!K67=\"★\",\"★\",IF('M spec'!K67=\"▲\",\"▲\",IF('M spec'!K67=\"◆\",\"◆\",\"\")))","v":""}]
[null,null,null,null,null,null,null,null,null,null,null,null,null,null,null,null,null,null,null,null,null,null,null,null,null,null,null,null,null,null,null,null,null,"E ",{"$f":"translation!E127","v":" SAE-E 4 bolt Through Drive, Side Ported"},null,null,null,null,null,null,null,null,null,{"$f":"IF('M spec'!K68=\"★\",\"★\",IF('M spec'!K68=\"▲\",\"▲\",IF('M spec'!K68=\"◆\",\"◆\",\"\")))","v":""}]
[null,{"$f":"translation!E17","v":"Items"},null,null,null,null,{"$f":"translation!E91","v":"No."},{"$f":"translation!E33","v":"Standard Specifications"},null,null,null,null,null,null,null,null,null,null,null,{"$f":"translation!E93","v":"Code"},{"$f":"translation!E94","v":"Note"},null,null,null,null,null,null,null,null,null,null,null,null,"N ",{"$f":"translation!E128","v":" w/ Through Drive Shaft, w/o Coupling, Closed w/ Steel Cover, Side Ported"},null,null,null,null,null,null,null,null,null,{"$f":"IF('M spec'!K69=\"★\",\"★\",IF('M spec'!K69=\"▲\",\"▲\",IF('M spec'!K69=\"◆\",\"◆\",\"\")))","v":""}]
[null,{"$f":"translation!E95","v":"Pump Size"},null,null,null,null,2,null,{"$f":"translation!E109","v":"Max displacement"},null,null,{"$f":"translation!E110","v":"Rated Pressure"},null,{"$f":"translation!E111","v":"Peak Pressure"},null,{"$f":"translation!E112","v":"S-P Max Speed"},null,{"$f":"translation!E113","v":"Max Speed"},null,80,null,null,null,null,null,null,null,null,null,null,null,null,null,"R ",{"$f":"translation!E129","v":" w/o Through Drive, Rear Ported"},null,null,null,null,null,null,null,null,null,{"$f":"IF('M spec'!K70=\"★\",\"★\",IF('M spec'!K70=\"▲\",\"▲\",IF('M spec'!K70=\"◆\",\"◆\",\"\")))","v":""}]
[null,null,null,null,null,null,null," 28 "," 28 cm3",null,null," 32 MPa",null," 35 MPa",null," 3,000 rpm",null," 3,600 rpm",null,null,null,null,null,null,null,null,null,{"$f":"translation!E100","v":"Direction of Rotation"},null,null,null,null,7,"R ",{"$f":"translation!E130","v":" Clockwise"},null,null,null,null,null,null,null,null,null,{"$f":"IF('M spec'!K71=\"★\",\"★\",IF('M spec'!K71=\"▲\",\"▲\",IF('M spec'!K71=\"◆\",\"◆\",\"\")))","v":""},"R"]
[null,null,null,null,null,null,null," 45 "," 45 - 16 cm3",null,null," 32 MPa",null," 35 MPa",null," 2,700 rpm",null," 3,250 rpm",null,null,{"$f":"IF(OR(T18=200,T18=\"200H\"),translation!E114,\"\")","v":""},null,null,null,null,null,null,null,null,null,null,null,null,"L ",{"$f":"translation!E131","v":" Counterclockwise"},null,null,null,null,null,null,null,null,null,{"$f":"IF('M spec'!K72=\"★\",\"★\",IF('M spec'!K72=\"▲\",\"▲\",IF('M spec'!K72=\"◆\",\"◆\",\"\")))","v":""}]
[null,null,null,null,null,null,null," 80 "," 80 - 35 cm3",null,null," 32 MPa",null," 35 MPa",null," 2,400 rpm",null," 3,000 rpm",null,null,null,null,null,null,null,null,null,{"$f":"translation!E101","v":"Mounting Flange and Shaft"},null,null,null,null,8,"K ",{"$f":"translation!E132","v":" SAE-* Mount & SAE-* Keyed Shaft"},null,null,null,null,null,null,null,null,null,{"$f":"IF('M spec'!K73=\"★\",\"★\",IF('M spec'!K73=\"▲\",\"▲\",IF('M spec'!K73=\"◆\",\"◆\",\"\")))","v":""},"K",{"$f":"translation!E206","v":"Chosen Mount & Shaft"}]
[null,null,null,null,null,null,null," 112 "," 112 - 56 cm3",null,null," 32 MPa",null," 35 MPa",null," 2,200 rpm",null," 2,700 rpm",null,null,null,null,null,null,null,null,null,null,null,null,null,null,null,"M ",{"$f":"translation!E133","v":" ISO Mount & ISO Keyed Shaft "},null,null,null,null,null,null,null,null,null,{"$f":"IF('M spec'!K74=\"★\",\"★\",IF('M spec'!K74=\"▲\",\"▲\",IF('M spec'!K74=\"◆\",\"◆\",\"\")))","v":""},null,{"$f":"translation!E210","v":"Model"},{"$f":"translation!E211","v":"Mount"},null,{"$f":"translation!E212","v":"Shaft"}]
[null,null,null,null,null,null,null," 140 "," 140 - 70 cm3",null,null," 32 MPa",null," 35 MPa",null," 2,200 rpm",null," 2,500 rpm",null,null,null,null,null,null,null,null,null,null,null,null,null,null,null,"S ",{"$f":"translation!E134","v":" SAE-* Mount & SAE-* Spline Shaft"},null,null,null,null,null,null,null,null,null,{"$f":"IF('M spec'!K75=\"★\",\"★\",IF('M spec'!K75=\"▲\",\"▲\",IF('M spec'!K75=\"◆\",\"◆\",\"\")))","v":""},null,{"$f":"T18","v":80},{"$f":"'M spec'!L21","v":"2 bolt SAE-C"},null,{"$f":"'M spec'!L31","v":"Keyed SAE-C"}]
[null,null,null,null,null,null,null," 200 "," 200 - 100 cm3",null,null," 32 MPa※1",null," 35 MPa※1",null," 1,900 rpm",null," 1,900 rpm※2",null,null,null,null,null,null,null,null,null,null,null,null,null,null,null,"R ",{"$f":"translation!E135","v":" SAE-* Mount & SAE-* Spline Shaft (K3VL112/140 : 4 bolt D & C)"},null,null,null,null,null,null,null,null,null,{"$f":"IF('M spec'!K76=\"★\",\"★\",IF('M spec'!K76=\"▲\",\"▲\",IF('M spec'!K76=\"◆\",\"◆\",\"\")))","v":""},null,{"$f":"translation!E209","v":"Std. Mount & Shaft"}]
[null,null,null,null,null,null,null," 200H "," 200 - 100 cm3",null,null," 32 MPa※1",null," 35 MPa※1",null," 2,200 rpm",null," 2,200 rpm",null,null,null,null,null,null,null,null,null,null,null,null,null,null,null,"C ",{"$f":"translation!E136","v":" SAE-* Mount & SAE-* Spline Shaft (K3VL112/140 : 2 bolt C & C)"},null,null,null,null,null,null,null,null,null,{"$f":"IF('M spec'!K77=\"★\",\"★\",IF('M spec'!K77=\"▲\",\"▲\",IF('M spec'!K77=\"◆\",\"◆\",\"\")))","v":""},null,"28",{"$f":"translation!E213","v":"2 bolt SAE-B"},null,"SAE-B"]
[null,{"$f":"translation!E18","v":"Pump Max Displacement"},null,null,null,null,"-",{"$f":"translation!E34","v":"Pump Max Displacement: 80 - 35 cm3"},null,null,null,null,null,null,null,null,null,null,null,{"$f":"translation!E63","v":"Max:"},null,null,null,null,"cm3",null,null,null,null,null,null,null,null,"X ",{"$f":"translation!E137","v":" SAE-* Mount & SAE-* Keyed Shaft (K3VL112/140 : 2 bolt C & C) "},null,null,null,null,null,null,null,null,null,{"$f":"IF('M spec'!K78=\"★\",\"★\",IF('M spec'!K78=\"▲\",\"▲\",IF('M spec'!K78=\"◆\",\"◆\",\"\")))","v":""},null,"45",{"$f":"translation!E214","v":"2 bolt SAE-B"},null,"SAE-BB"]
[null,{"$f":"translation!E19","v":"Max / Rated Speed"},null,null,null,null,"-",{"$f":"translation!E35","v":"Max Speed: 3000 rpm"},null,null,null,null,null,{"$f":"translation!E36","v":"Self Prime Max: 2400 rpm @80cm3"},null,null,null,null,null,{"$f":"translation!E64","v":"Max:"},null,"rpm",{"$f":"translation!E65","v":"Rated:"},null,"rpm",null,null,null,null,null,null,null,null,"W ",{"$f":"translation!E138","v":" SAE-* Mount & SAE-* Spline Shaft (K3VL112/140 : 2 bolt C & CC) "},null,null,null,null,null,null,null,null,null,{"$f":"IF('M spec'!K79=\"★\",\"★\",IF('M spec'!K79=\"▲\",\"▲\",IF('M spec'!K79=\"◆\",\"◆\",\"\")))","v":""},null,"80",{"$f":"translation!E215","v":"2 bolt SAE-C"},null,"SAE-C"]
[null,null,null,null,null,null,null,{"$f":"translation!E37","v":"If Rated speed is higher than self prime speed, burst pressure is required."},null,null,null,null,null,null,null,null,null,null,null,null,null,null,null,null,null,null,null,null,null,null,null,null,null,"Y ",{"$f":"translation!E139","v":" SAE-* Mount & SAE-* Keyed Shaft (K3VL112/140 : 2 bolt C & CC) "},null,null,null,null,null,null,null,null,null,{"$f":"IF('M spec'!K80=\"★\",\"★\",IF('M spec'!K80=\"▲\",\"▲\",IF('M spec'!K80=\"◆\",\"◆\",\"\")))","v":""},null,"112",{"$f":"translation!E216","v":"4 bolt SAE-D"},null,"SAE-D"]
[null,null,null,null,null,null,null,{"$f":"translation!E38","v":"If self prime max. is higher than max. speed, please contact KPMJ."},null,null,null,null,null,null,null,null,null,null,null,null,null,null,null,null,null,null,null,null,null,null,null,null,null,"F ",{"$f":"translation!E140","v":" SAE-* Mount & SAE-* Spline Shaft (K3VL200 : 4 bolt E & F)"},null,null,null,null,null,null,null,null,null,{"$f":"IF('M spec'!K81=\"★\",\"★\",IF('M spec'!K81=\"▲\",\"▲\",IF('M spec'!K81=\"◆\",\"◆\",\"\")))","v":""},null,"140",{"$f":"translation!E217","v":"4 bolt SAE-D"},null,"SAE-D"]
[null,{"$f":"translation!E20","v":"Peak / Rated Pressure"},null,null,null,null,"-",{"$f":"translation!E39","v":"Peak: 35 MPa"},null,null,null,null,null,{"$f":"translation!E40","v":"Rated: 32 MPa"},null,null,null,null,null,{"$f":"translation!E66","v":"Peak:"},null,"MPa",{"$f":"translation!E67","v":"Rated:"},null,"MPa",null,null,null,null,null,null,null,null,"T ",{"$f":"translation!E141","v":" SAE-* Mount & SAE-* Spline Shaft (K3VL45 : 2 bolt B & B, K3VL112/140 : 4 bolt D & CC)"},null,null,null,null,null,null,null,null,null,{"$f":"IF('M spec'!K82=\"★\",\"★\",IF('M spec'!K82=\"▲\",\"▲\",IF('M spec'!K82=\"◆\",\"◆\",\"\")))","v":""},null,"200",{"$f":"translation!E218","v":"4 bolt SAE-E"},null,"SAE-D"]
[null,{"$f":"translation!E21","v":"Set Pressure of Load Sensing Differential Pressure / Tolerance"},null,null,null,null,"-",{"$f":"translation!E46","v":"Load Sensing Diff. Pressure: 1.5 MPa (STD)\n(Range = [STD] 1.0 - 3.0 MPa, [HIGH] 1.5 - 4.0 MPa)"},null,null,null,null,null,{"$f":"translation!E47","v":"Tolerance: +0.3/-0.2 MPa (STD)"},null,null,null,null,null,"ΔLS:",null,"MPa",{"$f":"translation!E68","v":"Tol:"},null,"MPa",null,null,{"$f":"translation!E102","v":"Flange / Mounting Fixing Thread (Suction-Delivery, Through Drive)"},null,null,null,null,9,{"$f":"translation!E144","v":"Flange Thread Suction-Delivery"},null,null,null,null,null,{"$f":"translation!E147","v":"Mounting Thread Through Drive"},null,null,null,null,null,"M"]
[null,null,null,null,null,null,null,null,null,null,null,null,null,null,null,null,null,null,null,null,null,null,null,null,null,null,null,null,null,null,null,null,null,"M ",{"$f":"translation!E145","v":" Metric "},null,null,null,null,{"$f":"translation!E148","v":" Metric"},null,null,null,null,{"$f":"IF('M spec'!K84=\"★\",\"★\",IF('M spec'!K84=\"▲\",\"▲\",IF('M spec'!K84=\"◆\",\"◆\",\"\")))","v":""}]
[null,{"$f":"translation!E22","v":"Set Pressure of Cut-Off / Tolerance"},null,null,null,null,"-",{"$f":"translation!E48","v":"Pressure Cut-Off: 32 MPa (STD)\n(Adjustable Range = 5.0 - 35.0 MPa)"},null,null,null,null,null,{"$f":"translation!E49","v":"Tolerance: +0/-1.5 MPa (STD)"},null,null,null,null,null,"CO:",null,"MPa",{"$f":"translation!E69","v":"Tol:"},null,"MPa",null,null,null,null,null,null,null,null,"S ",{"$f":"translation!E146","v":" Unified"},null,null,null,null,{"$f":"translation!E149","v":" Metric"},null,null,null,null,{"$f":"IF('M spec'!K85=\"★\",\"★\",IF('M spec'!K85=\"▲\",\"▲\",IF('M spec'!K85=\"◆\",\"◆\",\"\")))","v":"◆"}]
[null,null,null,null,null,null,null,null,null,null,null,null,null,null,null,null,null,null,null,null,null,null,null,null,null,null,null,{"$f":"translation!E103","v":"Regulator Type"},null,null,null,null,10,{"$f":"translation!E150","v":"Load Sense"},null,null,null,null,null,{"$f":"translation!E163","v":"Pressure Cut-Off"},null,null,null,null,null,"L0"]
[null,{"$f":"translation!E23","v":"Suction Pressure / Temperature Range"},null,null,null,null,"-",{"$f":"translation!E50","v":"The suction pressure has to be greater or equal to 0 MPa gauge at Max displacement."},null,null,null,null,null,"-20 ～ 95 ℃",null,null,null,null,null,"Ps:",null,"MPa",{"$f":"translation!E70","v":"Temp:"},null,"℃",null,null,null,null,null,null,null,null," L0 ",{"$f":"translation!E151","v":" with (with Bleed‐Off Orifice)"},null,null,null,null,{"$f":"translation!E164","v":" with"},null,null,null,null,{"$f":"IF('M spec'!K87=\"★\",\"★\",IF('M spec'!K87=\"▲\",\"▲\",IF('M spec'!K87=\"◆\",\"◆\",\"\")))","v":""}]
[null,null,null,null,null,null,null,null,null,null,null,null,null,null,null,null,null,null,null,null,null,null,null,null,null,null,null,null,null,null,null,null,null," L1 ",{"$f":"translation!E152","v":" with (without Bleed‐Off Orifice)"},null,null,null,null,{"$f":"translation!E165","v":" with"},null,null,null,null,{"$f":"IF('M spec'!K88=\"★\",\"★\",IF('M spec'!K88=\"▲\",\"▲\",IF('M spec'!K88=\"◆\",\"◆\",\"\")))","v":""}]
[null,{"$f":"translation!E24","v":"Pump / T/D Input Torque"},null,null,null,null,"-",{"$f":"translation!E51","v":"Pump (incl. T/D) Torque: 430 Nm"},null,null,null,null,null,{"$f":"translation!E52","v":"Through Drive Pump Torque: 123 Nm"},null,null,null,null,null,{"$f":"translation!E71","v":"Pump:"},null,"Nm",{"$f":"translation!E72","v":"T/D:"},0,"Nm",null,null,null,null,null,null,null,null," LM ",{"$f":"translation!E153","v":" with (without Bleed‐Off Orifice)"},null,null,null,null,{"$f":"translation!E166","v":" with + Unloading Control (Min disp. at OFF)"},null,null,null,null,{"$f":"IF('M spec'!K89=\"★\",\"★\",IF('M spec'!K89=\"▲\",\"▲\",IF('M spec'!K89=\"◆\",\"◆\",\"\")))","v":""}]
[null,{"$f":"translation!E25","v":"Case Drain Pressure"},null,null,null,null,"-",{"$f":"translation!E55","v":"Continuous: 0.1 MPa"},null,null,null,null,null,{"$f":"translation!E56","v":"Peak: 0.4 MPa"},null,null,null,null,null,{"$f":"translation!E73","v":"Cont:"},null,"MPa",{"$f":"translation!E74","v":"Peak:"},null,"MPa",null,null,null,null,null,null,null,null," LN ",{"$f":"translation!E154","v":" with (without Bleed‐Off Orifice)"},null,null,null,null,{"$f":"translation!E167","v":" with + Unloading Control (Min disp. at ON)"},null,null,null,null,{"$f":"IF('M spec'!K90=\"★\",\"★\",IF('M spec'!K90=\"▲\",\"▲\",IF('M spec'!K90=\"◆\",\"◆\",\"\")))","v":""}]
[null,{"$f":"translation!E26","v":"Oil Type / Oil Viscosity Range"},null,null,null,null,"-",{"$f":"translation!E57","v":"Equivalent to ISO VG46"},null,null,null,null,null,{"$f":"translation!E58","v":"10 ～ 1,000 cSt"},null,null,null,null,null,null,null,null,null,null,"cSt",null,null,null,null,null,null,null,null," LV ",{"$f":"translation!E155","v":" with (without Bleed‐Off Orifice)"},null,null,null,null,{"$f":"translation!E168","v":" with + Remote Control (Prop. Control)"},null,null,null,null,{"$f":"IF('M spec'!K91=\"★\",\"★\",IF('M spec'!K91=\"▲\",\"▲\",IF('M spec'!K91=\"◆\",\"◆\",\"\")))","v":""}]
[null,{"$f":"translation!E27","v":"Name Plate"},null,null,null,null,"-",{"$f":"translation!E59","v":"KHI Standard (Supplier Name, Model Code and S/N)"},null,null,null,null,null,null,null,null,null,null,null,null,null,null,null,null,null,null,null,null,null,null,null,null,null," LV2 ",{"$f":"translation!E156","v":" with (without Bleed‐Off Orifice)"},null,null,null,null,{"$f":"translation!E169","v":" with + Remote Control (Prop. Control)"},null,null,null,null,{"$f":"IF('M spec'!K92=\"★\",\"★\",IF('M spec'!K92=\"▲\",\"▲\",IF('M spec'!K92=\"◆\",\"◆\",\"\")))","v":""}]
[null,{"$f":"translation!E28","v":"Paint"},null,null,null,null,"-",{"$f":"translation!E60","v":"KHI Standard (Act Primer Red Brown)"},null,null,null,null,null,null,null,null,null,null,null,null,null,null,null,null,null," ",null,null,null,null,null,null,null," P0 ",{"$f":"translation!E157","v":" without"},null,null,null,null,{"$f":"translation!E170","v":" with"},null,null,null,null,{"$f":"IF('M spec'!K93=\"★\",\"★\",IF('M spec'!K93=\"▲\",\"▲\",IF('M spec'!K93=\"◆\",\"◆\",\"\")))","v":""}]
[null,{"$f":"translation!E221","v":"Driving Method"},null,null,null,null,"-",null,null,null,null,null,null,null,null,null,null,null,null,null,null,null,null,null,null,null,null,null,null,null,null,null,null," PM ",{"$f":"translation!E158","v":" without"},null,null,null,null,{"$f":"translation!E171","v":" with + Unloading Control (Min disp. at OFF)"},null,null,null,null,{"$f":"IF('M spec'!K94=\"★\",\"★\",IF('M spec'!K94=\"▲\",\"▲\",IF('M spec'!K94=\"◆\",\"◆\",\"\")))","v":""}]
[null,{"$f":"translation!E29","v":"Customer Part Number"},null,null,null,null,"-",null,null,null,null,null,null,null,null,null,null,null,null,null,null,null,null,null,null,null,null,null,null,null,null,null,null," PN ",{"$f":"translation!E159","v":" without"},null,null,null,null,{"$f":"translation!E172","v":" with + Unloading Control (Min disp. at ON)"},null,null,null,null,{"$f":"IF('M spec'!K95=\"★\",\"★\",IF('M spec'!K95=\"▲\",\"▲\",IF('M spec'!K95=\"◆\",\"◆\",\"\")))","v":""}]
[null,{"$f":"translation!E30","v":"Proto Type Requirement"},null,null,null,null,"-",null,null,null,null,null,null,null,null,null,null,null,null,{"$f":"translation!E83","v":"Qty's:"},null,"pcs",{"$f":"translation!E86","v":"Date:"},null,null,null,null,null,null,null,null,null,null," PV ",{"$f":"translation!E160","v":" without"},null,null,null,null,{"$f":"translation!E173","v":" with + Remote Control (Prop. Control)"},null,null,null,null,{"$f":"IF('M spec'!K96=\"★\",\"★\",IF('M spec'!K96=\"▲\",\"▲\",IF('M spec'!K96=\"◆\",\"◆\",\"\")))","v":""}]
[null,{"$f":"translation!E31","v":"Production Schedule"},null,null,null,null,"-",null,null,null,null,null,null,null,null,null,null,null,null,{"$f":"translation!E84","v":"Qty's:"},null,{"$f":"translation!E85","v":"pcs/y"},{"$f":"translation!E87","v":"Date:"},null,null,null,null,null,null,null,null,null,null," PV2 ",{"$f":"translation!E161","v":" without"},null,null,null,null,{"$f":"translation!E174","v":" with + Remote Control (Prop. Control)"},null,null,null,null,{"$f":"IF('M spec'!K97=\"★\",\"★\",IF('M spec'!K97=\"▲\",\"▲\",IF('M spec'!K97=\"◆\",\"◆\",\"\")))","v":""}]
[null,{"$f":"translation!E32","v":"Original Model (Competitor)"},null,null,null,null,"-",{"$f":"translation!E61","v":"If the model of original pump can be found, please write down for a reference."},null,null,null,null,null,null,null,null,null,null,null,null,null,null,null,null,null,null,null,null,null,null,null,null,null," PR ",{"$f":"translation!E162","v":" without"},null,null,null,null,{"$f":"translation!E175","v":" with + Remote Control (Inv. Prop. Control)"},null,null,null,null,{"$f":"IF('M spec'!K98=\"★\",\"★\",IF('M spec'!K98=\"▲\",\"▲\",IF('M spec'!K98=\"◆\",\"◆\",\"\")))","v":"★"}]
[null,null,null,null,null,null,null,null,null,null,null,null,null,null,null,null,null,null,null,null,null,null,null,null,null,null,null,{"$f":"translation!E104","v":"Unloader Solenoid"},null,null,null,null,11,"Blank ",{"$f":"translation!E176","v":" In case except PN/PM/LN/LM/PV2/LV2 is chosen at [10]"},null,null,null,null,null,null,null,null,null,{"$f":"IF('M spec'!K99=\"★\",\"★\",IF('M spec'!K99=\"▲\",\"▲\",IF('M spec'!K99=\"◆\",\"◆\",\"\")))","v":""},"Blank"]
[null,null,null,null,null,null,null,null,null,null,null,null,null,null,null,null,null,null,null,null,null,null,null,null,null,null,null,null,null,null,null,null,null,"115A ",{"$f":"translation!E178","v":" 115V AC, 50, 60 Hz - DIN 43550 Plug"},null,null,null,null,null,null,null,null,null,{"$f":"IF('M spec'!K100=\"★\",\"★\",IF('M spec'!K100=\"▲\",\"▲\",IF('M spec'!K100=\"◆\",\"◆\",\"\")))","v":""}]
[null,{"$f":"translation!E88","v":"Comments (Other requirements)"},null,null,null,null,null,null,null,null,null,null,null,{"$f":"translation!E89","v":"Operating condition, Duty cycle etc. (Describe your detail)"},null,null,null,null,null,null,null,null,null,null,null,null,null,null,null,null,null,null,null,"230A ",{"$f":"translation!E179","v":" 230V AC, 50, 60 Hz - DIN 43550 Plug"},null,null,null,null,null,null,null,null,null,{"$f":"IF('M spec'!K101=\"★\",\"★\",IF('M spec'!K101=\"▲\",\"▲\",IF('M spec'!K101=\"◆\",\"◆\",\"\")))","v":""}]
[null,null,null,null,null,null,null,null,null,null,null,null,null,null,null,null,null,null,null,null,null,null,null,null,null,null,null,null,null,null,null,null,null,"12D ",{"$f":"translation!E180","v":" 12V DC - DIN 43550 Plug"},null,null,null,null,null,null,null,null,null,{"$f":"IF('M spec'!K102=\"★\",\"★\",IF('M spec'!K102=\"▲\",\"▲\",IF('M spec'!K102=\"◆\",\"◆\",\"\")))","v":""}]
[null,null,null,null,null,null,null,null,null,null,null,null,null,null,null,null,null,null,null,null,null,null,null,null,null,null,null,null,null,null,null,null,null,"24D ",{"$f":"translation!E181","v":" 24V DC - DIN 43550 Plug"},null,null,null,null,null,null,null,null,null,{"$f":"IF('M spec'!K103=\"★\",\"★\",IF('M spec'!K103=\"▲\",\"▲\",IF('M spec'!K103=\"◆\",\"◆\",\"\")))","v":""}]
[null,null,null,null,null,null,null,null,null,null,null,null,null,null,null,null,null,null,null,null,null,null,null,null,null,null,null,{"$f":"translation!E105","v":"Additional Control Options"},null,null,null,null,12,"Blank ",{"$f":"translation!E182","v":" In case except PV2/LV2 is chosen at [10]"},null,null,null,null,null,null,null,null,null,{"$f":"IF('M spec'!K104=\"★\",\"★\",IF('M spec'!K104=\"▲\",\"▲\",IF('M spec'!K104=\"◆\",\"◆\",\"\")))","v":""},"Blank"]
[null,null,null,null,null,null,null,null,null,null,null,null,null,null,null,null,null,null,null,null,null,null,null,null,null,null,null,null,null,null,null,null,null,"A ",{"$f":"translation!E183","v":" With Deutsch Connector"},null,null,null,null,null,null,null,null,null,{"$f":"IF('M spec'!K105=\"★\",\"★\",IF('M spec'!K105=\"▲\",\"▲\",IF('M spec'!K105=\"◆\",\"◆\",\"\")))","v":""}]
[null,null,null,null,null,null,null,null,null,null,null,null,null,null,null,null,null,null,null,null,null,null,null,null,null,null,null,null,null,null,null,null,null,"B ",{"$f":"translation!E184","v":" With DIN Connector"},null,null,null,null,null,null,null,null,null,{"$f":"IF('M spec'!K106=\"★\",\"★\",IF('M spec'!K106=\"▲\",\"▲\",IF('M spec'!K106=\"◆\",\"◆\",\"\")))","v":""}]
[null,null,null,null,null,null,null,null,null,null,null,null,null,null,null,null,null,null,null,null,null,null,null,null,null,null,null,{"$f":"translation!E106","v":"Additional Control Options"},null,null,null,null,13,"Blank ",{"$f":"translation!E185","v":" Without Additional Control"},null,null,null,null,null,null,null,null,null,{"$f":"IF('M spec'!K107=\"★\",\"★\",IF('M spec'!K107=\"▲\",\"▲\",IF('M spec'!K107=\"◆\",\"◆\",\"\")))","v":""},"Blank"]
[null,null,null,null,null,null,null,null,null,null,null,null,null,null,null,null,null,null,null,null,null,null,null,null,null,null,null,null,null,null,null,null,null,"/1 ",{"$f":"translation!E186","v":" Torque Limiter (with Provision for Torque Limiter or Displacement Control)"},null,null,null,null,null,null,null,null,null,{"$f":"IF('M spec'!K108=\"★\",\"★\",IF('M spec'!K108=\"▲\",\"▲\",IF('M spec'!K108=\"◆\",\"◆\",\"\")))","v":""}]
[null,null,null,null,null,null,null,null,null,null,null,null,null,null,null,null,null,null,null,null,null,null,null,null,null,null,null,null,null,null,null,null,null,"/2 ",{"$f":"translation!E187","v":" Torque Limiter & Hydraulic Power Shift"},null,null,null,null,null,null,null,null,null,{"$f":"IF('M spec'!K109=\"★\",\"★\",IF('M spec'!K109=\"▲\",\"▲\",IF('M spec'!K109=\"◆\",\"◆\",\"\")))","v":""}]
[null,null,null,null,null,null,null,null,null,null,null,null,null,null,null,null,null,null,null,null,null,null,null,null,null,null,null,null,null,null,null,null,null,"/3 ",{"$f":"translation!E188","v":" Torque Limiter & Electrical Power Shift, 24V DC - Deutsch Connector"},null,null,null,null,null,null,null,null,null,{"$f":"IF('M spec'!K110=\"★\",\"★\",IF('M spec'!K110=\"▲\",\"▲\",IF('M spec'!K110=\"◆\",\"◆\",\"\")))","v":""}]
[null,null,null,null,null,null,null,null,null,null,null,null,null,null,null,null,null,null,null,null,null,null,null,null,null,null,null,{"$f":"translation!E107","v":"Torque Limiting & Displacement Control"},null,null,null,null,14,"Blank ",{"$f":"translation!E189","v":" Without Additional Control"},null,null,null,null,null,null,null,null,null,{"$f":"IF('M spec'!K111=\"★\",\"★\",IF('M spec'!K111=\"▲\",\"▲\",IF('M spec'!K111=\"◆\",\"◆\",\"\")))","v":""},"Blank",{"$f":"translation!E219","v":"Torque Set - Torque Limit"}]
[null,null,null,null,null,null,null,null,null,null,null,null,null,null,null,null,null,null,null,null,null,null,null,null,null,null,null,null,null,null,null,null,null,"-00 ",{"$f":"translation!E190","v":" Blanking Plate (In case /1 is chosen at [13])"},null,null,null,null,null,null,null,null,null,{"$f":"IF('M spec'!K112=\"★\",\"★\",IF('M spec'!K112=\"▲\",\"▲\",IF('M spec'!K112=\"◆\",\"◆\",\"\")))","v":""},null,null,null,{"$f":"IF($AT$55=\"/1\",VLOOKUP(AU60,'M spec'!B126:K147,10,FALSE),\"-\")","v":"-"},null,"Nm"]
[null,null,null,null,null,null,null,null,null,null,null,null,null,null,null,null,null,null,null,null,null,null,null,null,null,null,null,null,null,null,null,null,null,"-S* ",{"$f":"translation!E191","v":" Low Setting Range (available for /1 type only)"},null,null,null,null,null,null,null,null,null,{"$f":"IF('M spec'!K113=\"★\",\"★\",IF('M spec'!K113=\"▲\",\"▲\",IF('M spec'!K113=\"◆\",\"◆\",\"\")))","v":""},null,{"$f":"translation!E220","v":"Torque Set - Power Shift"}]
[null,null,null,null,null,null,null,null,null,null,null,null,null,null,null,null,null,null,null,null,null,null,null,null,null,null,null,null,null,null,null,null,null,"-L* ",{"$f":"translation!E192","v":" Low Setting Range (available for /1 type only)"},null,null,null,null,null,null,null,null,null,{"$f":"IF('M spec'!K114=\"★\",\"★\",IF('M spec'!K114=\"▲\",\"▲\",IF('M spec'!K114=\"◆\",\"◆\",\"\")))","v":""},null,{"$f":"IF($AT$55=\"/2\",\" ① Pf = 0 MPa\",IF($AT$55=\"/3\",\" ① I = 0 mA\",\"-\"))","v":"-"},null,{"$f":"IF(OR($AT$55=\"/2\",$AT$55=\"/3\"),VLOOKUP(AU60,'M spec'!B148:K153,10,FALSE),\"-\")","v":"-"},null,"Nm"]
[null,null,null,null,null,null,null,null,null,null,null,null,null,null,null,null,null,null,null,null,null,null,null,null,null,null,null,null,null,null,null,null,null,"-M* ",{"$f":"translation!E193","v":" Medium Setting Range (available for /1 type only)"},null,null,null,null,null,null,null,null,null,{"$f":"IF('M spec'!K115=\"★\",\"★\",IF('M spec'!K115=\"▲\",\"▲\",IF('M spec'!K115=\"◆\",\"◆\",\"\")))","v":""},null,{"$f":"IF($AT$55=\"/2\",\" ② Pf = 1 MPa\",IF($AT$55=\"/3\",\" ② I = 336 mA\",\"-\"))","v":"-"},null,{"$f":"IF(OR($AT$55=\"/2\",$AT$55=\"/3\"),VLOOKUP(AU60,'M spec'!B154:K159,10,FALSE),\"-\")","v":"-"},null,"Nm"]
[null,null,null,null,null,null,null,null,null,null,null,null,null,null,null,null,null,null,null,null,null,null,null,null,null,null,null,null,null,null,null,null,null,"-H* ",{"$f":"translation!E194","v":" High Setting Range (available for /1, /2, /3 options)"},null,null,null,null,null,null,null,null,null,{"$f":"IF('M spec'!K116=\"★\",\"★\",IF('M spec'!K116=\"▲\",\"▲\",IF('M spec'!K116=\"◆\",\"◆\",\"\")))","v":""},null,{"$f":"IF($AT$55=\"/2\",\" ③ Pf = 2 MPa\",IF($AT$55=\"/3\",\" ③ I = 473 mA\",\"-\"))","v":"-"},null,{"$f":"IF(OR($AT$55=\"/2\",$AT$55=\"/3\"),VLOOKUP(AU60,'M spec'!B160:K165,10,FALSE),\"-\")","v":"-"},null,"Nm"]
[null,null,null,null,null,null,null,null,null,null,null,null,null,null,null,null,null,null,null,null,null,null,null,null,null,null,null,null,null,null,null,null,null,"-E0 ",{"$f":"translation!E198","v":" Electric Displacement Control (Pilot Pres. Required) AMP Flying Lead 24V DC"},null,null,null,null,null,null,null,null,null,{"$f":"IF('M spec'!K117=\"★\",\"★\",IF('M spec'!K117=\"▲\",\"▲\",IF('M spec'!K117=\"◆\",\"◆\",\"\")))","v":""},null,{"$f":"IF($AT$55=\"/2\",\" ④ Pf = 3 MPa\",IF($AT$55=\"/3\",\" ④ I = 595 mA\",\"-\"))","v":"-"},null,{"$f":"IF(OR($AT$55=\"/2\",$AT$55=\"/3\"),VLOOKUP(AU60,'M spec'!B166:K171,10,FALSE),\"-\")","v":"-"},null,"Nm"]
[null,null,null,null,null,null,null,null,null,null,null,null,null,null,null,null,null,null,null,null,null,null,null,null,null,null,null,null,null,null,null,null,null,"-E1 ",{"$f":"translation!E199","v":" Electric Displacement Control (Pilot Pres. Required) AMP Moulded 24V DC"},null,null,null,null,null,null,null,null,null,{"$f":"IF('M spec'!K118=\"★\",\"★\",IF('M spec'!K118=\"▲\",\"▲\",IF('M spec'!K118=\"◆\",\"◆\",\"\")))","v":""}]
[null,null,null,null,null,null,null,null,null,null,null,null,null,null,null,null,null,null,null,null,null,null,null,null,null,null,null,null,null,null,null,null,null,"-E2 ",{"$f":"translation!E200","v":" Electric Displacement Control (Pilot Pres. Required) Deutsch Moulded 24V DC"},null,null,null,null,null,null,null,null,null,{"$f":"IF('M spec'!K119=\"★\",\"★\",IF('M spec'!K119=\"▲\",\"▲\",IF('M spec'!K119=\"◆\",\"◆\",\"\")))","v":""}]
[null,null,null,null,null,null,null,null,null,null,null,null,null,null,null,null,null,null,null,null,null,null,null,null,null,null,null,null,null,null,null,null,null,"-E3 ",{"$f":"translation!E201","v":" Electric Displacement Control (Pilot Pres. Required) Deutsch Moulded 12V DC"},null,null,null,null,null,null,null,null,null,{"$f":"IF('M spec'!K120=\"★\",\"★\",IF('M spec'!K120=\"▲\",\"▲\",IF('M spec'!K120=\"◆\",\"◆\",\"\")))","v":""}]
[null,null,null,null,null,null,null,null,null,null,null,null,null,null,null,null,null,null,null,null,null,null,null,null,null,null,null,null,null,null,null,null,null,"-Q0 ",{"$f":"translation!E202","v":" Pilot Operated Displacement Control"},null,null,null,null,null,null,null,null,null,{"$f":"IF('M spec'!K121=\"★\",\"★\",IF('M spec'!K121=\"▲\",\"▲\",IF('M spec'!K121=\"◆\",\"◆\",\"\")))","v":""}]
[null,null,null,null,null,null,null,null,null,null,null,null,null,null,null,null,null,null,null,null,null,null,null,null,null,null,null,{"$f":"translation!E108","v":"Special Suffix"},null,null,null,null,15,"Blank ",null,null,null,null,null,null,null,null,null,null,{"$f":"IF('M spec'!K122=\"★\",\"★\",IF('M spec'!K122=\"▲\",\"▲\",IF('M spec'!K122=\"◆\",\"◆\",\"\")))","v":""},"Blank"]
[null,null,null,null,null,null,null,null,null,null,null,null,null,null,null,null,null,null,null,null,null,null,null,null,null,null,null,null,null,null,null,null,null,"-TB* ",{"$f":"translation!E203","v":" Managed by KPMJ"},null,null,null,null,null,null,null,null,null,{"$f":"IF('M spec'!K123=\"★\",\"★\",IF('M spec'!K123=\"▲\",\"▲\",IF('M spec'!K123=\"◆\",\"◆\",\"\")))","v":""}]
[null,null,null,null,null,null,null,null,null,null,null,null,null,null,null,null,null,null,null,null,null,null,null,null,null,null,null,null,null,null,null,null,null,"-L* ",{"$f":"translation!E204","v":" Managed by KPM(UK)"},null,null,null,null,null,null,null,null,null,{"$f":"IF('M spec'!K124=\"★\",\"★\",IF('M spec'!K124=\"▲\",\"▲\",IF('M spec'!K124=\"◆\",\"◆\",\"\")))","v":"◆"}]
[null,null,null,null,null,null,null,null,null,null,null,null,null,null,null,null,null,null,null,null,null,null,null,null,null,null,null,null,null,null,null,null,null,"-L500 ",{"$f":"translation!E205","v":" ATEX pump (for use in potentially explosive atmosphere) - Managed by KPM(UK)"},null,null,null,null,null,null,null,null,null,{"$f":"IF('M spec'!K125=\"★\",\"★\",IF('M spec'!K125=\"▲\",\"▲\",IF('M spec'!K125=\"◆\",\"◆\",\"\")))","v":"◆"}]

{"sheet":"M spec","index":1,"n_rows":171,"n_cols":12,"rows_kept":171,"cut":false,"hidden":true,"merged":[[147,2,152,2],[153,2,158,2],[159,2,164,2],[165,2,170,2],[125,2,146,2]]}
[]
["2. Pump Size",null,null,28,45,80,112,140,200,"200H",{"$f":"'K3VL-Mobile'!T18","v":80}]
["Basic specifications","Pump Displacement Range",null,"28 cm3","45 - 16 cm3","80 - 35 cm3","112 - 56 cm3","140 - 70 cm3","200 - 100 cm3","200 - 100 cm3",{"$f":"HLOOKUP($K$2,TABA[],ROW(K2),FALSE)","v":"80 - 35 cm3"}]
[null,"Max",null,28,45,80,112,140,200,200,{"$f":"HLOOKUP($K$2,TABA[],ROW(K3),FALSE)","v":80}]
[null,"Min",null,28,16,35,56,70,100,100,{"$f":"HLOOKUP($K$2,TABA[],ROW(K4),FALSE)","v":35}]
[null,"Max Speed",null,3600,3250,3000,2700,2500,1900,2200,{"$f":"HLOOKUP($K$2,TABA[],ROW(K5),FALSE)","v":3000}]
[null,"Self Prime Speed",null,3000,2700,2400,2200,2200,1900,2200,{"$f":"HLOOKUP($K$2,TABA[],ROW(K6),FALSE)","v":2400}]
[null,"Peak pressure",null,35,35,35,35,35,35,35,{"$f":"HLOOKUP($K$2,TABA[],ROW(K7),FALSE)","v":35}]
[null,"Rated pressure",null,32,32,32,32,32,32,32,{"$f":"HLOOKUP($K$2,TABA[],ROW(K8),FALSE)","v":32}]
["Mount","K","SAE Key & SAE Mount","2 bolt SAE-B","2 bolt SAE-B","2 bolt SAE-C","4 bolt SAE-D","4 bolt SAE-D","4 bolt SAE-E","4 bolt SAE-E",{"$f":"HLOOKUP($K$2,TABA[],ROW(K9),FALSE)","v":"2 bolt SAE-C"}]
[null,"M","ISO Key & ISO Mount","-","2 bolt ISO φ100","2 bolt ISO φ125","4 bolt ISO φ180","4 bolt ISO φ180","-","-",{"$f":"HLOOKUP($K$2,TABA[],ROW(K10),FALSE)","v":"2 bolt ISO φ125"}]
[null,"S","SAE Spline & SAE Mount","2 bolt SAE-B","2 bolt SAE-B","2 bolt SAE-C","4 bolt SAE-D","4 bolt SAE-D","4 bolt SAE-E","4 bolt SAE-E",{"$f":"HLOOKUP($K$2,TABA[],ROW(K11),FALSE)","v":"2 bolt SAE-C"}]
[null,"R","SAE-C Spline & SAE-D Mount","-","-","-","4 bolt SAE-D","4 bolt SAE-D","-","-",{"$f":"HLOOKUP($K$2,TABA[],ROW(K12),FALSE)","v":"-"}]
[null,"C","SAE-C Spline & SAE-C2 Mount","-","-","-","2 bolt SAE-C","2 bolt SAE-C","-","-",{"$f":"HLOOKUP($K$2,TABA[],ROW(K13),FALSE)","v":"-"}]
[null,"X","SAE-C Key & SAE-C2 Mount","-","-","-","2 bolt SAE-C","2 bolt SAE-C","-","-",{"$f":"HLOOKUP($K$2,TABA[],ROW(K14),FALSE)","v":"-"}]
[null,"W","SAE-CC Key & SAE-C2 Mount","-","-","-","2 bolt SAE-C","2 bolt SAE-C","-","-",{"$f":"HLOOKUP($K$2,TABA[],ROW(K15),FALSE)","v":"-"}]
[null,"Y","SAE-CC Spline & SAE-C2 Mount","-","-","-","2 bolt SAE-C","2 bolt SAE-C","-","-",{"$f":"HLOOKUP($K$2,TABA[],ROW(K16),FALSE)","v":"-"}]
[null,"F","SAE-F Spline & SAE-E Mount","-","-","-","-","-","4 bolt SAE-E","4 bolt SAE-E",{"$f":"HLOOKUP($K$2,TABA[],ROW(K17),FALSE)","v":"-"}]
[null,"T","SAE-B Spline & SAE-B, 2 Bolt Mount (K3VL45), SAE-CC Spline & SAE-D, 4 Bolt Mount (K3VL112/140)","-","2 bolt SAE-B","-","4 bolt SAE-D","4 bolt SAE-D","-","-",{"$f":"HLOOKUP($K$2,TABA[],ROW(K18),FALSE)","v":"-"}]
[null,"J","JIS Key & SAE Mount","-","2 bolt SAE-B","2 bolt SAE-C","4 bolt SAE-D","4 bolt SAE-D","-","-",{"$f":"HLOOKUP($K$2,TABA[],ROW(K19),FALSE)","v":"2 bolt SAE-C"}]
[null,"H","SAE Spline & SAE Mount","2 bolt SAE-B","2 bolt SAE-B","2 bolt SAE-C","4 bolt SAE-D","4 bolt SAE-D","4 bolt SAE-E","4 bolt SAE-E",{"$f":"HLOOKUP($K$2,TABA[],ROW(K20),FALSE)","v":"2 bolt SAE-C"},{"$f":"VLOOKUP('K3VL-Mobile'!AT21,B10:K21,10,FALSE)","v":"2 bolt SAE-C"}]
["Input Shaft","K","SAE Key & SAE Mount","Keyed SAE-B","Keyed SAE-BB","Keyed SAE-C","Keyed SAE-D","Keyed SAE-D","Keyed SAE-D","Keyed SAE-D",{"$f":"HLOOKUP($K$2,TABA[],ROW(K21),FALSE)","v":"Keyed SAE-C"}]
[null,"M","ISO Key & ISO Mount","-","ISO φ25.4","ISO φ31.75","ISO φ44.45","ISO φ44.45","-","-",{"$f":"HLOOKUP($K$2,TABA[],ROW(K22),FALSE)","v":"ISO φ31.75"}]
[null,"S","SAE Spline & SAE Mount","Spline SAE-B","Spline SAE-BB","Spline SAE-C","Spline SAE-D","Spline SAE-D","Spline SAE-D","Spline SAE-D",{"$f":"HLOOKUP($K$2,TABA[],ROW(K23),FALSE)","v":"Spline SAE-C"}]
[null,"R","SAE-C Spline & SAE-D Mount","-","-","-","Spline SAE-C","Spline SAE-C","-","-",{"$f":"HLOOKUP($K$2,TABA[],ROW(K24),FALSE)","v":"-"}]
[null,"C","SAE-C Spline & SAE-C2 Mount","-","-","-","Spline SAE-C","Spline SAE-C","-","-",{"$f":"HLOOKUP($K$2,TABA[],ROW(K25),FALSE)","v":"-"}]
[null,"X","SAE-C Key & SAE-C2 Mount","-","-","-","Keyed SAE-C","Keyed SAE-C","-","-",{"$f":"HLOOKUP($K$2,TABA[],ROW(K26),FALSE)","v":"-"}]
[null,"W","SAE-CC Key & SAE-C2 Mount","-","-","-","Spline SAE-CC","Spline SAE-CC","-","-",{"$f":"HLOOKUP($K$2,TABA[],ROW(K27),FALSE)","v":"-"}]
[null,"Y","SAE-CC Spline & SAE-C2 Mount","-","-","-","Keyed SAE-CC","Keyed SAE-CC","-","-",{"$f":"HLOOKUP($K$2,TABA[],ROW(K28),FALSE)","v":"-"}]
[null,"F","SAE-F Spline & SAE-E Mount","-","-","-","-","-","Spline SAE-F","Spline SAE-F",{"$f":"HLOOKUP($K$2,TABA[],ROW(K29),FALSE)","v":"-"}]
[null,"T","SAE-B Spline & SAE-B, 2 Bolt Mount (K3VL45), SAE-CC Spline & SAE-D, 4 Bolt Mount (K3VL112/140)","-","Spline SAE-B","-","Spline SAE-CC","Spline SAE-CC","-","-",{"$f":"HLOOKUP($K$2,TABA[],ROW(K30),FALSE)","v":"-"},{"$f":"VLOOKUP('K3VL-Mobile'!AT21,B22:K31,10,FALSE)","v":"Keyed SAE-C"}]
["Input Shaft Torque Ratings","Spline SAE-B","SAE B Splined Shaft",171,171,"-","-","-","-","-",{"$f":"HLOOKUP($K$2,TABA[],ROW(K31),FALSE)","v":"-"}]
[null,"Spline SAE-BB","SAE BB Splined Shaft","-",272,"-","-","-","-","-",{"$f":"HLOOKUP($K$2,TABA[],ROW(K32),FALSE)","v":"-"}]
[null,"Spline SAE-C","SAE C Splined Shaft","-","-",552,552,552,"-","-",{"$f":"HLOOKUP($K$2,TABA[],ROW(K33),FALSE)","v":552}]
[null,"Spline SAE-CC","SAE CC Splined Shaft","-","-","-",925,925,"-","-",{"$f":"HLOOKUP($K$2,TABA[],ROW(K34),FALSE)","v":"-"}]
[null,"Spline SAE-D","SAE D Splined Shaft","-","-","-",1470,1470,1470,1470,{"$f":"HLOOKUP($K$2,TABA[],ROW(K35),FALSE)","v":"-"}]
[null,"Spline SAE-F","SAE F Splined Shaft","-","-","-","-","-",1950,1950,{"$f":"HLOOKUP($K$2,TABA[],ROW(K36),FALSE)","v":"-"}]
[null,"Keyed SAE-B","SAE B Keyed Shaft",145,"-","-","-","-","-","-",{"$f":"HLOOKUP($K$2,TABA[],ROW(K37),FALSE)","v":"-"}]
[null,"Keyed SAE-BB","SAE BB Keyed Shaft","-",230,"-","-","-","-","-",{"$f":"HLOOKUP($K$2,TABA[],ROW(K38),FALSE)","v":"-"}]
[null,"Keyed SAE-C","SAE C Keyed Shaft","-","-",430,430,430,"-","-",{"$f":"HLOOKUP($K$2,TABA[],ROW(K39),FALSE)","v":430}]
[null,"Keyed SAE-CC","SAE CC Keyed Shaft","-","-","-",700,700,"-","-",{"$f":"HLOOKUP($K$2,TABA[],ROW(K40),FALSE)","v":"-"}]
[null,"Keyed SAE-D","SAE D Keyed Shaft","-","-","-",1250,1250,1250,1250,{"$f":"HLOOKUP($K$2,TABA[],ROW(K41),FALSE)","v":"-"}]
[null,"ISO φ25.4","ISO25 Keyed Shaft","-",230,"-","-","-","-","-",{"$f":"HLOOKUP($K$2,TABA[],ROW(K42),FALSE)","v":"-"}]
[null,"ISO φ31.75","ISO32 Keyed Shaft","-","-",430,"-","-","-","-",{"$f":"HLOOKUP($K$2,TABA[],ROW(K43),FALSE)","v":430}]
[null,"ISO φ44.45","ISO45 Keyed Shaft","-","-","-",980,980,"-","-",{"$f":"HLOOKUP($K$2,TABA[],ROW(K44),FALSE)","v":"-"},{"$f":"VLOOKUP(L31,B32:K45,10,FALSE)","v":430}]
["Throguh Drive Torque","N",null,"-","-","-","-","-","-","-",{"$f":"HLOOKUP($K$2,TABA[],ROW(K45),FALSE)","v":"-"}]
[null,"A","SAE-A",61,123,123,123,123,123,123,{"$f":"HLOOKUP($K$2,TABA[],ROW(K46),FALSE)","v":123}]
[null,"B","SAE-B",155,290,340,340,340,340,340,{"$f":"HLOOKUP($K$2,TABA[],ROW(K47),FALSE)","v":340}]
[null,"BB","SAE-BB","-",290,550,550,550,550,550,{"$f":"HLOOKUP($K$2,TABA[],ROW(K48),FALSE)","v":550}]
[null,"C","SAE-C","-","-",400,700,700,990,990,{"$f":"HLOOKUP($K$2,TABA[],ROW(K49),FALSE)","v":400}]
[null,"CC","SAE-CC","-","-","-",700,700,990,990,{"$f":"HLOOKUP($K$2,TABA[],ROW(K50),FALSE)","v":"-"}]
[null,"D","SAE-D","-","-","-",700,700,990,990,{"$f":"HLOOKUP($K$2,TABA[],ROW(K51),FALSE)","v":"-"}]
[null,"E","SAE-E","-","-","-","-","-",990,990,{"$f":"HLOOKUP($K$2,TABA[],ROW(K52),FALSE)","v":"-"},{"$f":"VLOOKUP(IF(OR('K3VL-Mobile'!AT8=0,'K3VL-Mobile'!AT8=\"N\",'K3VL-Mobile'!AT8=\"R\"),\"N\",IF('K3VL-Mobile'!AT8=\"C4\",\"C\",'K3VL-Mobile'!AT8)),B46:K53,10,FALSE)","v":123}]
[null,null,null,null,null,null,null,null,null,null,{"$f":"HLOOKUP($K$2,TABA[],ROW(K53),FALSE)","v":0}]
["3. Design Series","/B",null,"●","●","●","●","●","●","●",{"$f":"HLOOKUP($K$2,TABA[],ROW(K54),FALSE)","v":"●"}]
["4. Hydraulic Fluid Type","-","Mineral Oil, Nitrile seal + Viton Shaft Seal","●","●","●","●","●","●","●",{"$f":"HLOOKUP($K$2,TABA[],ROW(K55),FALSE)","v":"●"}]
[null,"V","Viton Seal Throughout","★","★","●","●","●","★","★",{"$f":"HLOOKUP($K$2,TABA[],ROW(K56),FALSE)","v":"●"}]
[null,"W","Water Glycol (Nitrile Seal & Nitrile Shaft Seal) *1","-",{"$f":"IF(OR('K3VL-Mobile'!$AT$8=0,'K3VL-Mobile'!$AT$8=\"R\"),\"★\",\"-\")","v":"-"},{"$f":"IF(OR('K3VL-Mobile'!$AT$8=0,'K3VL-Mobile'!$AT$8=\"R\"),\"★\",\"-\")","v":"-"},{"$f":"IF(OR('K3VL-Mobile'!$AT$8=0,'K3VL-Mobile'!$AT$8=\"R\"),\"★\",\"-\")","v":"-"},{"$f":"IF(OR('K3VL-Mobile'!$AT$8=0,'K3VL-Mobile'!$AT$8=\"R\"),\"★\",\"-\")","v":"-"},"-","-",{"$f":"HLOOKUP($K$2,TABA[],ROW(K57),FALSE)","v":"-"},{"$f":"VLOOKUP('K3VL-Mobile'!AT4,B56:K58,10,FALSE)","v":"●"}]
["5. Circuit Type",1,"Standard Type","●","●","●","●","●","●","●",{"$f":"HLOOKUP($K$2,TABA[],ROW(K58),FALSE)","v":"●"}]
["6. Through Drive & Porting",0,"Without Through Drive, Side Ported",{"$f":"IF('K3VL-Mobile'!$AT$19=\"L\",\"-\",\"●\")","v":"●"},{"$f":"IF('K3VL-Mobile'!$AT$19=\"L\",\"-\",\"●\")","v":"●"},{"$f":"IF('K3VL-Mobile'!$AT$19=\"L\",\"-\",\"●\")","v":"●"},{"$f":"IF('K3VL-Mobile'!$AT$19=\"L\",\"-\",\"●\")","v":"●"},{"$f":"IF('K3VL-Mobile'!$AT$19=\"L\",\"-\",\"●\")","v":"●"},{"$f":"IF('K3VL-Mobile'!$AT$19=\"L\",\"-\",\"●\")","v":"●"},"-",{"$f":"HLOOKUP($K$2,TABA[],ROW(K59),FALSE)","v":"●"}]
[null,"A","SAE-A Through Drive, Side Ported","●","●","●","●","●","●","●",{"$f":"HLOOKUP($K$2,TABA[],ROW(K60),FALSE)","v":"●"}]
[null,"B","SAE-B Through Drive, Side Ported","●","●","●","●","●","●","●",{"$f":"HLOOKUP($K$2,TABA[],ROW(K61),FALSE)","v":"●"}]
[null,"BB","SAE-BB Through Drive, Side Ported","-","●","●","●","●","●","●",{"$f":"HLOOKUP($K$2,TABA[],ROW(K62),FALSE)","v":"●"}]
[null,"C","SAE-C, 2 bolt, Through Drive, Side Ported","-","-","●","●","●","●","●",{"$f":"HLOOKUP($K$2,TABA[],ROW(K63),FALSE)","v":"●"}]
[null,"C4","SAE-C, 4 bolt, Through Drive, Side Ported","-","-","●","●","●","●","●",{"$f":"HLOOKUP($K$2,TABA[],ROW(K64),FALSE)","v":"●"}]
[null,"CC","SAE-CC, 2 bolt, Through Drive, Side Ported","-","-","-","●","●","●","●",{"$f":"HLOOKUP($K$2,TABA[],ROW(K65),FALSE)","v":"-"}]
[null,"D","SAE-D, Through Drive, Side Ported","-","-","-","●","●","●","●",{"$f":"HLOOKUP($K$2,TABA[],ROW(K66),FALSE)","v":"-"}]
[null,"E","SAE-E, Through Drive, Side Ported","-","-","-","-","-","●","●",{"$f":"HLOOKUP($K$2,TABA[],ROW(K67),FALSE)","v":"-"}]
[null,"N","With Through Drive Shaft, Without Coupling,　Closed with Steel Cover, Side Ported","●","●","●","●","●","●","●",{"$f":"HLOOKUP($K$2,TABA[],ROW(K68),FALSE)","v":"●"}]
[null,"R","Without Through Drive, Rear Ported","-","●","●","●","●","-","-",{"$f":"HLOOKUP($K$2,TABA[],ROW(K69),FALSE)","v":"●"},{"$f":"VLOOKUP('K3VL-Mobile'!AT8,B60:K70,10,FALSE)","v":"●"}]
["7. Direction of Rotation","R","Clockwise","●","●","●","●","●","●","●",{"$f":"HLOOKUP($K$2,TABA[],ROW(K70),FALSE)","v":"●"}]
[null,"L","Counterclockwise","●","●","●","●","●","●","●",{"$f":"HLOOKUP($K$2,TABA[],ROW(K71),FALSE)","v":"●"}]
["8. Mounting Flange & Shaft","K","SAE Key & SAE Mount","●","●","●","●","●","●","-",{"$f":"HLOOKUP($K$2,TABA[],ROW(K72),FALSE)","v":"●"}]
[null,"M","ISO Key & ISO Mount","-","●","●","●","●","-","-",{"$f":"HLOOKUP($K$2,TABA[],ROW(K73),FALSE)","v":"●"}]
[null,"S","SAE Spline & SAE Mount","●","●","●","●","●","●","●",{"$f":"HLOOKUP($K$2,TABA[],ROW(K74),FALSE)","v":"●"}]
[null,"R","SAE-C Spline & SAE-D Mount","-","-","-","●","●","-","-",{"$f":"HLOOKUP($K$2,TABA[],ROW(K75),FALSE)","v":"-"}]
[null,"C","SAE-C Spline & SAE-C2 Mount","-","-","-","●","●","-","-",{"$f":"HLOOKUP($K$2,TABA[],ROW(K76),FALSE)","v":"-"}]
[null,"X","SAE-C Key & SAE-C2 Mount","-","-","-","●","●","-","-",{"$f":"HLOOKUP($K$2,TABA[],ROW(K77),FALSE)","v":"-"}]
[null,"Y","SAE-CC Key & SAE-C2 Mount","-","-","-","●","●","-","-",{"$f":"HLOOKUP($K$2,TABA[],ROW(K78),FALSE)","v":"-"}]
[null,"W","SAE-CC Spline & SAE-C2 Mount","-","-","-","●","●","-","-",{"$f":"HLOOKUP($K$2,TABA[],ROW(K79),FALSE)","v":"-"}]
[null,"F","SAE-F Spline & SAE-E Mount","-","-","-","-","-","●","●",{"$f":"HLOOKUP($K$2,TABA[],ROW(K80),FALSE)","v":"-"}]
[null,"T","SAE-B Spline & SAE-B, 2 Bolt Mount (K3VL45), SAE-CC Spline & SAE-D, 4 Bolt Mount (K3VL112/140)","-","◆","-","◆","◆","-","-",{"$f":"HLOOKUP($K$2,TABA[],ROW(K81),FALSE)","v":"-"},{"$f":"VLOOKUP('K3VL-Mobile'!AT21,B73:K82,10,FALSE)","v":"●"}]
[null,null,null,null,null,null,null,null,null,null,{"$f":"HLOOKUP($K$2,TABA[],ROW(K82),FALSE)","v":0}]
["9. Porting Threads","M","Metric Threads","●","●","●","●","●","●","●",{"$f":"HLOOKUP($K$2,TABA[],ROW(K83),FALSE)","v":"●"}]
[null,"S","UNC Thread (Not Available with \"M\" ISO Key Shaft & Mount)",{"$f":"IF('K3VL-Mobile'!$AT$21=\"M\",\"-\",\"●\")","v":"●"},{"$f":"IF('K3VL-Mobile'!$AT$21=\"M\",\"-\",\"●\")","v":"●"},{"$f":"IF('K3VL-Mobile'!$AT$21=\"M\",\"-\",\"◆\")","v":"◆"},{"$f":"IF('K3VL-Mobile'!$AT$21=\"M\",\"-\",\"◆\")","v":"◆"},{"$f":"IF('K3VL-Mobile'!$AT$21=\"M\",\"-\",\"◆\")","v":"◆"},{"$f":"IF('K3VL-Mobile'!$AT$21=\"M\",\"-\",\"◆\")","v":"◆"},{"$f":"IF('K3VL-Mobile'!$AT$21=\"M\",\"-\",\"◆\")","v":"◆"},{"$f":"HLOOKUP($K$2,TABA[],ROW(K84),FALSE)","v":"◆"},{"$f":"VLOOKUP('K3VL-Mobile'!AT31,B84:K85,10,FALSE)","v":"●"}]
[null,null,null,null,null,null,null,null,null,null,{"$f":"HLOOKUP($K$2,TABA[],ROW(K85),FALSE)","v":0}]
["10. Regulator Type","L0","Load Sense + Pressure Cut-Off (With LS Bleed)","●","●","●","●","●","●","●",{"$f":"HLOOKUP($K$2,TABA[],ROW(K86),FALSE)","v":"●"}]
[null,"L1","Load Sense + Pressure Cut-Off (With LS Bleed Blocked)","●","●","●","●","●","●","●",{"$f":"HLOOKUP($K$2,TABA[],ROW(K87),FALSE)","v":"●"}]
[null,"LM","Load Sense & Intergral Unload (Normally Closed)","-",{"$f":"IF('K3VL-Mobile'!$AT$70=\"-L500\",\"-\",\"●\")","v":"●"},{"$f":"IF('K3VL-Mobile'!$AT$70=\"-L500\",\"-\",\"●\")","v":"●"},{"$f":"IF('K3VL-Mobile'!$AT$70=\"-L500\",\"-\",\"●\")","v":"●"},{"$f":"IF('K3VL-Mobile'!$AT$70=\"-L500\",\"-\",\"●\")","v":"●"},{"$f":"IF('K3VL-Mobile'!$AT$70=\"-L500\",\"-\",\"●\")","v":"●"},{"$f":"IF('K3VL-Mobile'!$AT$70=\"-L500\",\"-\",\"●\")","v":"●"},{"$f":"HLOOKUP($K$2,TABA[],ROW(K88),FALSE)","v":"●"}]
[null,"LN","Load Sense & Intergral Unload (Normally Open)","-",{"$f":"IF('K3VL-Mobile'!$AT$70=\"-L500\",\"-\",\"●\")","v":"●"},{"$f":"IF('K3VL-Mobile'!$AT$70=\"-L500\",\"-\",\"●\")","v":"●"},{"$f":"IF('K3VL-Mobile'!$AT$70=\"-L500\",\"-\",\"●\")","v":"●"},{"$f":"IF('K3VL-Mobile'!$AT$70=\"-L500\",\"-\",\"●\")","v":"●"},{"$f":"IF('K3VL-Mobile'!$AT$70=\"-L500\",\"-\",\"●\")","v":"●"},{"$f":"IF('K3VL-Mobile'!$AT$70=\"-L500\",\"-\",\"●\")","v":"●"},{"$f":"HLOOKUP($K$2,TABA[],ROW(K89),FALSE)","v":"●"}]
[null,"LV","Load Sense & Intergral Proportional Relief","-",{"$f":"IF('K3VL-Mobile'!$AT$70=\"-L500\",\"-\",\"●\")","v":"●"},{"$f":"IF('K3VL-Mobile'!$AT$70=\"-L500\",\"-\",\"●\")","v":"●"},{"$f":"IF('K3VL-Mobile'!$AT$70=\"-L500\",\"-\",\"●\")","v":"●"},{"$f":"IF('K3VL-Mobile'!$AT$70=\"-L500\",\"-\",\"●\")","v":"●"},{"$f":"IF('K3VL-Mobile'!$AT$70=\"-L500\",\"-\",\"●\")","v":"●"},{"$f":"IF('K3VL-Mobile'!$AT$70=\"-L500\",\"-\",\"●\")","v":"●"},{"$f":"HLOOKUP($K$2,TABA[],ROW(K90),FALSE)","v":"●"}]
[null,"LV2","Load Sense & Intergral Proportional Relief","-",{"$f":"IF('K3VL-Mobile'!$AT$70=\"-L500\",\"-\",\"●\")","v":"●"},{"$f":"IF('K3VL-Mobile'!$AT$70=\"-L500\",\"-\",\"●\")","v":"●"},{"$f":"IF('K3VL-Mobile'!$AT$70=\"-L500\",\"-\",\"●\")","v":"●"},{"$f":"IF('K3VL-Mobile'!$AT$70=\"-L500\",\"-\",\"●\")","v":"●"},{"$f":"IF('K3VL-Mobile'!$AT$70=\"-L500\",\"-\",\"●\")","v":"●"},{"$f":"IF('K3VL-Mobile'!$AT$70=\"-L500\",\"-\",\"●\")","v":"●"},{"$f":"HLOOKUP($K$2,TABA[],ROW(K91),FALSE)","v":"●"}]
[null,"P0","Pressure Cut-Off","●","●","●","●","●","●","●",{"$f":"HLOOKUP($K$2,TABA[],ROW(K92),FALSE)","v":"●"}]
[null,"PM","Pressure Cut-Off & Intergral Unload (Normally Closed)","-",{"$f":"IF('K3VL-Mobile'!$AT$70=\"-L500\",\"-\",\"●\")","v":"●"},{"$f":"IF('K3VL-Mobile'!$AT$70=\"-L500\",\"-\",\"●\")","v":"●"},{"$f":"IF('K3VL-Mobile'!$AT$70=\"-L500\",\"-\",\"●\")","v":"●"},{"$f":"IF('K3VL-Mobile'!$AT$70=\"-L500\",\"-\",\"●\")","v":"●"},{"$f":"IF('K3VL-Mobile'!$AT$70=\"-L500\",\"-\",\"●\")","v":"●"},{"$f":"IF('K3VL-Mobile'!$AT$70=\"-L500\",\"-\",\"●\")","v":"●"},{"$f":"HLOOKUP($K$2,TABA[],ROW(K93),FALSE)","v":"●"}]
[null,"PN","Pressure Cut-Off & Intergral Unload (Normally Open)","-",{"$f":"IF('K3VL-Mobile'!$AT$70=\"-L500\",\"-\",\"●\")","v":"●"},{"$f":"IF('K3VL-Mobile'!$AT$70=\"-L500\",\"-\",\"●\")","v":"●"},{"$f":"IF('K3VL-Mobile'!$AT$70=\"-L500\",\"-\",\"●\")","v":"●"},{"$f":"IF('K3VL-Mobile'!$AT$70=\"-L500\",\"-\",\"●\")","v":"●"},{"$f":"IF('K3VL-Mobile'!$AT$70=\"-L500\",\"-\",\"●\")","v":"●"},{"$f":"IF('K3VL-Mobile'!$AT$70=\"-L500\",\"-\",\"●\")","v":"●"},{"$f":"HLOOKUP($K$2,TABA[],ROW(K94),FALSE)","v":"●"}]
[null,"PV","Pressure Cut-Off & Intergral Proportional Relief","-",{"$f":"IF('K3VL-Mobile'!$AT$70=\"-L500\",\"-\",\"●\")","v":"●"},{"$f":"IF('K3VL-Mobile'!$AT$70=\"-L500\",\"-\",\"●\")","v":"●"},{"$f":"IF('K3VL-Mobile'!$AT$70=\"-L500\",\"-\",\"●\")","v":"●"},{"$f":"IF('K3VL-Mobile'!$AT$70=\"-L500\",\"-\",\"●\")","v":"●"},{"$f":"IF('K3VL-Mobile'!$AT$70=\"-L500\",\"-\",\"●\")","v":"●"},{"$f":"IF('K3VL-Mobile'!$AT$70=\"-L500\",\"-\",\"●\")","v":"●"},{"$f":"HLOOKUP($K$2,TABA[],ROW(K95),FALSE)","v":"●"}]
[null,"PV2","Pressure Cut-Off & Intergral Proportional Relief","-",{"$f":"IF('K3VL-Mobile'!$AT$70=\"-L500\",\"-\",\"●\")","v":"●"},{"$f":"IF('K3VL-Mobile'!$AT$70=\"-L500\",\"-\",\"●\")","v":"●"},{"$f":"IF('K3VL-Mobile'!$AT$70=\"-L500\",\"-\",\"●\")","v":"●"},{"$f":"IF('K3VL-Mobile'!$AT$70=\"-L500\",\"-\",\"●\")","v":"●"},{"$f":"IF('K3VL-Mobile'!$AT$70=\"-L500\",\"-\",\"●\")","v":"●"},{"$f":"IF('K3VL-Mobile'!$AT$70=\"-L500\",\"-\",\"●\")","v":"●"},{"$f":"HLOOKUP($K$2,TABA[],ROW(K96),FALSE)","v":"●"}]
[null,"PR","Inverse Proportional Electronic Pressure Control (Only with 24V DC)",{"$f":"IF('K3VL-Mobile'!$AT$70=\"-L500\",\"-\",\"★\")","v":"★"},{"$f":"IF('K3VL-Mobile'!$AT$70=\"-L500\",\"-\",\"★\")","v":"★"},{"$f":"IF('K3VL-Mobile'!$AT$70=\"-L500\",\"-\",\"★\")","v":"★"},"-","-","-","-",{"$f":"HLOOKUP($K$2,TABA[],ROW(K97),FALSE)","v":"★"},{"$f":"VLOOKUP('K3VL-Mobile'!AT34,B87:K98,10,FALSE)","v":"●"}]
["11. Unloader Solenoid","Blank","For all other options except PN/PM/LN/LM/PV2/LV2","●",{"$f":"IF(OR('K3VL-Mobile'!$AT$34=\"L0\",'K3VL-Mobile'!$AT$34=\"L1\",'K3VL-Mobile'!$AT$34=\"P0\",'K3VL-Mobile'!$AT$34=\"PV\",'K3VL-Mobile'!$AT$34=\"LV\",'K3VL-Mobile'!$AT$34=\"PR\"),\"●\",\"-\")","v":"●"},{"$f":"IF(OR('K3VL-Mobile'!$AT$34=\"L0\",'K3VL-Mobile'!$AT$34=\"L1\",'K3VL-Mobile'!$AT$34=\"P0\",'K3VL-Mobile'!$AT$34=\"PV\",'K3VL-Mobile'!$AT$34=\"LV\",'K3VL-Mobile'!$AT$34=\"PR\"),\"●\",\"-\")","v":"●"},{"$f":"IF(OR('K3VL-Mobile'!$AT$34=\"L0\",'K3VL-Mobile'!$AT$34=\"L1\",'K3VL-Mobile'!$AT$34=\"P0\",'K3VL-Mobile'!$AT$34=\"PV\",'K3VL-Mobile'!$AT$34=\"LV\",'K3VL-Mobile'!$AT$34=\"PR\"),\"●\",\"-\")","v":"●"},{"$f":"IF(OR('K3VL-Mobile'!$AT$34=\"L0\",'K3VL-Mobile'!$AT$34=\"L1\",'K3VL-Mobile'!$AT$34=\"P0\",'K3VL-Mobile'!$AT$34=\"PV\",'K3VL-Mobile'!$AT$34=\"LV\",'K3VL-Mobile'!$AT$34=\"PR\"),\"●\",\"-\")","v":"●"},{"$f":"IF(OR('K3VL-Mobile'!$AT$34=\"L0\",'K3VL-Mobile'!$AT$34=\"L1\",'K3VL-Mobile'!$AT$34=\"P0\",'K3VL-Mobile'!$AT$34=\"PV\",'K3VL-Mobile'!$AT$34=\"LV\",'K3VL-Mobile'!$AT$34=\"PR\"),\"●\",\"-\")","v":"●"},{"$f":"IF(OR('K3VL-Mobile'!$AT$34=\"L0\",'K3VL-Mobile'!$AT$34=\"L1\",'K3VL-Mobile'!$AT$34=\"P0\",'K3VL-Mobile'!$AT$34=\"PV\",'K3VL-Mobile'!$AT$34=\"LV\",'K3VL-Mobile'!$AT$34=\"PR\"),\"●\",\"-\")","v":"●"},{"$f":"HLOOKUP($K$2,TABA[],ROW(K98),FALSE)","v":"●"}]
[null,"115A","115V AC, 50, 60 Hz - DIN 43550 Plug","-",{"$f":"IF(OR('K3VL-Mobile'!$AT$34=\"L0\",'K3VL-Mobile'!$AT$34=\"L1\",'K3VL-Mobile'!$AT$34=\"P0\",'K3VL-Mobile'!$AT$34=\"PV\",'K3VL-Mobile'!$AT$34=\"LV\",'K3VL-Mobile'!$AT$34=\"PR\"),\"-\",\"★\")","v":"-"},{"$f":"IF(OR('K3VL-Mobile'!$AT$34=\"L0\",'K3VL-Mobile'!$AT$34=\"L1\",'K3VL-Mobile'!$AT$34=\"P0\",'K3VL-Mobile'!$AT$34=\"PV\",'K3VL-Mobile'!$AT$34=\"LV\",'K3VL-Mobile'!$AT$34=\"PR\"),\"-\",\"★\")","v":"-"},{"$f":"IF(OR('K3VL-Mobile'!$AT$34=\"L0\",'K3VL-Mobile'!$AT$34=\"L1\",'K3VL-Mobile'!$AT$34=\"P0\",'K3VL-Mobile'!$AT$34=\"PV\",'K3VL-Mobile'!$AT$34=\"LV\",'K3VL-Mobile'!$AT$34=\"PR\"),\"-\",\"★\")","v":"-"},{"$f":"IF(OR('K3VL-Mobile'!$AT$34=\"L0\",'K3VL-Mobile'!$AT$34=\"L1\",'K3VL-Mobile'!$AT$34=\"P0\",'K3VL-Mobile'!$AT$34=\"PV\",'K3VL-Mobile'!$AT$34=\"LV\",'K3VL-Mobile'!$AT$34=\"PR\"),\"-\",\"★\")","v":"-"},{"$f":"IF(OR('K3VL-Mobile'!$AT$34=\"L0\",'K3VL-Mobile'!$AT$34=\"L1\",'K3VL-Mobile'!$AT$34=\"P0\",'K3VL-Mobile'!$AT$34=\"PV\",'K3VL-Mobile'!$AT$34=\"LV\",'K3VL-Mobile'!$AT$34=\"PR\"),\"-\",\"★\")","v":"-"},{"$f":"IF(OR('K3VL-Mobile'!$AT$34=\"L0\",'K3VL-Mobile'!$AT$34=\"L1\",'K3VL-Mobile'!$AT$34=\"P0\",'K3VL-Mobile'!$AT$34=\"PV\",'K3VL-Mobile'!$AT$34=\"LV\",'K3VL-Mobile'!$AT$34=\"PR\"),\"-\",\"★\")","v":"-"},{"$f":"HLOOKUP($K$2,TABA[],ROW(K99),FALSE)","v":"-"}]
[null,"230A","230V AC, 50, 60 Hz - DIN 43550 Plug","-",{"$f":"IF(OR('K3VL-Mobile'!$AT$34=\"L0\",'K3VL-Mobile'!$AT$34=\"L1\",'K3VL-Mobile'!$AT$34=\"P0\",'K3VL-Mobile'!$AT$34=\"PV\",'K3VL-Mobile'!$AT$34=\"LV\",'K3VL-Mobile'!$AT$34=\"PR\"),\"-\",\"★\")","v":"-"},{"$f":"IF(OR('K3VL-Mobile'!$AT$34=\"L0\",'K3VL-Mobile'!$AT$34=\"L1\",'K3VL-Mobile'!$AT$34=\"P0\",'K3VL-Mobile'!$AT$34=\"PV\",'K3VL-Mobile'!$AT$34=\"LV\",'K3VL-Mobile'!$AT$34=\"PR\"),\"-\",\"★\")","v":"-"},{"$f":"IF(OR('K3VL-Mobile'!$AT$34=\"L0\",'K3VL-Mobile'!$AT$34=\"L1\",'K3VL-Mobile'!$AT$34=\"P0\",'K3VL-Mobile'!$AT$34=\"PV\",'K3VL-Mobile'!$AT$34=\"LV\",'K3VL-Mobile'!$AT$34=\"PR\"),\"-\",\"★\")","v":"-"},{"$f":"IF(OR('K3VL-Mobile'!$AT$34=\"L0\",'K3VL-Mobile'!$AT$34=\"L1\",'K3VL-Mobile'!$AT$34=\"P0\",'K3VL-Mobile'!$AT$34=\"PV\",'K3VL-Mobile'!$AT$34=\"LV\",'K3VL-Mobile'!$AT$34=\"PR\"),\"-\",\"★\")","v":"-"},{"$f":"IF(OR('K3VL-Mobile'!$AT$34=\"L0\",'K3VL-Mobile'!$AT$34=\"L1\",'K3VL-Mobile'!$AT$34=\"P0\",'K3VL-Mobile'!$AT$34=\"PV\",'K3VL-Mobile'!$AT$34=\"LV\",'K3VL-Mobile'!$AT$34=\"PR\"),\"-\",\"★\")","v":"-"},{"$f":"IF(OR('K3VL-Mobile'!$AT$34=\"L0\",'K3VL-Mobile'!$AT$34=\"L1\",'K3VL-Mobile'!$AT$34=\"P0\",'K3VL-Mobile'!$AT$34=\"PV\",'K3VL-Mobile'!$AT$34=\"LV\",'K3VL-Mobile'!$AT$34=\"PR\"),\"-\",\"★\")","v":"-"},{"$f":"HLOOKUP($K$2,TABA[],ROW(K100),FALSE)","v":"-"}]
[null,"12D","12V DC - DIN 43550 Plug","-",{"$f":"IF(OR('K3VL-Mobile'!$AT$34=\"L0\",'K3VL-Mobile'!$AT$34=\"L1\",'K3VL-Mobile'!$AT$34=\"P0\",'K3VL-Mobile'!$AT$34=\"PV\",'K3VL-Mobile'!$AT$34=\"LV\",'K3VL-Mobile'!$AT$34=\"PR\"),\"-\",\"★\")","v":"-"},{"$f":"IF(OR('K3VL-Mobile'!$AT$34=\"L0\",'K3VL-Mobile'!$AT$34=\"L1\",'K3VL-Mobile'!$AT$34=\"P0\",'K3VL-Mobile'!$AT$34=\"PV\",'K3VL-Mobile'!$AT$34=\"LV\",'K3VL-Mobile'!$AT$34=\"PR\"),\"-\",\"★\")","v":"-"},{"$f":"IF(OR('K3VL-Mobile'!$AT$34=\"L0\",'K3VL-Mobile'!$AT$34=\"L1\",'K3VL-Mobile'!$AT$34=\"P0\",'K3VL-Mobile'!$AT$34=\"PV\",'K3VL-Mobile'!$AT$34=\"LV\",'K3VL-Mobile'!$AT$34=\"PR\"),\"-\",\"★\")","v":"-"},{"$f":"IF(OR('K3VL-Mobile'!$AT$34=\"L0\",'K3VL-Mobile'!$AT$34=\"L1\",'K3VL-Mobile'!$AT$34=\"P0\",'K3VL-Mobile'!$AT$34=\"PV\",'K3VL-Mobile'!$AT$34=\"LV\",'K3VL-Mobile'!$AT$34=\"PR\"),\"-\",\"★\")","v":"-"},{"$f":"IF(OR('K3VL-Mobile'!$AT$34=\"L0\",'K3VL-Mobile'!$AT$34=\"L1\",'K3VL-Mobile'!$AT$34=\"P0\",'K3VL-Mobile'!$AT$34=\"PV\",'K3VL-Mobile'!$AT$34=\"LV\",'K3VL-Mobile'!$AT$34=\"PR\"),\"-\",\"★\")","v":"-"},{"$f":"IF(OR('K3VL-Mobile'!$AT$34=\"L0\",'K3VL-Mobile'!$AT$34=\"L1\",'K3VL-Mobile'!$AT$34=\"P0\",'K3VL-Mobile'!$AT$34=\"PV\",'K3VL-Mobile'!$AT$34=\"LV\",'K3VL-Mobile'!$AT$34=\"PR\"),\"-\",\"★\")","v":"-"},{"$f":"HLOOKUP($K$2,TABA[],ROW(K101),FALSE)","v":"-"}]
[null,"24D","24V DC - DIN 43550 Plug","-",{"$f":"IF(OR('K3VL-Mobile'!$AT$34=\"L0\",'K3VL-Mobile'!$AT$34=\"L1\",'K3VL-Mobile'!$AT$34=\"P0\",'K3VL-Mobile'!$AT$34=\"PV\",'K3VL-Mobile'!$AT$34=\"LV\",'K3VL-Mobile'!$AT$34=\"PR\"),\"-\",\"★\")","v":"-"},{"$f":"IF(OR('K3VL-Mobile'!$AT$34=\"L0\",'K3VL-Mobile'!$AT$34=\"L1\",'K3VL-Mobile'!$AT$34=\"P0\",'K3VL-Mobile'!$AT$34=\"PV\",'K3VL-Mobile'!$AT$34=\"LV\",'K3VL-Mobile'!$AT$34=\"PR\"),\"-\",\"★\")","v":"-"},{"$f":"IF(OR('K3VL-Mobile'!$AT$34=\"L0\",'K3VL-Mobile'!$AT$34=\"L1\",'K3VL-Mobile'!$AT$34=\"P0\",'K3VL-Mobile'!$AT$34=\"PV\",'K3VL-Mobile'!$AT$34=\"LV\",'K3VL-Mobile'!$AT$34=\"PR\"),\"-\",\"★\")","v":"-"},{"$f":"IF(OR('K3VL-Mobile'!$AT$34=\"L0\",'K3VL-Mobile'!$AT$34=\"L1\",'K3VL-Mobile'!$AT$34=\"P0\",'K3VL-Mobile'!$AT$34=\"PV\",'K3VL-Mobile'!$AT$34=\"LV\",'K3VL-Mobile'!$AT$34=\"PR\"),\"-\",\"★\")","v":"-"},{"$f":"IF(OR('K3VL-Mobile'!$AT$34=\"L0\",'K3VL-Mobile'!$AT$34=\"L1\",'K3VL-Mobile'!$AT$34=\"P0\",'K3VL-Mobile'!$AT$34=\"PV\",'K3VL-Mobile'!$AT$34=\"LV\",'K3VL-Mobile'!$AT$34=\"PR\"),\"-\",\"★\")","v":"-"},{"$f":"IF(OR('K3VL-Mobile'!$AT$34=\"L0\",'K3VL-Mobile'!$AT$34=\"L1\",'K3VL-Mobile'!$AT$34=\"P0\",'K3VL-Mobile'!$AT$34=\"PV\",'K3VL-Mobile'!$AT$34=\"LV\",'K3VL-Mobile'!$AT$34=\"PR\"),\"-\",\"★\")","v":"-"},{"$f":"HLOOKUP($K$2,TABA[],ROW(K102),FALSE)","v":"-"},{"$f":"VLOOKUP('K3VL-Mobile'!AT47,B99:K103,10,FALSE)","v":"●"}]
["12. Additional Control Options","Blank",null,"●",{"$f":"IF(OR('K3VL-Mobile'!$AT$34=\"LV2\",'K3VL-Mobile'!$AT$34=\"PV2\"),\"-\",\"●\")","v":"●"},{"$f":"IF(OR('K3VL-Mobile'!$AT$34=\"LV2\",'K3VL-Mobile'!$AT$34=\"PV2\"),\"-\",\"●\")","v":"●"},{"$f":"IF(OR('K3VL-Mobile'!$AT$34=\"LV2\",'K3VL-Mobile'!$AT$34=\"PV2\"),\"-\",\"●\")","v":"●"},{"$f":"IF(OR('K3VL-Mobile'!$AT$34=\"LV2\",'K3VL-Mobile'!$AT$34=\"PV2\"),\"-\",\"●\")","v":"●"},{"$f":"IF(OR('K3VL-Mobile'!$AT$34=\"LV2\",'K3VL-Mobile'!$AT$34=\"PV2\"),\"-\",\"●\")","v":"●"},{"$f":"IF(OR('K3VL-Mobile'!$AT$34=\"LV2\",'K3VL-Mobile'!$AT$34=\"PV2\"),\"-\",\"●\")","v":"●"},{"$f":"HLOOKUP($K$2,TABA[],ROW(K103),FALSE)","v":"●"}]
[null,"A","With Deutsch Connector (Only for PV2/LV2)","-",{"$f":"IF(OR('K3VL-Mobile'!$AT$34=\"LV2\",'K3VL-Mobile'!$AT$34=\"PV2\"),\"●\",\"-\")","v":"-"},{"$f":"IF(OR('K3VL-Mobile'!$AT$34=\"LV2\",'K3VL-Mobile'!$AT$34=\"PV2\"),\"●\",\"-\")","v":"-"},{"$f":"IF(OR('K3VL-Mobile'!$AT$34=\"LV2\",'K3VL-Mobile'!$AT$34=\"PV2\"),\"●\",\"-\")","v":"-"},{"$f":"IF(OR('K3VL-Mobile'!$AT$34=\"LV2\",'K3VL-Mobile'!$AT$34=\"PV2\"),\"●\",\"-\")","v":"-"},{"$f":"IF(OR('K3VL-Mobile'!$AT$34=\"LV2\",'K3VL-Mobile'!$AT$34=\"PV2\"),\"●\",\"-\")","v":"-"},{"$f":"IF(OR('K3VL-Mobile'!$AT$34=\"LV2\",'K3VL-Mobile'!$AT$34=\"PV2\"),\"●\",\"-\")","v":"-"},{"$f":"HLOOKUP($K$2,TABA[],ROW(K104),FALSE)","v":"-"}]
[null,"B","With DIN Connector (Only for PV2/LV2)","-",{"$f":"IF(OR('K3VL-Mobile'!$AT$34=\"LV2\",'K3VL-Mobile'!$AT$34=\"PV2\"),\"●\",\"-\")","v":"-"},{"$f":"IF(OR('K3VL-Mobile'!$AT$34=\"LV2\",'K3VL-Mobile'!$AT$34=\"PV2\"),\"●\",\"-\")","v":"-"},{"$f":"IF(OR('K3VL-Mobile'!$AT$34=\"LV2\",'K3VL-Mobile'!$AT$34=\"PV2\"),\"●\",\"-\")","v":"-"},{"$f":"IF(OR('K3VL-Mobile'!$AT$34=\"LV2\",'K3VL-Mobile'!$AT$34=\"PV2\"),\"●\",\"-\")","v":"-"},{"$f":"IF(OR('K3VL-Mobile'!$AT$34=\"LV2\",'K3VL-Mobile'!$AT$34=\"PV2\"),\"●\",\"-\")","v":"-"},{"$f":"IF(OR('K3VL-Mobile'!$AT$34=\"LV2\",'K3VL-Mobile'!$AT$34=\"PV2\"),\"●\",\"-\")","v":"-"},{"$f":"HLOOKUP($K$2,TABA[],ROW(K105),FALSE)","v":"-"},{"$f":"VLOOKUP('K3VL-Mobile'!AT52,B104:K106,10,FALSE)","v":"●"}]
["13. Additional Control Options","Blank","Without Additional Control","●","●","●","●","●","●","●",{"$f":"HLOOKUP($K$2,TABA[],ROW(K106),FALSE)","v":"●"}]
[null,"/1","Torque Limiter (with provision for torque limiter or displacement control)","-",{"$f":"IF('K3VL-Mobile'!$AT$34=\"PR\",\"-\",\"●\")","v":"●"},{"$f":"IF('K3VL-Mobile'!$AT$34=\"PR\",\"-\",\"●\")","v":"●"},{"$f":"IF('K3VL-Mobile'!$AT$34=\"PR\",\"-\",\"●\")","v":"●"},{"$f":"IF('K3VL-Mobile'!$AT$34=\"PR\",\"-\",\"●\")","v":"●"},{"$f":"IF('K3VL-Mobile'!$AT$34=\"PR\",\"-\",\"●\")","v":"●"},{"$f":"IF('K3VL-Mobile'!$AT$34=\"PR\",\"-\",\"●\")","v":"●"},{"$f":"HLOOKUP($K$2,TABA[],ROW(K107),FALSE)","v":"●"}]
[null,"/2","Torque Limiter & Hydraulic Power Shift","-","-",{"$f":"IF('K3VL-Mobile'!$AT$34=\"PR\",\"-\",IF('K3VL-Mobile'!$AT$70=\"-L500\",\"-\",\"●\"))","v":"●"},{"$f":"IF('K3VL-Mobile'!$AT$34=\"PR\",\"-\",IF('K3VL-Mobile'!$AT$70=\"-L500\",\"-\",\"●\"))","v":"●"},{"$f":"IF('K3VL-Mobile'!$AT$34=\"PR\",\"-\",IF('K3VL-Mobile'!$AT$70=\"-L500\",\"-\",\"●\"))","v":"●"},{"$f":"IF('K3VL-Mobile'!$AT$34=\"PR\",\"-\",IF('K3VL-Mobile'!$AT$70=\"-L500\",\"-\",\"●\"))","v":"●"},{"$f":"IF('K3VL-Mobile'!$AT$34=\"PR\",\"-\",IF('K3VL-Mobile'!$AT$70=\"-L500\",\"-\",\"●\"))","v":"●"},{"$f":"HLOOKUP($K$2,TABA[],ROW(K108),FALSE)","v":"●"}]
[null,"/3","Torque Limiter & Electrical Power Shift, 24V DC - Deutsch Connector","-","-",{"$f":"IF('K3VL-Mobile'!$AT$34=\"PR\",\"-\",IF('K3VL-Mobile'!$AT$70=\"-L500\",\"-\",\"●\"))","v":"●"},{"$f":"IF('K3VL-Mobile'!$AT$34=\"PR\",\"-\",IF('K3VL-Mobile'!$AT$70=\"-L500\",\"-\",\"●\"))","v":"●"},{"$f":"IF('K3VL-Mobile'!$AT$34=\"PR\",\"-\",IF('K3VL-Mobile'!$AT$70=\"-L500\",\"-\",\"●\"))","v":"●"},{"$f":"IF('K3VL-Mobile'!$AT$34=\"PR\",\"-\",IF('K3VL-Mobile'!$AT$70=\"-L500\",\"-\",\"●\"))","v":"●"},{"$f":"IF('K3VL-Mobile'!$AT$34=\"PR\",\"-\",IF('K3VL-Mobile'!$AT$70=\"-L500\",\"-\",\"●\"))","v":"●"},{"$f":"HLOOKUP($K$2,TABA[],ROW(K109),FALSE)","v":"●"},{"$f":"VLOOKUP('K3VL-Mobile'!AT55,B107:K110,10,FALSE)","v":"●"}]
["14. Torque Limiting & Displacement Control","Blank","Without Additional Control","●","●","●","●","●","●","●",{"$f":"HLOOKUP($K$2,TABA[],ROW(K110),FALSE)","v":"●"}]
[null,"-00","Blanking Plate (only for ‘/1’ type)","-",{"$f":"IF('K3VL-Mobile'!$AT$55=\"/1\",\"●\",\"-\")","v":"-"},{"$f":"IF('K3VL-Mobile'!$AT$55=\"/1\",\"●\",\"-\")","v":"-"},{"$f":"IF('K3VL-Mobile'!$AT$55=\"/1\",\"●\",\"-\")","v":"-"},{"$f":"IF('K3VL-Mobile'!$AT$55=\"/1\",\"●\",\"-\")","v":"-"},{"$f":"IF('K3VL-Mobile'!$AT$55=\"/1\",\"●\",\"-\")","v":"-"},{"$f":"IF('K3VL-Mobile'!$AT$55=\"/1\",\"●\",\"-\")","v":"-"},{"$f":"HLOOKUP($K$2,TABA[],ROW(K111),FALSE)","v":"-"}]
[null,"-S*","Low Setting Range (available for ‘/1’ type only)","-",{"$f":"IF('K3VL-Mobile'!$AT$55=\"/1\",\"●\",\"-\")","v":"-"},{"$f":"IF('K3VL-Mobile'!$AT$55=\"/1\",\"●\",\"-\")","v":"-"},{"$f":"IF('K3VL-Mobile'!$AT$55=\"/1\",\"●\",\"-\")","v":"-"},{"$f":"IF('K3VL-Mobile'!$AT$55=\"/1\",\"●\",\"-\")","v":"-"},{"$f":"IF('K3VL-Mobile'!$AT$55=\"/1\",\"●\",\"-\")","v":"-"},{"$f":"IF('K3VL-Mobile'!$AT$55=\"/1\",\"●\",\"-\")","v":"-"},{"$f":"HLOOKUP($K$2,TABA[],ROW(K112),FALSE)","v":"-"}]
[null,"-L*","Low Setting Range (available for ‘/1’ type only)","-",{"$f":"IF('K3VL-Mobile'!$AT$55=\"/1\",\"●\",\"-\")","v":"-"},{"$f":"IF('K3VL-Mobile'!$AT$55=\"/1\",\"●\",\"-\")","v":"-"},{"$f":"IF('K3VL-Mobile'!$AT$55=\"/1\",\"●\",\"-\")","v":"-"},{"$f":"IF('K3VL-Mobile'!$AT$55=\"/1\",\"●\",\"-\")","v":"-"},{"$f":"IF('K3VL-Mobile'!$AT$55=\"/1\",\"●\",\"-\")","v":"-"},{"$f":"IF('K3VL-Mobile'!$AT$55=\"/1\",\"●\",\"-\")","v":"-"},{"$f":"HLOOKUP($K$2,TABA[],ROW(K113),FALSE)","v":"-"}]
[null,"-M*","Medium Setting Range (available for ‘/1’ type only)","-",{"$f":"IF('K3VL-Mobile'!$AT$55=\"/1\",\"●\",\"-\")","v":"-"},{"$f":"IF('K3VL-Mobile'!$AT$55=\"/1\",\"●\",\"-\")","v":"-"},{"$f":"IF('K3VL-Mobile'!$AT$55=\"/1\",\"●\",\"-\")","v":"-"},{"$f":"IF('K3VL-Mobile'!$AT$55=\"/1\",\"●\",\"-\")","v":"-"},{"$f":"IF('K3VL-Mobile'!$AT$55=\"/1\",\"●\",\"-\")","v":"-"},{"$f":"IF('K3VL-Mobile'!$AT$55=\"/1\",\"●\",\"-\")","v":"-"},{"$f":"HLOOKUP($K$2,TABA[],ROW(K114),FALSE)","v":"-"}]
[null,"-H*","High Setting Range (available for all ‘/1’, ‘/2’ & ‘/3’ options)","-",{"$f":"IF(OR('K3VL-Mobile'!$AT$55=\"/1\",'K3VL-Mobile'!$AT$55=\"/2\",'K3VL-Mobile'!$AT$55=\"/3\"),\"●\",\"-\")","v":"-"},{"$f":"IF(OR('K3VL-Mobile'!$AT$55=\"/1\",'K3VL-Mobile'!$AT$55=\"/2\",'K3VL-Mobile'!$AT$55=\"/3\"),\"●\",\"-\")","v":"-"},{"$f":"IF(OR('K3VL-Mobile'!$AT$55=\"/1\",'K3VL-Mobile'!$AT$55=\"/2\",'K3VL-Mobile'!$AT$55=\"/3\"),\"●\",\"-\")","v":"-"},{"$f":"IF(OR('K3VL-Mobile'!$AT$55=\"/1\",'K3VL-Mobile'!$AT$55=\"/2\",'K3VL-Mobile'!$AT$55=\"/3\"),\"●\",\"-\")","v":"-"},{"$f":"IF(OR('K3VL-Mobile'!$AT$55=\"/1\",'K3VL-Mobile'!$AT$55=\"/2\",'K3VL-Mobile'!$AT$55=\"/3\"),\"●\",\"-\")","v":"-"},{"$f":"IF(OR('K3VL-Mobile'!$AT$55=\"/1\",'K3VL-Mobile'!$AT$55=\"/2\",'K3VL-Mobile'!$AT$55=\"/3\"),\"●\",\"-\")","v":"-"},{"$f":"HLOOKUP($K$2,TABA[],ROW(K115),FALSE)","v":"-"}]
[null,"-E0","Electric Displacement Control (Pilot Pressure Required) AMP Flying Lead 24V DC","-",{"$f":"IF('K3VL-Mobile'!$AT$70=\"-L500\",\"-\",IF('K3VL-Mobile'!$AT$55=\"/1\",\"●\",\"-\"))","v":"-"},{"$f":"IF('K3VL-Mobile'!$AT$70=\"-L500\",\"-\",IF('K3VL-Mobile'!$AT$55=\"/1\",\"●\",\"-\"))","v":"-"},{"$f":"IF('K3VL-Mobile'!$AT$70=\"-L500\",\"-\",IF('K3VL-Mobile'!$AT$55=\"/1\",\"●\",\"-\"))","v":"-"},{"$f":"IF('K3VL-Mobile'!$AT$70=\"-L500\",\"-\",IF('K3VL-Mobile'!$AT$55=\"/1\",\"●\",\"-\"))","v":"-"},{"$f":"IF('K3VL-Mobile'!$AT$70=\"-L500\",\"-\",IF('K3VL-Mobile'!$AT$55=\"/1\",\"●\",\"-\"))","v":"-"},{"$f":"IF('K3VL-Mobile'!$AT$70=\"-L500\",\"-\",IF('K3VL-Mobile'!$AT$55=\"/1\",\"●\",\"-\"))","v":"-"},{"$f":"HLOOKUP($K$2,TABA[],ROW(K116),FALSE)","v":"-"}]
[null,"-E1","Electric Displacement Control (Pilot Pressure Required) AMP Moulded 24V DC","-",{"$f":"IF('K3VL-Mobile'!$AT$70=\"-L500\",\"-\",IF('K3VL-Mobile'!$AT$55=\"/1\",\"●\",\"-\"))","v":"-"},{"$f":"IF('K3VL-Mobile'!$AT$70=\"-L500\",\"-\",IF('K3VL-Mobile'!$AT$55=\"/1\",\"●\",\"-\"))","v":"-"},{"$f":"IF('K3VL-Mobile'!$AT$70=\"-L500\",\"-\",IF('K3VL-Mobile'!$AT$55=\"/1\",\"●\",\"-\"))","v":"-"},{"$f":"IF('K3VL-Mobile'!$AT$70=\"-L500\",\"-\",IF('K3VL-Mobile'!$AT$55=\"/1\",\"●\",\"-\"))","v":"-"},{"$f":"IF('K3VL-Mobile'!$AT$70=\"-L500\",\"-\",IF('K3VL-Mobile'!$AT$55=\"/1\",\"●\",\"-\"))","v":"-"},{"$f":"IF('K3VL-Mobile'!$AT$70=\"-L500\",\"-\",IF('K3VL-Mobile'!$AT$55=\"/1\",\"●\",\"-\"))","v":"-"},{"$f":"HLOOKUP($K$2,TABA[],ROW(K117),FALSE)","v":"-"}]
[null,"-E2","Electric Displacement Control (Pilot Pressure Required) Deutsch Moulded 24V DC","-",{"$f":"IF('K3VL-Mobile'!$AT$70=\"-L500\",\"-\",IF('K3VL-Mobile'!$AT$55=\"/1\",\"●\",\"-\"))","v":"-"},{"$f":"IF('K3VL-Mobile'!$AT$70=\"-L500\",\"-\",IF('K3VL-Mobile'!$AT$55=\"/1\",\"●\",\"-\"))","v":"-"},{"$f":"IF('K3VL-Mobile'!$AT$70=\"-L500\",\"-\",IF('K3VL-Mobile'!$AT$55=\"/1\",\"●\",\"-\"))","v":"-"},{"$f":"IF('K3VL-Mobile'!$AT$70=\"-L500\",\"-\",IF('K3VL-Mobile'!$AT$55=\"/1\",\"●\",\"-\"))","v":"-"},{"$f":"IF('K3VL-Mobile'!$AT$70=\"-L500\",\"-\",IF('K3VL-Mobile'!$AT$55=\"/1\",\"●\",\"-\"))","v":"-"},{"$f":"IF('K3VL-Mobile'!$AT$70=\"-L500\",\"-\",IF('K3VL-Mobile'!$AT$55=\"/1\",\"●\",\"-\"))","v":"-"},{"$f":"HLOOKUP($K$2,TABA[],ROW(K118),FALSE)","v":"-"}]
[null,"-E3","Electric Displacement Control (Pilot Pressure Required) Deutsch Moulded 12V DC","-",{"$f":"IF('K3VL-Mobile'!$AT$70=\"-L500\",\"-\",IF('K3VL-Mobile'!$AT$55=\"/1\",\"●\",\"-\"))","v":"-"},{"$f":"IF('K3VL-Mobile'!$AT$70=\"-L500\",\"-\",IF('K3VL-Mobile'!$AT$55=\"/1\",\"●\",\"-\"))","v":"-"},{"$f":"IF('K3VL-Mobile'!$AT$70=\"-L500\",\"-\",IF('K3VL-Mobile'!$AT$55=\"/1\",\"●\",\"-\"))","v":"-"},{"$f":"IF('K3VL-Mobile'!$AT$70=\"-L500\",\"-\",IF('K3VL-Mobile'!$AT$55=\"/1\",\"●\",\"-\"))","v":"-"},{"$f":"IF('K3VL-Mobile'!$AT$70=\"-L500\",\"-\",IF('K3VL-Mobile'!$AT$55=\"/1\",\"●\",\"-\"))","v":"-"},{"$f":"IF('K3VL-Mobile'!$AT$70=\"-L500\",\"-\",IF('K3VL-Mobile'!$AT$55=\"/1\",\"●\",\"-\"))","v":"-"},{"$f":"HLOOKUP($K$2,TABA[],ROW(K119),FALSE)","v":"-"}]
[null,"-Q0","Pilot Operated Displacement Control","-",{"$f":"IF('K3VL-Mobile'!$AT$55=\"/1\",\"●\",\"-\")","v":"-"},{"$f":"IF('K3VL-Mobile'!$AT$55=\"/1\",\"●\",\"-\")","v":"-"},{"$f":"IF('K3VL-Mobile'!$AT$55=\"/1\",\"●\",\"-\")","v":"-"},{"$f":"IF('K3VL-Mobile'!$AT$55=\"/1\",\"●\",\"-\")","v":"-"},{"$f":"IF('K3VL-Mobile'!$AT$55=\"/1\",\"●\",\"-\")","v":"-"},{"$f":"IF('K3VL-Mobile'!$AT$55=\"/1\",\"●\",\"-\")","v":"-"},{"$f":"HLOOKUP($K$2,TABA[],ROW(K120),FALSE)","v":"-"},{"$f":"VLOOKUP('K3VL-Mobile'!AT59,B111:K121,10,FALSE)","v":"●"}]
["15. Special Suffix","Blank",null,"●","●","●","●","●","●","●",{"$f":"HLOOKUP($K$2,TABA[],ROW(K121),FALSE)","v":"●"}]
[null,"-TB*","Managed by KPMJ","●","●","●","●","●","●","●",{"$f":"HLOOKUP($K$2,TABA[],ROW(K122),FALSE)","v":"●"}]
[null,"-L*","Managed by KPM(UK)","◆","◆","◆","◆","◆","◆","◆",{"$f":"HLOOKUP($K$2,TABA[],ROW(K123),FALSE)","v":"◆"}]
[null,"-L500",null,"◆","◆","◆","◆","◆","◆","◆",{"$f":"HLOOKUP($K$2,TABA[],ROW(K124),FALSE)","v":"◆"},{"$f":"VLOOKUP('K3VL-Mobile'!AT70,B122:K125,10,FALSE)","v":"●"}]
[null,"S6","/1 Torque limiter","-","-","-",61,"-","-","-",{"$f":"HLOOKUP($K$2,TABA[],ROW(K125),FALSE)","v":"-"}]
[null,"S5",null,"-","-","-",73,"-","-","-",{"$f":"HLOOKUP($K$2,TABA[],ROW(K126),FALSE)","v":"-"}]
[null,"S4",null,"-",30,46,82,91,"-","-",{"$f":"HLOOKUP($K$2,TABA[],ROW(K127),FALSE)","v":46}]
[null,"S3",null,"-",36,49,91,100,"-","-",{"$f":"HLOOKUP($K$2,TABA[],ROW(K128),FALSE)","v":49}]
[null,"S2",null,"-",41,53,100,107,163,163,{"$f":"HLOOKUP($K$2,TABA[],ROW(K129),FALSE)","v":53}]
[null,"S1",null,"-",46,61,107,121,182,182,{"$f":"HLOOKUP($K$2,TABA[],ROW(K130),FALSE)","v":61}]
[null,"L6",null,"-","-",73,"-",146,"-","-",{"$f":"HLOOKUP($K$2,TABA[],ROW(K131),FALSE)","v":73}]
[null,"L5",null,"-","-",82,"-",154,200,200,{"$f":"HLOOKUP($K$2,TABA[],ROW(K132),FALSE)","v":82}]
[null,"L4",null,"-",49,91,121,163,216,216,{"$f":"HLOOKUP($K$2,TABA[],ROW(K133),FALSE)","v":91}]
[null,"L3",null,"-",53,100,146,182,246,246,{"$f":"HLOOKUP($K$2,TABA[],ROW(K134),FALSE)","v":100}]
[null,"L2",null,"-",61,107,154,200,298,298,{"$f":"HLOOKUP($K$2,TABA[],ROW(K135),FALSE)","v":107}]
[null,"L1",null,"-",73,121,163,216,307,307,{"$f":"HLOOKUP($K$2,TABA[],ROW(K136),FALSE)","v":121}]
[null,"M4",null,"-",82,146,182,"-","-","-",{"$f":"HLOOKUP($K$2,TABA[],ROW(K137),FALSE)","v":146}]
[null,"M3",null,"-",91,154,200,246,367,367,{"$f":"HLOOKUP($K$2,TABA[],ROW(K138),FALSE)","v":154}]
[null,"M2",null,"-",100,163,216,298,409,409,{"$f":"HLOOKUP($K$2,TABA[],ROW(K139),FALSE)","v":163}]
[null,"M1",null,"-",107,182,246,307,450,450,{"$f":"HLOOKUP($K$2,TABA[],ROW(K140),FALSE)","v":182}]
[null,"H6",null,"-","-","-","-","-",492,492,{"$f":"HLOOKUP($K$2,TABA[],ROW(K141),FALSE)","v":"-"}]
[null,"H5",null,"-","-","-","-","-",540,540,{"$f":"HLOOKUP($K$2,TABA[],ROW(K142),FALSE)","v":"-"}]
[null,"H4",null,"-",121,200,298,367,610,610,{"$f":"HLOOKUP($K$2,TABA[],ROW(K143),FALSE)","v":200}]
[null,"H3",null,"-",146,216,307,409,618,618,{"$f":"HLOOKUP($K$2,TABA[],ROW(K144),FALSE)","v":216}]
[null,"H2",null,"-",154,246,367,450,711,711,{"$f":"HLOOKUP($K$2,TABA[],ROW(K145),FALSE)","v":246}]
[null,"H1",null,"-",163,298,409,492,752,752,{"$f":"HLOOKUP($K$2,TABA[],ROW(K146),FALSE)","v":298}]
[null,"H6","Pf=0MPa","-","-","-","-","-",492,492,{"$f":"HLOOKUP($K$2,TABA[],ROW(K147),FALSE)","v":"-"}]
[null,"H5",null,"-","-","-","-","-",540,540,{"$f":"HLOOKUP($K$2,TABA[],ROW(K148),FALSE)","v":"-"}]
[null,"H4",null,"-","-",200,298,367,610,610,{"$f":"HLOOKUP($K$2,TABA[],ROW(K149),FALSE)","v":200}]
[null,"H3",null,"-","-",216,307,409,618,618,{"$f":"HLOOKUP($K$2,TABA[],ROW(K150),FALSE)","v":216}]
[null,"H2",null,"-","-",246,367,450,711,711,{"$f":"HLOOKUP($K$2,TABA[],ROW(K151),FALSE)","v":246}]
[null,"H1",null,"-","-",298,409,492,752,752,{"$f":"HLOOKUP($K$2,TABA[],ROW(K152),FALSE)","v":298}]
[null,"H6","Pf=1MPa","-","-","-","-","-",421,421,{"$f":"HLOOKUP($K$2,TABA[],ROW(K153),FALSE)","v":"-"}]
[null,"H5",null,"-","-","-","-","-",453,453,{"$f":"HLOOKUP($K$2,TABA[],ROW(K154),FALSE)","v":"-"}]
[null,"H4",null,"-","-",167,252,309,517,517,{"$f":"HLOOKUP($K$2,TABA[],ROW(K155),FALSE)","v":167}]
[null,"H3",null,"-","-",183,255,349,524,524,{"$f":"HLOOKUP($K$2,TABA[],ROW(K156),FALSE)","v":183}]
[null,"H2",null,"-","-",209,309,383,610,610,{"$f":"HLOOKUP($K$2,TABA[],ROW(K157),FALSE)","v":209}]
[null,"H1",null,"-","-",252,349,421,648,648,{"$f":"HLOOKUP($K$2,TABA[],ROW(K158),FALSE)","v":252}]
[null,"H6","Pf=2MPa","-","-","-","-","-",356,356,{"$f":"HLOOKUP($K$2,TABA[],ROW(K159),FALSE)","v":"-"}]
[null,"H5",null,"-","-","-","-","-",374,374,{"$f":"HLOOKUP($K$2,TABA[],ROW(K160),FALSE)","v":"-"}]
[null,"H4",null,"-","-",138,210,256,432,432,{"$f":"HLOOKUP($K$2,TABA[],ROW(K161),FALSE)","v":138}]
[null,"H3",null,"-","-",152,208,292,439,439,{"$f":"HLOOKUP($K$2,TABA[],ROW(K162),FALSE)","v":152}]
[null,"H2",null,"-","-",175,256,322,517,517,{"$f":"HLOOKUP($K$2,TABA[],ROW(K163),FALSE)","v":175}]
[null,"H1",null,"-","-",210,292,356,553,553,{"$f":"HLOOKUP($K$2,TABA[],ROW(K164),FALSE)","v":210}]
[null,"H6","Pf=3MPa","-","-","-","-","-",298,298,{"$f":"HLOOKUP($K$2,TABA[],ROW(K165),FALSE)","v":"-"}]
[null,"H5",null,"-","-","-","-","-",303,303,{"$f":"HLOOKUP($K$2,TABA[],ROW(K166),FALSE)","v":"-"}]
[null,"H4",null,"-","-",111,173,209,355,355,{"$f":"HLOOKUP($K$2,TABA[],ROW(K167),FALSE)","v":111}]
[null,"H3",null,"-","-",123,167,241,361,361,{"$f":"HLOOKUP($K$2,TABA[],ROW(K168),FALSE)","v":123}]
[null,"H2",null,"-","-",145,209,266,433,433,{"$f":"HLOOKUP($K$2,TABA[],ROW(K169),FALSE)","v":145}]
[null,"H1",null,"-","-",173,241,298,465,465,{"$f":"HLOOKUP($K$2,TABA[],ROW(K170),FALSE)","v":173}]

{"sheet":"K3VL-Industrial J","index":2,"n_rows":48,"n_cols":51,"rows_kept":48,"cut":false,"hidden":false,"merged":[[1,6,2,9],[1,33,1,44],[1,46,1,50],[5,27,14,31],[4,27,4,31],[1,21,1,23],[1,27,1,31],[13,10,14,10],[11,1,11,9],[13,16,14,16],[13,17,14,17],[3,27,3,31],[2,27,2,31],[2,46,2,50],[3,46,3,50],[4,46,4,50],[3,1,4,10],[5,1,7,10],[8,1,10,10],[3,11,4,13],[5,46,14,50],[9,11,10,13],[3,14,4,17],[6,14,7,17],[16,1,16,5],[16,7,16,18],[16,20,16,24],[13,15,14,15],[6,11,7,13],[9,18,10,20],[6,18,7,20],[12,1,14,2],[13,3,14,3],[13,4,14,4],[13,5,14,5],[13,6,14,6],[13,7,14,7],[12,22,13,24],[12,20,13,21],[3,18,4,20],[13,8,14,8],[13,9,14,9],[13,11,14,11],[13,12,14,12],[13,13,14,13],[13,14,14,14],[9,14,10,17],[5,45,14,45],[3,21,4,24],[6,21,7,24],[9,21,10,24],[5,32,14,32],[17,1,24,5],[17,6,24,6],[38,1,38,5],[38,7,38,12],[38,19,38,21],[19,8,19,10],[24,8,24,10],[17,20,18,24],[20,46,20,50],[21,8,21,10],[17,15,17,16],[17,17,17,18],[17,19,24,19],[23,47,23,48],[23,49,23,50],[21,47,21,48],[21,49,21,50],[17,46,17,50],[22,33,22,38],[22,39,22,44],[19,20,24,24],[22,8,22,10],[24,47,24,48],[17,8,17,10],[44,1,44,5],[44,7,44,18],[47,1,47,12],[47,13,47,24],[38,22,38,23],[39,1,39,5],[39,7,39,18],[39,19,39,24],[33,27,37,31],[36,1,36,5],[36,7,36,12],[36,13,36,18],[37,1,37,5],[37,7,37,12],[34,24,35,24],[37,13,37,18],[40,1,40,5],[32,1,33,5],[32,6,33,6],[32,7,33,12],[25,1,25,5],[25,7,25,18],[25,20,25,23],[26,49,26,50],[27,46,32,50],[26,47,26,48],[32,21,33,21],[32,22,33,22],[48,13,78,24],[45,1,45,5],[45,7,45,18],[45,19,45,24],[44,23,44,24],[42,19,42,24],[40,7,40,18],[40,19,40,24],[41,1,41,5],[41,7,41,18],[41,19,41,24],[42,1,42,5],[42,7,42,18],[43,1,43,5],[43,7,43,18],[43,23,43,24],[33,45,37,45],[33,46,37,50],[34,1,35,5],[34,6,35,6],[34,7,35,12],[34,13,35,18],[34,19,35,19],[34,20,35,20],[34,21,35,21],[34,22,35,22],[34,23,35,23],[33,32,37,32],[38,45,39,45],[38,46,39,50],[45,45,46,45],[45,27,46,31],[40,27,44,31],[40,32,44,32],[45,32,46,32],[40,45,44,45],[41,46,41,47],[41,48,41,49],[40,46,40,50],[42,46,44,50],[45,46,46,50],[38,27,39,31],[38,32,39,32],[15,46,16,50],[15,45,16,45],[25,33,25,38],[25,39,25,44],[22,47,22,48],[22,49,22,50],[19,47,19,48],[19,49,19,50],[25,27,32,30],[25,32,32,32],[25,45,32,45],[22,45,24,45],[15,27,16,31],[22,27,24,31],[22,32,24,32],[15,32,16,32],[18,49,18,50],[18,47,18,48],[24,49,24,50],[25,47,25,48],[26,7,26,12],[26,13,26,18],[23,8,23,10],[25,49,25,50],[17,27,21,31],[17,32,21,32],[17,45,21,45],[17,11,17,12],[17,13,17,14],[20,8,20,10],[18,8,18,10],[30,7,31,12],[30,13,31,18],[30,19,31,19],[30,20,31,20],[29,7,29,12],[29,13,29,18],[26,1,28,5],[26,6,28,6],[32,24,33,24],[32,13,33,18],[32,19,33,19],[32,20,33,20],[30,21,31,21],[30,22,31,22],[30,24,31,24],[30,1,31,5],[30,6,31,6],[29,1,29,5],[27,7,27,18],[28,7,28,18]]}
[]
[null,null,null,null,null,null,{"$f":"IF(AND(U26<>\"\",U27<>\"\",U30<>\"\",U31<>\"\",U33<>\"\",U37<>\"\",X37<>\"\",X27<>\"\",X30<>\"\",X31<>\"\",X32<>\"\",X33<>\"\",X34<>\"\",T41<>\"\",X43<>\"\",X44<>\"\",U43<>\"\",U44<>\"\"),\"\",translation!E16)","v":"All required fields are not filled in."},null,null,null,null,null,null,null,null,null,null,null,null,null,null,{"$f":"'K3VL-Mobile'!V2","v":"Language : English"},null,null,"Rev: 1",null,null,{"$f":"translation!E90","v":"Items"},null,null,null,null,{"$f":"translation!E91","v":"No."},{"$f":"translation!E92","v":"Standard Specifications"},null,null,null,null,null,null,null,null,null,null,null,{"$f":"translation!E93","v":"Code"},{"$f":"translation!E94","v":"Note"}]
[null,null,null,null,null,null,null,null,null,null,null,null,null,null,null,null,null,null,null,null,null,null,null,null,null,null,null,{"$f":"translation!E96","v":"Design Series"},null,null,null,null,3,{"$f":"IF(T18=28,\"/C \",\"/B \")","v":"/B "},null,null,null,null,null,null,null,null,null,null,{"$f":"IF('I spec'!K45=\"★\",\"★\",IF('I spec'!K45=\"◆\",\"◆\",\"\"))","v":""},{"$f":"IF(T18=28,\"/C\",\"/B\")","v":"/B"}]
[null,{"$f":"translation!E4","v":"K3VL series for J Industrial Inquiry Form"},null,null,null,null,null,null,null,null,null,{"$f":"translation!E8","v":"Fill-in Date ："},null,null,null,null,null,null,{"$f":"translation!E9","v":"Author ："},null,null,null,null,null,null,null,null,{"$f":"translation!E97","v":"Hydraulic Fluid Type"},null,null,null,null,4,"- ",{"$f":"translation!E115","v":" Mineral Oil (Orings: Nitrile rubber, Shaft Seal: Fluoro rubber)"},null,null,null,null,null,null,null,null,null,{"$f":"IF('I spec'!K46=\"★\",\"★\",IF('I spec'!K46=\"◆\",\"◆\",\"\"))","v":""},"-"]
[null,null,null,null,null,null,null,null,null,null,null,null,null,null,null,null,null,null,null,null,null,null,null,null,null,null,null,{"$f":"translation!E98","v":"Series Type Code"},null,null,null,null,5,"1 ",{"$f":"translation!E118","v":" Standard Type"},null,null,null,null,null,null,null,null,null,{"$f":"IF('I spec'!K47=\"★\",\"★\",IF('I spec'!K47=\"◆\",\"◆\",\"\"))","v":""},{"$f":"'M spec'!B59","v":1}]
[null,{"$f":"translation!E6","v":"Please select an item from a drop down list in a cell with thick red borders. Options with ★ is that please contact Kawasaki."},null,null,null,null,null,null,null,null,null,null,null,null,null,null,null,null,null,null,null,null,null,null,null,null,null,{"$f":"translation!E99","v":"Through Drive and Porting"},null,null,null,null,6,"N ",{"$f":"translation!E128","v":" w/ Through Drive Shaft, w/o Coupling, Closed w/ Steel Cover, Side Ported"},null,null,null,null,null,null,null,null,null,{"$f":"IF('I spec'!K48=\"★\",\"★\",IF('I spec'!K48=\"◆\",\"◆\",\"\"))","v":""},"N"]
[null,null,null,null,null,null,null,null,null,null,null,{"$f":"translation!E10","v":"Application ："},null,null,null,null,null,null,{"$f":"translation!E11","v":"Machine M/C ："},null,null,null,null,null,null,null,null,null,null,null,null,null,null," 0 ",{"$f":"translation!E119","v":" w/o Through Drive, Side Ported (Only Clockwise)"},null,null,null,null,null,null,null,null,null,{"$f":"IF('I spec'!K49=\"★\",\"★\",IF('I spec'!K49=\"◆\",\"◆\",\"\"))","v":""}]
[null,null,null,null,null,null,null,null,null,null,null,null,null,null,null,null,null,null,null,null,null,null,null,null,null,null,null,null,null,null,null,null,null,"A ",{"$f":"translation!E120","v":" SAE-A 2 bolt Through Drive, Side Ported"},null,null,null,null,null,null,null,null,null,{"$f":"IF('I spec'!K50=\"★\",\"★\",IF('I spec'!K50=\"◆\",\"◆\",\"\"))","v":""}]
[null,{"$f":"translation!E7","v":"If the cell's color is red, the request is out of Kawasaki standard specifications range. Even if the request is out of Kawasaki specification range, please describe the detail on the note and consult with Kawasaki."},null,null,null,null,null,null,null,null,null,null,null,null,null,null,null,null,null,null,null,null,null,null,null,null,null,null,null,null,null,null,null,"B ",{"$f":"translation!E121","v":" SAE-B 2 bolt Through Drive, Side Ported"},null,null,null,null,null,null,null,null,null,{"$f":"IF('I spec'!K51=\"★\",\"★\",IF('I spec'!K51=\"◆\",\"◆\",\"\"))","v":""}]
[null,null,null,null,null,null,null,null,null,null,null,{"$f":"translation!E12","v":"Customer ："},null,null,null,null,null,null,{"$f":"translation!E13","v":"Pump Model ："},null,null,{"$f":"D14&E14&F14&G14&H14&I14&J14&K14&L14&M14&N14&O14&P14&Q14&R14","v":"K3VL80/B-1NRJM-P0/1-M*"},null,null,null,null,null,null,null,null,null,null,null,"BB ",{"$f":"translation!E122","v":" SAE-BB 2 bolt Through Drive, Side Ported"},null,null,null,null,null,null,null,null,null,{"$f":"IF('I spec'!K52=\"★\",\"★\",IF('I spec'!K52=\"◆\",\"◆\",\"\"))","v":""}]
[null,null,null,null,null,null,null,null,null,null,null,null,null,null,null,null,null,null,null,null,null,null,null,null,null,null,null,null,null,null,null,null,null,"C ",{"$f":"translation!E123","v":" SAE-C 2 bolt Through Drive, Side Ported"},null,null,null,null,null,null,null,null,null,{"$f":"IF('I spec'!K53=\"★\",\"★\",IF('I spec'!K53=\"◆\",\"◆\",\"\"))","v":""}]
[null,{"$f":"translation!E14","v":"Swash Plate Type Axial Piston Pump"},null,null,null,null,null,null,null,null,null,null,null,null,null,null,null,null,null,null,null,null,null,null,null,null,null,null,null,null,null,null,null,"CC ",{"$f":"translation!E125","v":" SAE-CC 2 bolt Through Drive, Side Ported"},null,null,null,null,null,null,null,null,null,{"$f":"IF('I spec'!K54=\"★\",\"★\",IF('I spec'!K54=\"◆\",\"◆\",\"\"))","v":""}]
[null,{"$f":"translation!E15","v":"Model Code"},null,1,2,3,4,5,6,7,8,9,null,10,11,12,13,14,null,null,{"$f":"translation!E222","v":"Confirmation by KPM (UK):"},null,null,null,null,null,null,null,null,null,null,null,null,"D ",{"$f":"translation!E126","v":" SAE-D 4 bolt Through Drive, Side Ported"},null,null,null,null,null,null,null,null,null,{"$f":"IF('I spec'!K55=\"★\",\"★\",IF('I spec'!K55=\"◆\",\"◆\",\"\"))","v":""}]
[null,null,null,"K3VL",{"$f":"T18","v":80},{"$f":"AT3","v":"/B"},{"$f":"AT4","v":"-"},{"$f":"AT5","v":1},{"$f":"AT6","v":"N"},{"$f":"AT16","v":"R"},{"$f":"AT18","v":"J"},{"$f":"AT23","v":"M"},"-",{"$f":"AT26","v":"P0"},{"$f":"IF(AT34=\"Blank\",\"\",AT34)","v":""},{"$f":"IF(AT39=\"Blank\",\"\",AT39)","v":"/1"},{"$f":"IF(AT41=\"Blank\",\"\",AT41)","v":"-M*"},{"$f":"IF(AT46=\"Blank\",\"\",AT46)","v":""},null,null,null,null,null,null,null,null,null,null,null,null,null,null,null,"E ",{"$f":"translation!E127","v":" SAE-E 4 bolt Through Drive, Side Ported"},null,null,null,null,null,null,null,null,null,{"$f":"IF('I spec'!K56=\"★\",\"★\",IF('I spec'!K56=\"◆\",\"◆\",\"\"))","v":""}]
[null,null,null,null,null,null,null,null,null,null,null,null,null,null,null,null,null,null,null,null,null,null,null,null,null,null,null,null,null,null,null,null,null,"R ",{"$f":"translation!E129","v":" w/o Through Drive, Rear Ported"},null,null,null,null,null,null,null,null,null,{"$f":"IF('I spec'!K57=\"★\",\"★\",IF('I spec'!K57=\"◆\",\"◆\",\"\"))","v":""}]
[null,null,null,null,null,null,null,null,null,null,null,null,null,null,null,null,null,null,null,null,null,null,null,null,null,null,null,{"$f":"translation!E100","v":"Direction of Rotation"},null,null,null,null,7,"R ",{"$f":"translation!E130","v":" Clockwise"},null,null,null,null,null,null,null,null,null,{"$f":"IF('I spec'!K58=\"★\",\"★\",IF('I spec'!K58=\"◆\",\"◆\",\"\"))","v":""},"R"]
[null,{"$f":"translation!E17","v":"Items"},null,null,null,null,{"$f":"translation!E91","v":"No."},{"$f":"translation!E33","v":"Standard Specifications"},null,null,null,null,null,null,null,null,null,null,null,{"$f":"translation!E93","v":"Code"},{"$f":"translation!E94","v":"Note"},null,null,null,null,null,null,null,null,null,null,null,null,"L ",{"$f":"translation!E131","v":" Counterclockwise"},null,null,null,null,null,null,null,null,null,{"$f":"IF('I spec'!K59=\"★\",\"★\",IF('I spec'!K59=\"◆\",\"◆\",\"\"))","v":""}]
[null,{"$f":"translation!E95","v":"Pump Size"},null,null,null,null,2,null,{"$f":"translation!E109","v":"Max displacement"},null,null,{"$f":"translation!E110","v":"Rated Pressure"},null,{"$f":"translation!E111","v":"Peak Pressure"},null,{"$f":"translation!E112","v":"S-P Max Speed"},null,{"$f":"translation!E113","v":"Max Speed"},null,80,null,null,null,null,null,null,null,{"$f":"translation!E101","v":"Mounting Flange and Shaft"},null,null,null,null,8,"J ",{"$f":"translation!E142","v":" SAE-* Mount & JIS Keyed Shaft (Drain port with G thread adapter)"},null,null,null,null,null,null,null,null,null,{"$f":"IF('I spec'!K60=\"★\",\"★\",IF('I spec'!K60=\"◆\",\"◆\",\"\"))","v":""},"J",{"$f":"translation!E206","v":"Chosen Mount & Shaft"}]
[null,null,null,null,null,null,null," 28 "," 28 cm3",null,null," 32 MPa",null," 35 MPa",null," 3,000 rpm",null," 3,600 rpm",null,null,null,null,null,null,null,null,null,null,null,null,null,null,null,"H ",{"$f":"translation!E143","v":" SAE-* Mount & SAE-* Spline Shaft (Drain port with G thread adapter)"},null,null,null,null,null,null,null,null,null,{"$f":"IF('I spec'!K61=\"★\",\"★\",IF('I spec'!K61=\"◆\",\"◆\",\"\"))","v":""},null,{"$f":"translation!E210","v":"Model"},{"$f":"translation!E211","v":"Mount"},null,{"$f":"translation!E212","v":"Shaft"}]
[null,null,null,null,null,null,null," 45 "," 45 - 16 cm3",null,null," 32 MPa",null," 35 MPa",null," 2,700 rpm",null," 3,250 rpm",null,null,{"$f":"IF(OR(T18=200,T18=\"200H\"),translation!E114,\"\")","v":""},null,null,null,null,null,null,null,null,null,null,null,null,"K ",{"$f":"translation!E132","v":" SAE-* Mount & SAE-* Keyed Shaft"},null,null,null,null,null,null,null,null,null,{"$f":"IF('I spec'!K62=\"★\",\"★\",IF('I spec'!K62=\"◆\",\"◆\",\"\"))","v":""},null,{"$f":"T18","v":80},{"$f":"'M spec'!L21","v":"2 bolt SAE-C"},null,{"$f":"'M spec'!L31","v":"Keyed SAE-C"}]
[null,null,null,null,null,null,null," 80 "," 80 - 35 cm3",null,null," 32 MPa",null," 35 MPa",null," 2,400 rpm",null," 3,000 rpm",null,null,null,null,null,null,null,null,null,null,null,null,null,null,null,"S ",{"$f":"translation!E134","v":" SAE-* Mount & SAE-* Spline Shaft"},null,null,null,null,null,null,null,null,null,{"$f":"IF('I spec'!K63=\"★\",\"★\",IF('I spec'!K63=\"◆\",\"◆\",\"\"))","v":""},null,{"$f":"translation!E209","v":"Std. Mount & Shaft"}]
[null,null,null,null,null,null,null," 112 "," 112 - 56 cm3",null,null," 32 MPa",null," 35 MPa",null," 2,200 rpm",null," 2,700 rpm",null,null,null,null,null,null,null,null,null,null,null,null,null,null,null,"M ",{"$f":"translation!E133","v":" ISO Mount & ISO Keyed Shaft "},null,null,null,null,null,null,null,null,null,{"$f":"IF('I spec'!K64=\"★\",\"★\",IF('I spec'!K64=\"◆\",\"◆\",\"\"))","v":""},null,"28",{"$f":"translation!E213","v":"2 bolt SAE-B"},null,"SAE-B"]
[null,null,null,null,null,null,null," 140 "," 140 - 70 cm3",null,null," 32 MPa",null," 35 MPa",null," 2,200 rpm",null," 2,500 rpm",null,null,null,null,null,null,null,null,null,{"$f":"translation!E102","v":"Flange / Mounting Fixing Thread (Suction-Delivery, Through Drive)"},null,null,null,null,9,{"$f":"translation!E144","v":"Flange Thread Suction-Delivery"},null,null,null,null,null,{"$f":"translation!E147","v":"Mounting Thread Through Drive"},null,null,null,null,null,"M","45",{"$f":"translation!E214","v":"2 bolt SAE-B"},null,"SAE-BB"]
[null,null,null,null,null,null,null," 200 "," 200 - 100 cm3",null,null," 32 MPa※1",null," 35 MPa※1",null," 1,900 rpm",null," 1,900 rpm※2",null,null,null,null,null,null,null,null,null,null,null,null,null,null,null,"M ",{"$f":"translation!E145","v":" Metric "},null,null,null,null,{"$f":"translation!E148","v":" Metric"},null,null,null,null,{"$f":"IF('I spec'!K66=\"★\",\"★\",IF('I spec'!K66=\"◆\",\"◆\",\"\"))","v":""},null,"80",{"$f":"translation!E215","v":"2 bolt SAE-C"},null,"SAE-C"]
[null,null,null,null,null,null,null," 200H "," 200 - 100 cm3",null,null," 32 MPa※1",null," 35 MPa※1",null," 2,200 rpm",null," 2,200 rpm",null,null,null,null,null,null,null,null,null,null,null,null,null,null,null,"S ",{"$f":"translation!E146","v":" Unified"},null,null,null,null,{"$f":"translation!E149","v":" Metric"},null,null,null,null,{"$f":"IF('I spec'!K67=\"★\",\"★\",IF('I spec'!K67=\"◆\",\"◆\",\"\"))","v":""},null,"112",{"$f":"translation!E216","v":"4 bolt SAE-D"},null,"SAE-D"]
[null,{"$f":"translation!E18","v":"Pump Max Displacement"},null,null,null,null,"-",{"$f":"translation!E41","v":"Pump Max Displacement: 80 - 35 cm3"},null,null,null,null,null,null,null,null,null,null,null,{"$f":"translation!E63","v":"Max:"},null,null,null,null,"cm3",null,null,{"$f":"translation!E103","v":"Regulator Type"},null,null,null,null,10,{"$f":"translation!E150","v":"Load Sense"},null,null,null,null,null,{"$f":"translation!E163","v":"Pressure Cut-Off"},null,null,null,null,null,"P0","140",{"$f":"translation!E217","v":"4 bolt SAE-D"},null,"SAE-D"]
[null,{"$f":"translation!E19","v":"Max / Rated Speed"},null,null,null,null,"-",{"$f":"translation!E42","v":"Max Speed: 3000 rpm"},null,null,null,null,null,{"$f":"translation!E43","v":"Self Prime Max: 2400 rpm @80cm3"},null,null,null,null,null,{"$f":"translation!E64","v":"Max:"},null,"rpm",{"$f":"translation!E65","v":"Rated:"},null,"rpm",null,null,null,null,null,null,null,null," P0 ",{"$f":"translation!E157","v":" without"},null,null,null,null,{"$f":"translation!E170","v":" with"},null,null,null,null,{"$f":"IF('I spec'!K69=\"★\",\"★\",IF('I spec'!K69=\"◆\",\"◆\",\"\"))","v":""},null,"200",{"$f":"translation!E218","v":"4 bolt SAE-E"},null,"SAE-D"]
[null,null,null,null,null,null,null,{"$f":"translation!E37","v":"If Rated speed is higher than self prime speed, burst pressure is required."},null,null,null,null,null,null,null,null,null,null,null,null,null,null,null,null,null,null,null,null,null,null,null,null,null," L0 ",{"$f":"translation!E151","v":" with (with Bleed‐Off Orifice)"},null,null,null,null,{"$f":"translation!E164","v":" with"},null,null,null,null,{"$f":"IF('I spec'!K70=\"★\",\"★\",IF('I spec'!K70=\"◆\",\"◆\",\"\"))","v":""}]
[null,null,null,null,null,null,null,{"$f":"translation!E38","v":"If self prime max. is higher than max. speed, please contact KPMJ."},null,null,null,null,null,null,null,null,null,null,null,null,null,null,null,null,null,null,null,null,null,null,null,null,null," LN ",{"$f":"translation!E154","v":" with (without Bleed‐Off Orifice)"},null,null,null,null,{"$f":"translation!E167","v":" with + Unloading Control (Min disp. at ON)"},null,null,null,null,{"$f":"IF('I spec'!K71=\"★\",\"★\",IF('I spec'!K71=\"◆\",\"◆\",\"\"))","v":""}]
[null,{"$f":"translation!E20","v":"Peak / Rated Pressure"},null,null,null,null,"-",{"$f":"translation!E44","v":"Peak: 35 MPa"},null,null,null,null,null,{"$f":"translation!E45","v":"Rated: 32 MPa"},null,null,null,null,null,{"$f":"translation!E66","v":"Peak:"},null,"MPa",{"$f":"translation!E67","v":"Rated:"},null,"MPa",null,null,null,null,null,null,null,null," PN ",{"$f":"translation!E159","v":" without"},null,null,null,null,{"$f":"translation!E172","v":" with + Unloading Control (Min disp. at ON)"},null,null,null,null,{"$f":"IF('I spec'!K72=\"★\",\"★\",IF('I spec'!K72=\"◆\",\"◆\",\"\"))","v":""}]
[null,{"$f":"translation!E21","v":"Set Pressure of Load Sensing Differential Pressure / Tolerance"},null,null,null,null,"-",{"$f":"translation!E46","v":"Load Sensing Diff. Pressure: 1.5 MPa (STD)\n(Range = [STD] 1.0 - 3.0 MPa, [HIGH] 1.5 - 4.0 MPa)"},null,null,null,null,null,{"$f":"translation!E47","v":"Tolerance: +0.3/-0.2 MPa (STD)"},null,null,null,null,null,"ΔLS:",1.5,"MPa",{"$f":"translation!E68","v":"Tol:"},0.3,"MPa",null,null,null,null,null,null,null,null," LV ",{"$f":"translation!E155","v":" with (without Bleed‐Off Orifice)"},null,null,null,null,{"$f":"translation!E168","v":" with + Remote Control (Prop. Control)"},null,null,null,null,{"$f":"IF('I spec'!K73=\"★\",\"★\",IF('I spec'!K73=\"◆\",\"◆\",\"\"))","v":""}]
[null,null,null,null,null,null,null,null,null,null,null,null,null,null,null,null,null,null,null,null,null,null,null,-0.2,null,null,null,null,null,null,null,null,null," PV ",{"$f":"translation!E160","v":" without"},null,null,null,null,{"$f":"translation!E173","v":" with + Remote Control (Prop. Control)"},null,null,null,null,{"$f":"IF('I spec'!K74=\"★\",\"★\",IF('I spec'!K74=\"◆\",\"◆\",\"\"))","v":""}]
[null,{"$f":"translation!E22","v":"Set Pressure of Cut-Off / Tolerance"},null,null,null,null,"-",{"$f":"translation!E48","v":"Pressure Cut-Off: 32 MPa (STD)\n(Adjustable Range = 5.0 - 35.0 MPa)"},null,null,null,null,null,{"$f":"translation!E49","v":"Tolerance: +0/-1.5 MPa (STD)"},null,null,null,null,null,"CO:",null,"MPa",{"$f":"translation!E69","v":"Tol:"},null,"MPa",null,null,null,null,null,null,null,null," L1 ",{"$f":"translation!E152","v":" with (without Bleed‐Off Orifice)"},null,null,null,null,{"$f":"translation!E165","v":" with"},null,null,null,null,{"$f":"IF('I spec'!K75=\"★\",\"★\",IF('I spec'!K75=\"◆\",\"◆\",\"\"))","v":""}]
[null,null,null,null,null,null,null,null,null,null,null,null,null,null,null,null,null,null,null,null,null,null,null,null,null,null,null,{"$f":"translation!E104","v":"Unloader Solenoid"},null,null,null,null,11,"Blank ",{"$f":"translation!E177","v":" In case except LN/PN is chosen at [10]"},null,null,null,null,null,null,null,null,null,{"$f":"IF('I spec'!K76=\"★\",\"★\",IF('I spec'!K76=\"◆\",\"◆\",\"\"))","v":""},"Blank"]
[null,{"$f":"translation!E23","v":"Suction Pressure / Temperature Range"},null,null,null,null,"-",{"$f":"translation!E50","v":"The suction pressure has to be greater or equal to 0 MPa gauge at Max displacement."},null,null,null,null,null,"-20 ～ 95 ℃",null,null,null,null,null,"Ps:",null,"MPa",{"$f":"translation!E70","v":"Temp:"},null,"℃",null,null,null,null,null,null,null,null,"115A ",{"$f":"translation!E178","v":" 115V AC, 50, 60 Hz - DIN 43550 Plug"},null,null,null,null,null,null,null,null,null,{"$f":"IF('I spec'!K77=\"★\",\"★\",IF('I spec'!K77=\"◆\",\"◆\",\"\"))","v":""}]
[null,null,null,null,null,null,null,null,null,null,null,null,null,null,null,null,null,null,null,null,null,null,null,null,null,null,null,null,null,null,null,null,null,"230A ",{"$f":"translation!E179","v":" 230V AC, 50, 60 Hz - DIN 43550 Plug"},null,null,null,null,null,null,null,null,null,{"$f":"IF('I spec'!K78=\"★\",\"★\",IF('I spec'!K78=\"◆\",\"◆\",\"\"))","v":""}]
[null,{"$f":"translation!E24","v":"Pump / T/D Input Torque"},null,null,null,null,"-",{"$f":"translation!E53","v":"Pump (incl. T/D) Torque: 430 Nm"},null,null,null,null,null,{"$f":"translation!E54","v":"Through Drive Pump Torque: - Nm"},null,null,null,null,null,{"$f":"translation!E71","v":"Pump:"},null,"Nm",{"$f":"translation!E72","v":"T/D:"},0,"Nm",null,null,null,null,null,null,null,null,"12D ",{"$f":"translation!E180","v":" 12V DC - DIN 43550 Plug"},null,null,null,null,null,null,null,null,null,{"$f":"IF('I spec'!K79=\"★\",\"★\",IF('I spec'!K79=\"◆\",\"◆\",\"\"))","v":""}]
[null,{"$f":"translation!E25","v":"Case Drain Pressure"},null,null,null,null,"-",{"$f":"translation!E55","v":"Continuous: 0.1 MPa"},null,null,null,null,null,{"$f":"translation!E56","v":"Peak: 0.4 MPa"},null,null,null,null,null,{"$f":"translation!E73","v":"Cont:"},null,"MPa",{"$f":"translation!E74","v":"Peak:"},null,"MPa",null,null,null,null,null,null,null,null,"24D ",{"$f":"translation!E181","v":" 24V DC - DIN 43550 Plug"},null,null,null,null,null,null,null,null,null,{"$f":"IF('I spec'!K80=\"★\",\"★\",IF('I spec'!K80=\"◆\",\"◆\",\"\"))","v":""}]
[null,{"$f":"translation!E26","v":"Oil Type / Oil Viscosity Range"},null,null,null,null,"-",{"$f":"translation!E57","v":"Equivalent to ISO VG46"},null,null,null,null,null,{"$f":"translation!E58","v":"10 ～ 1,000 cSt"},null,null,null,null,null,null,null,null,null,null,"cSt",null,null,{"$f":"translation!E106","v":"Additional Control Options"},null,null,null,null,12,"Blank ",{"$f":"translation!E185","v":" Without Additional Control"},null,null,null,null,null,null,null,null,null,{"$f":"IF('I spec'!K81=\"★\",\"★\",IF('I spec'!K81=\"◆\",\"◆\",\"\"))","v":""},"/1"]
[null,{"$f":"translation!E27","v":"Name Plate"},null,null,null,null,"-",{"$f":"translation!E59","v":"KHI Standard (Supplier Name, Model Code and S/N)"},null,null,null,null,null,null,null,null,null,null,null,null,null,null,null,null,null,null,null,null,null,null,null,null,null,"/1 ",{"$f":"translation!E186","v":" Torque Limiter (with Provision for Torque Limiter or Displacement Control)"},null,null,null,null,null,null,null,null,null,{"$f":"IF('I spec'!K82=\"★\",\"★\",IF('I spec'!K82=\"◆\",\"◆\",\"\"))","v":""}]
[null,{"$f":"translation!E28","v":"Paint"},null,null,null,null,"-",{"$f":"translation!E60","v":"KHI Standard (Act Primer Red Brown)"},null,null,null,null,null,null,null,null,null,null,null,null,null,null,null,null,null,null,null,{"$f":"translation!E107","v":"Torque Limiting & Displacement Control"},null,null,null,null,13,"Blank ",{"$f":"translation!E189","v":" Without Additional Control"},null,null,null,null,null,null,null,null,null,{"$f":"IF('I spec'!K83=\"★\",\"★\",IF('I spec'!K83=\"◆\",\"◆\",\"\"))","v":""},"-M*",{"$f":"translation!E219","v":"Torque Set - Torque Limit"}]
[null,{"$f":"translation!E221","v":"Driving Method"},null,null,null,null,"-",null,null,null,null,null,null,null,null,null,null,null,null,null,null,null,null,null,null,null,null,null,null,null,null,null,null,"-H* ",{"$f":"translation!E195","v":" Low Setting Range"},null,null,null,null,null,null,null,null,null,{"$f":"IF('I spec'!K84=\"★\",\"★\",IF('I spec'!K84=\"◆\",\"◆\",\"\"))","v":""},null,"M3",null,{"$f":"IF($AT$39=\"/1\",VLOOKUP(AU42,'I spec'!B90:K105,10,FALSE),\"-\")","v":154},null,"Nm"]
[null,{"$f":"translation!E29","v":"Customer Part Number"},null,null,null,null,"-",null,null,null,null,null,null,null,null,null,null,null,null,null,null,null,null,null,null," ",null,null,null,null,null,null,null,"-M* ",{"$f":"translation!E196","v":" Medium Setting Range"},null,null,null,null,null,null,null,null,null,{"$f":"IF('I spec'!K85=\"★\",\"★\",IF('I spec'!K85=\"◆\",\"◆\",\"\"))","v":""}]
[null,{"$f":"translation!E30","v":"Proto Type Requirement"},null,null,null,null,"-",null,null,null,null,null,null,null,null,null,null,null,null,{"$f":"translation!E83","v":"Qty's:"},null,"pcs",{"$f":"translation!E86","v":"Date:"},null,null,null,null,null,null,null,null,null,null,"-L* ",{"$f":"translation!E197","v":" High Setting Range"},null,null,null,null,null,null,null,null,null,{"$f":"IF('I spec'!K86=\"★\",\"★\",IF('I spec'!K86=\"◆\",\"◆\",\"\"))","v":""}]
[null,{"$f":"translation!E31","v":"Production Schedule"},null,null,null,null,"-",null,null,null,null,null,null,null,null,null,null,null,null,{"$f":"translation!E84","v":"Qty's:"},null,{"$f":"translation!E85","v":"pcs/y"},{"$f":"translation!E87","v":"Date:"},null,null,null,null,null,null,null,null,null,null,"-E* ",{"$f":"translation!E198","v":" Electric Displacement Control (Pilot Pres. Required) AMP Flying Lead 24V DC"},null,null,null,null,null,null,null,null,null,{"$f":"IF('I spec'!K87=\"★\",\"★\",IF('I spec'!K87=\"◆\",\"◆\",\"\"))","v":""}]
[null,{"$f":"translation!E32","v":"Original Model (Competitor)"},null,null,null,null,"-",{"$f":"translation!E61","v":"If the model of original pump can be found, please write down for a reference."},null,null,null,null,null,null,null,null,null,null,null,null,null,null,null,null,null,null,null,{"$f":"translation!E108","v":"Special Suffix"},null,null,null,null,14,"Blank ",null,null,null,null,null,null,null,null,null,null,{"$f":"IF('I spec'!K88=\"★\",\"★\",IF('I spec'!K88=\"◆\",\"◆\",\"\"))","v":""},"Blank"]
[null,null,null,null,null,null,null,null,null,null,null,null,null,null,null,null,null,null,null,null,null,null,null,null,null,null,null,null,null,null,null,null,null,"-TB* ",{"$f":"translation!E203","v":" Managed by KPMJ"},null,null,null,null,null,null,null,null,null,{"$f":"IF('I spec'!K89=\"★\",\"★\",IF('I spec'!K89=\"◆\",\"◆\",\"\"))","v":""}]
[null,{"$f":"translation!E88","v":"Comments (Other requirements)"},null,null,null,null,null,null,null,null,null,null,null,{"$f":"translation!E89","v":"Operating condition, Duty cycle etc. (Describe your detail)"}]

{"sheet":"I spec","index":3,"n_rows":105,"n_cols":12,"rows_kept":105,"cut":false,"hidden":true,"merged":[[89,2,104,2]]}
[]
["2. Pump Size",null,null,28,45,80,112,140,200,"200H",{"$f":"'K3VL-Industrial J'!T18","v":80}]
["Basic specifications","Pump Displacement Range",null,"28 cm3","45 - 16 cm3","80 - 35 cm3","112 - 56 cm3","140 - 70 cm3","200 - 100 cm3","200 - 100 cm3",{"$f":"HLOOKUP($K$2,TABA2[],ROW(K2),FALSE)","v":"80 - 35 cm3"}]
[null,"Max",null,28,45,80,112,140,200,200,{"$f":"HLOOKUP($K$2,TABA2[],ROW(K3),FALSE)","v":80}]
[null,"Min",null,28,16,35,56,70,100,100,{"$f":"HLOOKUP($K$2,TABA2[],ROW(K4),FALSE)","v":35}]
[null,"Max Speed",null,3600,3250,3000,2700,2500,1900,2200,{"$f":"HLOOKUP($K$2,TABA2[],ROW(K5),FALSE)","v":3000}]
[null,"Self Prime Speed",null,3000,2700,2400,2200,2200,1900,2200,{"$f":"HLOOKUP($K$2,TABA2[],ROW(K6),FALSE)","v":2400}]
[null,"Peak pressure",null,35,35,35,35,35,35,35,{"$f":"HLOOKUP($K$2,TABA2[],ROW(K7),FALSE)","v":35}]
[null,"Rated pressure",null,32,32,32,32,32,32,32,{"$f":"HLOOKUP($K$2,TABA2[],ROW(K8),FALSE)","v":32}]
["Mount","J","JIS Key & SAE Mount","-","2 bolt SAE-B","2 bolt SAE-C","4 bolt SAE-D","4 bolt SAE-D","-","-",{"$f":"HLOOKUP($K$2,TABA2[],ROW(K9),FALSE)","v":"2 bolt SAE-C"}]
[null,"H","SAE Spline & SAE Mount","2 bolt SAE-B","2 bolt SAE-B","2 bolt SAE-C","4 bolt SAE-D","4 bolt SAE-D","4 bolt SAE-E","4 bolt SAE-E",{"$f":"HLOOKUP($K$2,TABA2[],ROW(K10),FALSE)","v":"2 bolt SAE-C"}]
[null,"K","SAE Key & SAE Mount","2 bolt SAE-B","2 bolt SAE-B","2 bolt SAE-C","4 bolt SAE-D","4 bolt SAE-D","4 bolt SAE-E","4 bolt SAE-E",{"$f":"HLOOKUP($K$2,TABA2[],ROW(K11),FALSE)","v":"2 bolt SAE-C"}]
[null,"S","SAE Spline & SAE Mount","2 bolt SAE-B","2 bolt SAE-B","2 bolt SAE-C","4 bolt SAE-D","4 bolt SAE-D","4 bolt SAE-E","4 bolt SAE-E",{"$f":"HLOOKUP($K$2,TABA2[],ROW(K12),FALSE)","v":"2 bolt SAE-C"}]
[null,"M","ISO Key & ISO Mount","-","2 bolt ISO φ100","2 bolt ISO φ125","4 bolt ISO φ180","4 bolt ISO φ180","-","-",{"$f":"HLOOKUP($K$2,TABA2[],ROW(K13),FALSE)","v":"2 bolt ISO φ125"},{"$f":"VLOOKUP('K3VL-Industrial J'!AT18,B10:K14,10,FALSE)","v":"2 bolt SAE-C"}]
["Input Shaft","J","JIS Key & SAE Mount","-","JIS Φ25j6","JIS Φ32k6","JIS Φ45k6","JIS Φ45k6","-","-",{"$f":"HLOOKUP($K$2,TABA2[],ROW(K14),FALSE)","v":"JIS Φ32k6"}]
[null,"H","SAE Spline & SAE Mount","Spline SAE-B","Spline SAE-BB","Spline SAE-C","Spline SAE-D","Spline SAE-D","Spline SAE-D","Spline SAE-D",{"$f":"HLOOKUP($K$2,TABA2[],ROW(K15),FALSE)","v":"Spline SAE-C"}]
[null,"K","SAE Key & SAE Mount","Keyed SAE-B","Keyed SAE-BB","Keyed SAE-C","Keyed SAE-D","Keyed SAE-D","Keyed SAE-D","Keyed SAE-D",{"$f":"HLOOKUP($K$2,TABA2[],ROW(K16),FALSE)","v":"Keyed SAE-C"}]
[null,"S","SAE Spline & SAE Mount","Spline SAE-B","Spline SAE-BB","Spline SAE-C","Spline SAE-D","Spline SAE-D","Spline SAE-D","Spline SAE-D",{"$f":"HLOOKUP($K$2,TABA2[],ROW(K17),FALSE)","v":"Spline SAE-C"}]
[null,"M","ISO Key & ISO Mount","-","ISO φ25.4","ISO φ31.75","ISO φ44.45","ISO φ44.45","-","-",{"$f":"HLOOKUP($K$2,TABA2[],ROW(K18),FALSE)","v":"ISO φ31.75"},{"$f":"VLOOKUP('K3VL-Industrial J'!AT18,B15:K19,10,FALSE)","v":"JIS Φ32k6"}]
["Input Shaft Torque Ratings","Spline SAE-B","SAE B Splined Shaft",171,171,"-","-","-","-","-",{"$f":"HLOOKUP($K$2,TABA2[],ROW(K19),FALSE)","v":"-"}]
[null,"Spline SAE-BB","SAE BB Splined Shaft","-",272,"-","-","-","-","-",{"$f":"HLOOKUP($K$2,TABA2[],ROW(K20),FALSE)","v":"-"}]
[null,"Spline SAE-C","SAE C Splined Shaft","-","-",552,552,552,"-","-",{"$f":"HLOOKUP($K$2,TABA2[],ROW(K21),FALSE)","v":552}]
[null,"Spline SAE-CC","SAE CC Splined Shaft","-","-","-",925,925,"-","-",{"$f":"HLOOKUP($K$2,TABA2[],ROW(K22),FALSE)","v":"-"}]
[null,"Spline SAE-D","SAE D Splined Shaft","-","-","-",1470,1470,1470,1470,{"$f":"HLOOKUP($K$2,TABA2[],ROW(K23),FALSE)","v":"-"}]
[null,"Keyed SAE-B","SAE B Keyed Shaft",145,"-","-","-","-","-","-",{"$f":"HLOOKUP($K$2,TABA2[],ROW(K24),FALSE)","v":"-"}]
[null,"Keyed SAE-BB","SAE BB Keyed Shaft","-",230,"-","-","-","-","-",{"$f":"HLOOKUP($K$2,TABA2[],ROW(K25),FALSE)","v":"-"}]
[null,"Keyed SAE-C","SAE C Keyed Shaft","-","-",430,430,430,"-","-",{"$f":"HLOOKUP($K$2,TABA2[],ROW(K26),FALSE)","v":430}]
[null,"Keyed SAE-CC","SAE CC Keyed Shaft","-","-","-",700,700,"-","-",{"$f":"HLOOKUP($K$2,TABA2[],ROW(K27),FALSE)","v":"-"}]
[null,"Keyed SAE-D","SAE D Keyed Shaft","-","-","-",1250,1250,1250,1250,{"$f":"HLOOKUP($K$2,TABA2[],ROW(K28),FALSE)","v":"-"}]
[null,"ISO φ25.4","ISO25 Keyed Shaft","-",230,"-","-","-","-","-",{"$f":"HLOOKUP($K$2,TABA2[],ROW(K29),FALSE)","v":"-"}]
[null,"ISO φ31.75","ISO32 Keyed Shaft","-","-",430,"-","-","-","-",{"$f":"HLOOKUP($K$2,TABA2[],ROW(K30),FALSE)","v":430}]
[null,"ISO φ44.45","ISO45 Keyed Shaft","-","-","-",980,980,"-","-",{"$f":"HLOOKUP($K$2,TABA2[],ROW(K31),FALSE)","v":"-"}]
[null,"JIS Φ25j6","JIS25 Keyed Shaft","-",230,"-","-","-","-","-",{"$f":"HLOOKUP($K$2,TABA2[],ROW(K32),FALSE)","v":"-"}]
[null,"JIS Φ32k6","JIS32 Keyed Shaft","-","-",430,"-","-","-","-",{"$f":"HLOOKUP($K$2,TABA2[],ROW(K33),FALSE)","v":430}]
[null,"JIS Φ45k6","JIS45 Keyed Shaft","-","-","-",980,980,"-","-",{"$f":"HLOOKUP($K$2,TABA2[],ROW(K34),FALSE)","v":"-"},{"$f":"VLOOKUP(L19,B20:K35,10,FALSE)","v":430}]
["Throguh Drive Torque","N",null,"-","-","-","-","-","-","-",{"$f":"HLOOKUP($K$2,TABA2[],ROW(K35),FALSE)","v":"-"}]
[null,"A","SAE-A",61,123,123,123,123,123,123,{"$f":"HLOOKUP($K$2,TABA2[],ROW(K36),FALSE)","v":123}]
[null,"B","SAE-B",155,290,340,340,340,340,340,{"$f":"HLOOKUP($K$2,TABA2[],ROW(K37),FALSE)","v":340}]
[null,"BB","SAE-BB","-",290,550,550,550,550,550,{"$f":"HLOOKUP($K$2,TABA2[],ROW(K38),FALSE)","v":550}]
[null,"C","SAE-C","-","-",400,700,700,990,990,{"$f":"HLOOKUP($K$2,TABA2[],ROW(K39),FALSE)","v":400}]
[null,"CC","SAE-CC","-","-","-",700,700,990,990,{"$f":"HLOOKUP($K$2,TABA2[],ROW(K40),FALSE)","v":"-"}]
[null,"D","SAE-D","-","-","-",700,700,990,990,{"$f":"HLOOKUP($K$2,TABA2[],ROW(K41),FALSE)","v":"-"}]
[null,"E","SAE-E","-","-","-","-","-",990,990,{"$f":"HLOOKUP($K$2,TABA2[],ROW(K42),FALSE)","v":"-"},{"$f":"VLOOKUP(IF(OR('K3VL-Industrial J'!AT6=0,'K3VL-Industrial J'!AT6=\"N\",'K3VL-Industrial J'!AT6=\"R\"),\"N\",IF('K3VL-Industrial J'!AT6=\"C4\",\"C\",'K3VL-Industrial J'!AT6)),B36:K43,10,FALSE)","v":"-"}]
[null,null,null,null,null,null,null,null,null,null,{"$f":"HLOOKUP($K$2,TABA2[],ROW(K43),FALSE)","v":0}]
["3. Design Series","/B",null,"●","●","●","●","●","●","●",{"$f":"HLOOKUP($K$2,TABA2[],ROW(K44),FALSE)","v":"●"}]
["4. Hydraulic Fluid Type","-","Mineral Oil, Nitrile seal + Viton Shaft Seal","●","●","●","●","●","●","●",{"$f":"HLOOKUP($K$2,TABA2[],ROW(K45),FALSE)","v":"●"}]
["5. Circuit Type",1,"Standard Type","●","●","●","●","●","●","●",{"$f":"HLOOKUP($K$2,TABA2[],ROW(K46),FALSE)","v":"●"}]
["6. Through Drive & Porting","N","With Through Drive Shaft, Without Coupling,　Closed with Steel Cover, Side Ported","●","●","●","●","●","●","●",{"$f":"HLOOKUP($K$2,TABA2[],ROW(K47),FALSE)","v":"●"}]
[null,0,"Without Through Drive, Side Ported",{"$f":"IF('K3VL-Industrial J'!$AT$16=\"L\",\"-\",\"●\")","v":"●"},{"$f":"IF('K3VL-Industrial J'!$AT$16=\"L\",\"-\",\"●\")","v":"●"},{"$f":"IF('K3VL-Industrial J'!$AT$16=\"L\",\"-\",\"●\")","v":"●"},{"$f":"IF('K3VL-Industrial J'!$AT$16=\"L\",\"-\",\"●\")","v":"●"},{"$f":"IF('K3VL-Industrial J'!$AT$16=\"L\",\"-\",\"●\")","v":"●"},{"$f":"IF('K3VL-Industrial J'!$AT$16=\"L\",\"-\",\"●\")","v":"●"},"-",{"$f":"HLOOKUP($K$2,TABA2[],ROW(K48),FALSE)","v":"●"}]
[null,"A","SAE-A Through Drive, Side Ported","●","●","●","●","●","●","●",{"$f":"HLOOKUP($K$2,TABA2[],ROW(K49),FALSE)","v":"●"}]
[null,"B","SAE-B Through Drive, Side Ported","●","●","●","●","●","●","●",{"$f":"HLOOKUP($K$2,TABA2[],ROW(K50),FALSE)","v":"●"}]
[null,"BB","SAE-BB Through Drive, Side Ported","-","●","●","●","●","●","●",{"$f":"HLOOKUP($K$2,TABA2[],ROW(K51),FALSE)","v":"●"}]
[null,"C","SAE-C, 2 bolt, Through Drive, Side Ported","-","-","●","●","●","●","●",{"$f":"HLOOKUP($K$2,TABA2[],ROW(K52),FALSE)","v":"●"}]
[null,"CC","SAE-CC, 2 bolt, Through Drive, Side Ported","-","-","-","●","●","●","●",{"$f":"HLOOKUP($K$2,TABA2[],ROW(K53),FALSE)","v":"-"}]
[null,"D","SAE-D, Through Drive, Side Ported","-","-","-","●","●","●","●",{"$f":"HLOOKUP($K$2,TABA2[],ROW(K54),FALSE)","v":"-"}]
[null,"E","SAE-E, Through Drive, Side Ported","-","-","-","-","-","●","●",{"$f":"HLOOKUP($K$2,TABA2[],ROW(K55),FALSE)","v":"-"}]
[null,"R","Without Through Drive, Rear Ported","-","●","●","●","●","-","-",{"$f":"HLOOKUP($K$2,TABA2[],ROW(K56),FALSE)","v":"●"},{"$f":"VLOOKUP('K3VL-Industrial J'!AT6,B48:K57,10,FALSE)","v":"●"}]
["7. Direction of Rotation","R","Clockwise","●","●","●","●","●","●","●",{"$f":"HLOOKUP($K$2,TABA2[],ROW(K57),FALSE)","v":"●"}]
[null,"L","Counterclockwise","●","●","●","●","●","●","●",{"$f":"HLOOKUP($K$2,TABA2[],ROW(K58),FALSE)","v":"●"}]
["8. Mounting Flange & Shaft","J"," SAE-* マウント & JIS キー軸 (ドレンポート Gネジ変換アダプタ付)","-","●","●","●","●","-","-",{"$f":"HLOOKUP($K$2,TABA2[],ROW(K59),FALSE)","v":"●"}]
[null,"H"," SAE-* マウント & SAE-* スプライン軸 (ドレンポート Gネジ変換アダプタ付)","●","●","●","●","●","●","●",{"$f":"HLOOKUP($K$2,TABA2[],ROW(K60),FALSE)","v":"●"}]
[null,"K","SAE Key & SAE Mount","●","●","●","●","●","●","-",{"$f":"HLOOKUP($K$2,TABA2[],ROW(K61),FALSE)","v":"●"}]
[null,"S","SAE Spline & SAE Mount","●","●","●","●","●","●","●",{"$f":"HLOOKUP($K$2,TABA2[],ROW(K62),FALSE)","v":"●"}]
[null,"M","ISO Key & ISO Mount","-","●","●","●","●","-","-",{"$f":"HLOOKUP($K$2,TABA2[],ROW(K63),FALSE)","v":"●"},{"$f":"VLOOKUP('K3VL-Industrial J'!AT18,B60:K64,10,FALSE)","v":"●"}]
[null,null,null,null,null,null,null,null,null,null,{"$f":"HLOOKUP($K$2,TABA2[],ROW(K64),FALSE)","v":0}]
["9. Porting Threads","M","Metric Threads","●","●","●","●","●","●","●",{"$f":"HLOOKUP($K$2,TABA2[],ROW(K65),FALSE)","v":"●"}]
[null,"S","UNC Thread (Not Available with \"M\" ISO Key Shaft & Mount)",{"$f":"IF('K3VL-Industrial J'!$AT$18=\"M\",\"-\",\"●\")","v":"●"},{"$f":"IF('K3VL-Industrial J'!$AT$18=\"M\",\"-\",\"●\")","v":"●"},{"$f":"IF('K3VL-Industrial J'!$AT$18=\"M\",\"-\",\"●\")","v":"●"},{"$f":"IF('K3VL-Industrial J'!$AT$18=\"M\",\"-\",\"●\")","v":"●"},{"$f":"IF('K3VL-Industrial J'!$AT$18=\"M\",\"-\",\"●\")","v":"●"},{"$f":"IF('K3VL-Industrial J'!$AT$18=\"M\",\"-\",\"●\")","v":"●"},{"$f":"IF('K3VL-Industrial J'!$AT$18=\"M\",\"-\",\"●\")","v":"●"},{"$f":"HLOOKUP($K$2,TABA2[],ROW(K66),FALSE)","v":"●"},{"$f":"VLOOKUP('K3VL-Industrial J'!AT23,B66:K67,10,FALSE)","v":"●"}]
[null,null,null,null,null,null,null,null,null,null,{"$f":"HLOOKUP($K$2,TABA2[],ROW(K67),FALSE)","v":0}]
["10. Regulator Type","P0","Pressure Cut-Off","●","●","●","●","●","●","●",{"$f":"HLOOKUP($K$2,TABA2[],ROW(K68),FALSE)","v":"●"}]
[null,"L0","Load Sense + Pressure Cut-Off (With LS Bleed)","●","●","●","●","●","●","●",{"$f":"HLOOKUP($K$2,TABA2[],ROW(K69),FALSE)","v":"●"}]
[null,"LN","Load Sense & Intergral Unload (Normally Open)","-","●","●","●","●","●","●",{"$f":"HLOOKUP($K$2,TABA2[],ROW(K70),FALSE)","v":"●"}]
[null,"PN","Pressure Cut-Off & Intergral Unload (Normally Open)","-","●","●","●","●","●","●",{"$f":"HLOOKUP($K$2,TABA2[],ROW(K71),FALSE)","v":"●"}]
[null,"LV","Load Sense & Intergral Proportional Relief","-","●","●","●","●","●","●",{"$f":"HLOOKUP($K$2,TABA2[],ROW(K72),FALSE)","v":"●"}]
[null,"PV","Pressure Cut-Off & Intergral Proportional Relief","-","●","●","●","●","●","●",{"$f":"HLOOKUP($K$2,TABA2[],ROW(K73),FALSE)","v":"●"}]
[null,"L1","Load Sense + Pressure Cut-Off (With LS Bleed Blocked)","●","●","●","●","●","●","●",{"$f":"HLOOKUP($K$2,TABA2[],ROW(K74),FALSE)","v":"●"},{"$f":"VLOOKUP('K3VL-Industrial J'!AT26,B69:K75,10,FALSE)","v":"●"}]
["11. Unloader Solenoid","Blank","For all other options except PN/PM/LN/LM/PV2/LV2","●",{"$f":"IF(OR('K3VL-Industrial J'!$AT$26=\"LN\",'K3VL-Industrial J'!$AT$26=\"PN\"),\"-\",\"●\")","v":"●"},{"$f":"IF(OR('K3VL-Industrial J'!$AT$26=\"LN\",'K3VL-Industrial J'!$AT$26=\"PN\"),\"-\",\"●\")","v":"●"},{"$f":"IF(OR('K3VL-Industrial J'!$AT$26=\"LN\",'K3VL-Industrial J'!$AT$26=\"PN\"),\"-\",\"●\")","v":"●"},{"$f":"IF(OR('K3VL-Industrial J'!$AT$26=\"LN\",'K3VL-Industrial J'!$AT$26=\"PN\"),\"-\",\"●\")","v":"●"},{"$f":"IF(OR('K3VL-Industrial J'!$AT$26=\"LN\",'K3VL-Industrial J'!$AT$26=\"PN\"),\"-\",\"●\")","v":"●"},{"$f":"IF(OR('K3VL-Industrial J'!$AT$26=\"LN\",'K3VL-Industrial J'!$AT$26=\"PN\"),\"-\",\"●\")","v":"●"},{"$f":"HLOOKUP($K$2,TABA2[],ROW(K75),FALSE)","v":"●"}]
[null,"115A","115V AC, 50, 60 Hz - DIN 43550 Plug","-",{"$f":"IF(OR('K3VL-Industrial J'!$AT$26=\"LN\",'K3VL-Industrial J'!$AT$26=\"PN\"),\"●\",\"-\")","v":"-"},{"$f":"IF(OR('K3VL-Industrial J'!$AT$26=\"LN\",'K3VL-Industrial J'!$AT$26=\"PN\"),\"●\",\"-\")","v":"-"},{"$f":"IF(OR('K3VL-Industrial J'!$AT$26=\"LN\",'K3VL-Industrial J'!$AT$26=\"PN\"),\"●\",\"-\")","v":"-"},{"$f":"IF(OR('K3VL-Industrial J'!$AT$26=\"LN\",'K3VL-Industrial J'!$AT$26=\"PN\"),\"●\",\"-\")","v":"-"},{"$f":"IF(OR('K3VL-Industrial J'!$AT$26=\"LN\",'K3VL-Industrial J'!$AT$26=\"PN\"),\"●\",\"-\")","v":"-"},{"$f":"IF(OR('K3VL-Industrial J'!$AT$26=\"LN\",'K3VL-Industrial J'!$AT$26=\"PN\"),\"●\",\"-\")","v":"-"},{"$f":"HLOOKUP($K$2,TABA2[],ROW(K76),FALSE)","v":"-"}]
[null,"230A","230V AC, 50, 60 Hz - DIN 43550 Plug","-",{"$f":"IF(OR('K3VL-Industrial J'!$AT$26=\"LN\",'K3VL-Industrial J'!$AT$26=\"PN\"),\"●\",\"-\")","v":"-"},{"$f":"IF(OR('K3VL-Industrial J'!$AT$26=\"LN\",'K3VL-Industrial J'!$AT$26=\"PN\"),\"●\",\"-\")","v":"-"},{"$f":"IF(OR('K3VL-Industrial J'!$AT$26=\"LN\",'K3VL-Industrial J'!$AT$26=\"PN\"),\"●\",\"-\")","v":"-"},{"$f":"IF(OR('K3VL-Industrial J'!$AT$26=\"LN\",'K3VL-Industrial J'!$AT$26=\"PN\"),\"●\",\"-\")","v":"-"},{"$f":"IF(OR('K3VL-Industrial J'!$AT$26=\"LN\",'K3VL-Industrial J'!$AT$26=\"PN\"),\"●\",\"-\")","v":"-"},{"$f":"IF(OR('K3VL-Industrial J'!$AT$26=\"LN\",'K3VL-Industrial J'!$AT$26=\"PN\"),\"●\",\"-\")","v":"-"},{"$f":"HLOOKUP($K$2,TABA2[],ROW(K77),FALSE)","v":"-"}]
[null,"12D","12V DC - DIN 43550 Plug","-",{"$f":"IF(OR('K3VL-Industrial J'!$AT$26=\"LN\",'K3VL-Industrial J'!$AT$26=\"PN\"),\"●\",\"-\")","v":"-"},{"$f":"IF(OR('K3VL-Industrial J'!$AT$26=\"LN\",'K3VL-Industrial J'!$AT$26=\"PN\"),\"●\",\"-\")","v":"-"},{"$f":"IF(OR('K3VL-Industrial J'!$AT$26=\"LN\",'K3VL-Industrial J'!$AT$26=\"PN\"),\"●\",\"-\")","v":"-"},{"$f":"IF(OR('K3VL-Industrial J'!$AT$26=\"LN\",'K3VL-Industrial J'!$AT$26=\"PN\"),\"●\",\"-\")","v":"-"},{"$f":"IF(OR('K3VL-Industrial J'!$AT$26=\"LN\",'K3VL-Industrial J'!$AT$26=\"PN\"),\"●\",\"-\")","v":"-"},{"$f":"IF(OR('K3VL-Industrial J'!$AT$26=\"LN\",'K3VL-Industrial J'!$AT$26=\"PN\"),\"●\",\"-\")","v":"-"},{"$f":"HLOOKUP($K$2,TABA2[],ROW(K78),FALSE)","v":"-"}]
[null,"24D","24V DC - DIN 43550 Plug","-",{"$f":"IF(OR('K3VL-Industrial J'!$AT$26=\"LN\",'K3VL-Industrial J'!$AT$26=\"PN\"),\"●\",\"-\")","v":"-"},{"$f":"IF(OR('K3VL-Industrial J'!$AT$26=\"LN\",'K3VL-Industrial J'!$AT$26=\"PN\"),\"●\",\"-\")","v":"-"},{"$f":"IF(OR('K3VL-Industrial J'!$AT$26=\"LN\",'K3VL-Industrial J'!$AT$26=\"PN\"),\"●\",\"-\")","v":"-"},{"$f":"IF(OR('K3VL-Industrial J'!$AT$26=\"LN\",'K3VL-Industrial J'!$AT$26=\"PN\"),\"●\",\"-\")","v":"-"},{"$f":"IF(OR('K3VL-Industrial J'!$AT$26=\"LN\",'K3VL-Industrial J'!$AT$26=\"PN\"),\"●\",\"-\")","v":"-"},{"$f":"IF(OR('K3VL-Industrial J'!$AT$26=\"LN\",'K3VL-Industrial J'!$AT$26=\"PN\"),\"●\",\"-\")","v":"-"},{"$f":"HLOOKUP($K$2,TABA2[],ROW(K79),FALSE)","v":"-"},{"$f":"VLOOKUP('K3VL-Industrial J'!AT34,B76:K80,10,FALSE)","v":"●"}]
["13. Additional Control Options","Blank","Without Additional Control","●","●","●","●","●","●","●",{"$f":"HLOOKUP($K$2,TABA2[],ROW(K80),FALSE)","v":"●"}]
[null,"/1","Torque Limiter (with provision for torque limiter or displacement control)","-","●","●","●","●","●","●",{"$f":"HLOOKUP($K$2,TABA2[],ROW(K81),FALSE)","v":"●"},{"$f":"VLOOKUP('K3VL-Industrial J'!AT39,B81:K82,10,FALSE)","v":"●"}]
["14. Torque Limiting & Displacement Control","Blank","Without Additional Control","●","●","●","●","●","●","●",{"$f":"HLOOKUP($K$2,TABA2[],ROW(K82),FALSE)","v":"●"}]
[null,"-H*","High Setting Range (available for all ‘/1’, ‘/2’ & ‘/3’ options)","-",{"$f":"IF('K3VL-Industrial J'!$AT$39=\"/1\",\"●\",\"-\")","v":"●"},{"$f":"IF('K3VL-Industrial J'!$AT$39=\"/1\",\"●\",\"-\")","v":"●"},{"$f":"IF('K3VL-Industrial J'!$AT$39=\"/1\",\"●\",\"-\")","v":"●"},{"$f":"IF('K3VL-Industrial J'!$AT$39=\"/1\",\"●\",\"-\")","v":"●"},{"$f":"IF('K3VL-Industrial J'!$AT$39=\"/1\",\"●\",\"-\")","v":"●"},{"$f":"IF('K3VL-Industrial J'!$AT$39=\"/1\",\"●\",\"-\")","v":"●"},{"$f":"HLOOKUP($K$2,TABA2[],ROW(K83),FALSE)","v":"●"}]
[null,"-M*","Medium Setting Range (available for ‘/1’ type only)","-",{"$f":"IF('K3VL-Industrial J'!$AT$39=\"/1\",\"●\",\"-\")","v":"●"},{"$f":"IF('K3VL-Industrial J'!$AT$39=\"/1\",\"●\",\"-\")","v":"●"},{"$f":"IF('K3VL-Industrial J'!$AT$39=\"/1\",\"●\",\"-\")","v":"●"},{"$f":"IF('K3VL-Industrial J'!$AT$39=\"/1\",\"●\",\"-\")","v":"●"},{"$f":"IF('K3VL-Industrial J'!$AT$39=\"/1\",\"●\",\"-\")","v":"●"},{"$f":"IF('K3VL-Industrial J'!$AT$39=\"/1\",\"●\",\"-\")","v":"●"},{"$f":"HLOOKUP($K$2,TABA2[],ROW(K84),FALSE)","v":"●"}]
[null,"-L*","Low Setting Range (available for ‘/1’ type only)","-",{"$f":"IF('K3VL-Industrial J'!$AT$39=\"/1\",\"●\",\"-\")","v":"●"},{"$f":"IF('K3VL-Industrial J'!$AT$39=\"/1\",\"●\",\"-\")","v":"●"},{"$f":"IF('K3VL-Industrial J'!$AT$39=\"/1\",\"●\",\"-\")","v":"●"},{"$f":"IF('K3VL-Industrial J'!$AT$39=\"/1\",\"●\",\"-\")","v":"●"},{"$f":"IF('K3VL-Industrial J'!$AT$39=\"/1\",\"●\",\"-\")","v":"●"},{"$f":"IF('K3VL-Industrial J'!$AT$39=\"/1\",\"●\",\"-\")","v":"●"},{"$f":"HLOOKUP($K$2,TABA2[],ROW(K85),FALSE)","v":"●"}]
[null,"-E*","Electric Displacement Control (Pilot Pressure Required) AMP Flying Lead 24V DC","-",{"$f":"IF('K3VL-Industrial J'!$AT$39=\"/1\",\"●\",\"-\")","v":"●"},{"$f":"IF('K3VL-Industrial J'!$AT$39=\"/1\",\"●\",\"-\")","v":"●"},{"$f":"IF('K3VL-Industrial J'!$AT$39=\"/1\",\"●\",\"-\")","v":"●"},{"$f":"IF('K3VL-Industrial J'!$AT$39=\"/1\",\"●\",\"-\")","v":"●"},{"$f":"IF('K3VL-Industrial J'!$AT$39=\"/1\",\"●\",\"-\")","v":"●"},{"$f":"IF('K3VL-Industrial J'!$AT$39=\"/1\",\"●\",\"-\")","v":"●"},{"$f":"HLOOKUP($K$2,TABA2[],ROW(K86),FALSE)","v":"●"},{"$f":"VLOOKUP('K3VL-Industrial J'!AT41,B83:K87,10,FALSE)","v":"●"}]
["15. Special Suffix","Blank",null,"●","●","●","●","●","●","●",{"$f":"HLOOKUP($K$2,TABA2[],ROW(K87),FALSE)","v":"●"}]
[null,"-TB*","Managed by KPMJ","●","●","●","●","●","●","●",{"$f":"HLOOKUP($K$2,TABA2[],ROW(K88),FALSE)","v":"●"}]
[null,"L6",null,"-","-",73,"-",146,"-","-",{"$f":"HLOOKUP($K$2,TABA2[],ROW(K89),FALSE)","v":73}]
[null,"L5",null,"-","-",82,"-",154,200,200,{"$f":"HLOOKUP($K$2,TABA2[],ROW(K90),FALSE)","v":82}]
[null,"L4",null,"-",49,91,121,163,216,216,{"$f":"HLOOKUP($K$2,TABA2[],ROW(K91),FALSE)","v":91}]
[null,"L3",null,"-",53,100,146,182,246,246,{"$f":"HLOOKUP($K$2,TABA2[],ROW(K92),FALSE)","v":100}]
[null,"L2",null,"-",61,107,154,200,298,298,{"$f":"HLOOKUP($K$2,TABA2[],ROW(K93),FALSE)","v":107}]
[null,"L1",null,"-",73,121,163,216,307,307,{"$f":"HLOOKUP($K$2,TABA2[],ROW(K94),FALSE)","v":121}]
[null,"M4",null,"-",82,146,182,"-","-","-",{"$f":"HLOOKUP($K$2,TABA2[],ROW(K95),FALSE)","v":146}]
[null,"M3",null,"-",91,154,200,246,367,367,{"$f":"HLOOKUP($K$2,TABA2[],ROW(K96),FALSE)","v":154}]
[null,"M2",null,"-",100,163,216,298,409,409,{"$f":"HLOOKUP($K$2,TABA2[],ROW(K97),FALSE)","v":163}]
[null,"M1",null,"-",107,182,246,307,450,450,{"$f":"HLOOKUP($K$2,TABA2[],ROW(K98),FALSE)","v":182}]
[null,"H6",null,"-","-","-","-","-",492,492,{"$f":"HLOOKUP($K$2,TABA2[],ROW(K99),FALSE)","v":"-"}]
[null,"H5",null,"-","-","-","-","-",540,540,{"$f":"HLOOKUP($K$2,TABA2[],ROW(K100),FALSE)","v":"-"}]
[null,"H4",null,"-",121,200,298,367,610,610,{"$f":"HLOOKUP($K$2,TABA2[],ROW(K101),FALSE)","v":200}]
[null,"H3",null,"-",146,216,307,409,618,618,{"$f":"HLOOKUP($K$2,TABA2[],ROW(K102),FALSE)","v":216}]
[null,"H2",null,"-",154,246,367,450,711,711,{"$f":"HLOOKUP($K$2,TABA2[],ROW(K103),FALSE)","v":246}]
[null,"H1",null,"-",163,298,409,492,752,752,{"$f":"HLOOKUP($K$2,TABA2[],ROW(K104),FALSE)","v":298}]

{"sheet":"translation","index":4,"n_rows":222,"n_cols":5,"rows_kept":222,"cut":false,"hidden":true,"merged":[]}
[null,"列1","列2","列3",{"$f":"'K3VL-Mobile'!V2","v":"Language : English"}]
[null,"言語 : 日本語","Language : English","語言 : 中文"]
[null,"K3VL シリーズ モバイル用 引合仕様書","K3VL series for Mobiles Inquiry Form","K3VL 系列 用于移动设备 询价规格书",{"$f":"HLOOKUP($E$1,TAB[],ROW(E2),FALSE)","v":"K3VL series for Mobiles Inquiry Form"}]
[null,"K3VL シリーズ 日本 産業機器用 引合仕様書","K3VL series for J Industrial Inquiry Form","K3VL 系列 日本工业设备 询价规格书",{"$f":"HLOOKUP($E$1,TAB[],ROW(E3),FALSE)","v":"K3VL series for J Industrial Inquiry Form"}]
[null,"赤枠のセルのドロップダウンリストからアイテムを選択してください。★付きのオプションは当社へ連絡ください、◆付きのオプションはヨーロッパまたはアメリカでのみ利用可能です。","Please select an item from a drop down list in a cell with thick red borders. Options with ★ is that please contact Kawasaki, options with ◆ is available in Europe/US.","请从红框单元格的下拉列表中选择项目。带★的选项请联系Kawasaki, 带◆的选项仅在欧洲或美国可使用。",{"$f":"HLOOKUP($E$1,TAB[],ROW(E4),FALSE)","v":"Please select an item from a drop down list in a cell with thick red borders. Options with ★ is that please contact Kawasaki, options with ◆ is available in Europe/US."}]
[null,"赤枠のセルのドロップダウンリストからアイテムを選択してください。★付きのオプションは当社へ連絡ください。","Please select an item from a drop down list in a cell with thick red borders. Options with ★ is that please contact Kawasaki.","请从红框单元格的下拉列表中选择项目。带★的选项请联系Kawasaki。",{"$f":"HLOOKUP($E$1,TAB[],ROW(E5),FALSE)","v":"Please select an item from a drop down list in a cell with thick red borders. Options with ★ is that please contact Kawasaki."}]
[null,"セルの色が赤の場合､当社標準仕様範囲外となります｡ 当社仕様範囲外の場合でも､備考に詳細を記載頂き､当社までご相談ください｡","If the cell's color is red, the request is out of Kawasaki standard specifications range. Even if the request is out of Kawasaki specification range, please describe the detail on the note and consult with Kawasaki.","如单元格颜色为红色时, 则超出本公司标准规格范围。即使是本公司规格范围外的情况, 也请在评论中详细记载, 并与本公司协商。",{"$f":"HLOOKUP($E$1,TAB[],ROW(E6),FALSE)","v":"If the cell's color is red, the request is out of Kawasaki standard specifications range. Even if the request is out of Kawasaki specification range, please describe the detail on the note and consult with Kawasaki."}]
[null,"記入日 ：","Fill-in Date ：","填写日期 ：",{"$f":"HLOOKUP($E$1,TAB[],ROW(E7),FALSE)","v":"Fill-in Date ："}]
[null,"作成者 ：","Author ：","编制者 ：",{"$f":"HLOOKUP($E$1,TAB[],ROW(E8),FALSE)","v":"Author ："}]
[null,"用途 ：","Application ：","用途 ：",{"$f":"HLOOKUP($E$1,TAB[],ROW(E9),FALSE)","v":"Application ："}]
[null,"実機型式 ：","Machine M/C ：","整机型号 ：",{"$f":"HLOOKUP($E$1,TAB[],ROW(E10),FALSE)","v":"Machine M/C ："}]
[null,"顧客 ：","Customer ：","客户 ：",{"$f":"HLOOKUP($E$1,TAB[],ROW(E11),FALSE)","v":"Customer ："}]
[null,"ポンプ型式 ：","Pump Model ：","泵型号 ：",{"$f":"HLOOKUP($E$1,TAB[],ROW(E12),FALSE)","v":"Pump Model ："}]
[null,"斜板式アキシャルピストンポンプ","Swash Plate Type Axial Piston Pump","斜盘式轴向柱塞泵",{"$f":"HLOOKUP($E$1,TAB[],ROW(E13),FALSE)","v":"Swash Plate Type Axial Piston Pump"}]
[null,"型式","Model Code","型号代码",{"$f":"HLOOKUP($E$1,TAB[],ROW(E14),FALSE)","v":"Model Code"}]
[null,"全ての必須項目に入力がされていません。","All required fields are not filled in.",{"$f":"\"所有必须填写项目尚未填写。\"","v":"所有必须填写项目尚未填写。"},{"$f":"HLOOKUP($E$1,TAB[],ROW(E15),FALSE)","v":"All required fields are not filled in."}]
[null,"項目","Items","项目",{"$f":"HLOOKUP($E$1,TAB[],ROW(E16),FALSE)","v":"Items"}]
[null,"ポンプ最大押しのけ容積","Pump Max Displacement","泵最大排量",{"$f":"HLOOKUP($E$1,TAB[],ROW(E17),FALSE)","v":"Pump Max Displacement"}]
[null,"最高 / 定格回転数","Max / Rated Speed","最高/额定转速",{"$f":"HLOOKUP($E$1,TAB[],ROW(E18),FALSE)","v":"Max / Rated Speed"}]
[null,"ピーク / 定格圧力","Peak / Rated Pressure","峰值/额定压力",{"$f":"HLOOKUP($E$1,TAB[],ROW(E19),FALSE)","v":"Peak / Rated Pressure"}]
[null,"ロードセンシング差圧設定 / 公差","Set Pressure of Load Sensing Differential Pressure / Tolerance","负载传感压差的设定/公差",{"$f":"HLOOKUP($E$1,TAB[],ROW(E20),FALSE)","v":"Set Pressure of Load Sensing Differential Pressure / Tolerance"}]
[null,"カットオフ圧力設定 / 公差","Set Pressure of Cut-Off / Tolerance","截断压力的设定/公差",{"$f":"HLOOKUP($E$1,TAB[],ROW(E21),FALSE)","v":"Set Pressure of Cut-Off / Tolerance"}]
[null,"吸入圧力 / 油温範囲","Suction Pressure / Temperature Range","吸入压力/油温范围",{"$f":"HLOOKUP($E$1,TAB[],ROW(E22),FALSE)","v":"Suction Pressure / Temperature Range"}]
[null,"ポンプ / スルードライブ入力トルク","Pump / T/D Input Torque","泵/贯通式驱动的输入转矩",{"$f":"HLOOKUP($E$1,TAB[],ROW(E23),FALSE)","v":"Pump / T/D Input Torque"}]
[null,"許容ケーシング圧","Case Drain Pressure","容许壳体压",{"$f":"HLOOKUP($E$1,TAB[],ROW(E24),FALSE)","v":"Case Drain Pressure"}]
[null,"油種 / 粘度の許容範囲","Oil Type / Oil Viscosity Range","油种/粘度的允许范围",{"$f":"HLOOKUP($E$1,TAB[],ROW(E25),FALSE)","v":"Oil Type / Oil Viscosity Range"}]
[null,"銘板","Name Plate","铭牌",{"$f":"HLOOKUP($E$1,TAB[],ROW(E26),FALSE)","v":"Name Plate"}]
[null,"塗装仕様","Paint","涂装规格",{"$f":"HLOOKUP($E$1,TAB[],ROW(E27),FALSE)","v":"Paint"}]
[null,"顧客部品番号","Customer Part Number","客户零部件编号",{"$f":"HLOOKUP($E$1,TAB[],ROW(E28),FALSE)","v":"Customer Part Number"}]
[null,"試供要件","Proto Type Requirement","试供要求",{"$f":"HLOOKUP($E$1,TAB[],ROW(E29),FALSE)","v":"Proto Type Requirement"}]
[null,"量産スケジュール","Production Schedule","量产日程",{"$f":"HLOOKUP($E$1,TAB[],ROW(E30),FALSE)","v":"Production Schedule"}]
[null,"元型式(競合)","Original Model (Competitor)","原型号 (竞争)",{"$f":"HLOOKUP($E$1,TAB[],ROW(E31),FALSE)","v":"Original Model (Competitor)"}]
[null,"標準仕様","Standard Specifications","标准规格",{"$f":"HLOOKUP($E$1,TAB[],ROW(E32),FALSE)","v":"Standard Specifications"}]
[null,{"$f":"\"ポンプ最大押しのけ容積: \"&TEXT('M spec'!K3,\"0\")&\"\"","v":"ポンプ最大押しのけ容積: 80 - 35 cm3"},{"$f":"\"Pump Max Displacement: \"&TEXT('M spec'!K3,\"0\")&\"\"","v":"Pump Max Displacement: 80 - 35 cm3"},{"$f":"\"泵最大排量: \"&TEXT('M spec'!K3,\"0\")&\"\"","v":"泵最大排量: 80 - 35 cm3"},{"$f":"HLOOKUP($E$1,TAB[],ROW(E33),FALSE)","v":"Pump Max Displacement: 80 - 35 cm3"}]
[null,{"$f":"\"最高回転数: \"&TEXT('M spec'!K6,\"0\")&\" \"&\"rpm\"","v":"最高回転数: 3000 rpm"},{"$f":"\"Max Speed: \"&TEXT('M spec'!K6,\"0\")&\" \"&\"rpm\"","v":"Max Speed: 3000 rpm"},{"$f":"\"最高转速: \"&TEXT('M spec'!K6,\"0\")&\" \"&\"rpm\"","v":"最高转速: 3000 rpm"},{"$f":"HLOOKUP($E$1,TAB[],ROW(E34),FALSE)","v":"Max Speed: 3000 rpm"}]
[null,{"$f":"\"自吸最高回転数: \"&TEXT('M spec'!K7,\"0\")&\" \"&\"rpm\"&\" \"&\"@\"&TEXT('M spec'!K4,\"0\")&\"cm3\"","v":"自吸最高回転数: 2400 rpm @80cm3"},{"$f":"\"Self Prime Max: \"&TEXT('M spec'!K7,\"0\")&\" \"&\"rpm\"&\" \"&\"@\"&TEXT('M spec'!K4,\"0\")&\"cm3\"","v":"Self Prime Max: 2400 rpm @80cm3"},{"$f":"\"自吸最高转速 : \"&TEXT('M spec'!K7,\"0\")&\" \"&\"rpm\"&\" \"&\"@\"&TEXT('M spec'!K4,\"0\")&\"cm3\"","v":"自吸最高转速 : 2400 rpm @80cm3"},{"$f":"HLOOKUP($E$1,TAB[],ROW(E35),FALSE)","v":"Self Prime Max: 2400 rpm @80cm3"}]
["rev.2","定格回転数が自吸最高回転数より高い場合、ブースト圧が必要です。","If Rated speed is higher than self prime speed, burst pressure is required.","当额定转速超过自吸最高转速时，需要施加增压压力。",{"$f":"HLOOKUP($E$1,TAB[],ROW(E36),FALSE)","v":"If Rated speed is higher than self prime speed, burst pressure is required."}]
["rev.2","自吸最高回転数が最高回転数より高い場合、当社へご連絡ください。","If self prime max. is higher than max. speed, please contact KPMJ.","若自吸最高转速超过最高转速，请及时与我司联系。",{"$f":"HLOOKUP($E$1,TAB[],ROW(E37),FALSE)","v":"If self prime max. is higher than max. speed, please contact KPMJ."}]
[null,{"$f":"\"ピーク圧力: \"&TEXT('M spec'!K8,\"0\")&\" \"&\"MPa\"","v":"ピーク圧力: 35 MPa"},{"$f":"\"Peak: \"&TEXT('M spec'!K8,\"0\")&\" \"&\"MPa\"","v":"Peak: 35 MPa"},{"$f":"\"峰值压力: \"&TEXT('M spec'!K8,\"0\")&\" \"&\"MPa\"","v":"峰值压力: 35 MPa"},{"$f":"HLOOKUP($E$1,TAB[],ROW(E38),FALSE)","v":"Peak: 35 MPa"}]
[null,{"$f":"\"定格圧力: \"&TEXT('M spec'!K9,\"0\")&\" \"&\"MPa\"","v":"定格圧力: 32 MPa"},{"$f":"\"Rated: \"&TEXT('M spec'!K9,\"0\")&\" \"&\"MPa\"","v":"Rated: 32 MPa"},{"$f":"\"额定压力: \"&TEXT('M spec'!K9,\"0\")&\" \"&\"MPa\"","v":"额定压力: 32 MPa"},{"$f":"HLOOKUP($E$1,TAB[],ROW(E39),FALSE)","v":"Rated: 32 MPa"}]
[null,{"$f":"\"ポンプ最大押しのけ容積: \"&TEXT('I spec'!K3,\"0\")&\"\"","v":"ポンプ最大押しのけ容積: 80 - 35 cm3"},{"$f":"\"Pump Max Displacement: \"&TEXT('I spec'!K3,\"0\")&\"\"","v":"Pump Max Displacement: 80 - 35 cm3"},{"$f":"\"泵最大排量: \"&TEXT('I spec'!K3,\"0\")&\"\"","v":"泵最大排量: 80 - 35 cm3"},{"$f":"HLOOKUP($E$1,TAB[],ROW(E40),FALSE)","v":"Pump Max Displacement: 80 - 35 cm3"}]
[null,{"$f":"\"最高回転数: \"&TEXT('I spec'!K6,\"0\")&\" \"&\"rpm\"","v":"最高回転数: 3000 rpm"},{"$f":"\"Max Speed: \"&TEXT('I spec'!K6,\"0\")&\" \"&\"rpm\"","v":"Max Speed: 3000 rpm"},{"$f":"\"最高转速: \"&TEXT('I spec'!K6,\"0\")&\" \"&\"rpm\"","v":"最高转速: 3000 rpm"},{"$f":"HLOOKUP($E$1,TAB[],ROW(E41),FALSE)","v":"Max Speed: 3000 rpm"}]
[null,{"$f":"\"自吸最高回転数: \"&TEXT('I spec'!K7,\"0\")&\" \"&\"rpm\"&\" \"&\"@\"&TEXT('I spec'!K4,\"0\")&\"cm3\"","v":"自吸最高回転数: 2400 rpm @80cm3"},{"$f":"\"Self Prime Max: \"&TEXT('I spec'!K7,\"0\")&\" \"&\"rpm\"&\" \"&\"@\"&TEXT('I spec'!K4,\"0\")&\"cm3\"","v":"Self Prime Max: 2400 rpm @80cm3"},{"$f":"\"自吸最高转速 : \"&TEXT('I spec'!K7,\"0\")&\" \"&\"rpm\"&\" \"&\"@\"&TEXT('I spec'!K4,\"0\")&\"cm3\"","v":"自吸最高转速 : 2400 rpm @80cm3"},{"$f":"HLOOKUP($E$1,TAB[],ROW(E42),FALSE)","v":"Self Prime Max: 2400 rpm @80cm3"}]
[null,{"$f":"\"ピーク圧力: \"&TEXT('I spec'!K8,\"0\")&\" \"&\"MPa\"","v":"ピーク圧力: 35 MPa"},{"$f":"\"Peak: \"&TEXT('I spec'!K8,\"0\")&\" \"&\"MPa\"","v":"Peak: 35 MPa"},{"$f":"\"峰值压力: \"&TEXT('I spec'!K8,\"0\")&\" \"&\"MPa\"","v":"峰值压力: 35 MPa"},{"$f":"HLOOKUP($E$1,TAB[],ROW(E43),FALSE)","v":"Peak: 35 MPa"}]
[null,{"$f":"\"定格圧力: \"&TEXT('I spec'!K9,\"0\")&\" \"&\"MPa\"","v":"定格圧力: 32 MPa"},{"$f":"\"Rated: \"&TEXT('I spec'!K9,\"0\")&\" \"&\"MPa\"","v":"Rated: 32 MPa"},{"$f":"\"额定压力: \"&TEXT('I spec'!K9,\"0\")&\" \"&\"MPa\"","v":"额定压力: 32 MPa"},{"$f":"HLOOKUP($E$1,TAB[],ROW(E44),FALSE)","v":"Rated: 32 MPa"}]
[null,{"$f":"\"ロードセンシング差圧設定: 1.5 MPa (標準)\"&CHAR(10)&\"(調整範囲 = [標準]1.0 - 3.0 MPa 、[高設定]1.5 - 4.0 MPa)\"","v":"ロードセンシング差圧設定: 1.5 MPa (標準)\n(調整範囲 = [標準]1.0 - 3.0 MPa 、[高設定]1.5 - 4.0 MPa)"},{"$f":"\"Load Sensing Diff. Pressure: 1.5 MPa (STD)\"&CHAR(10)&\"(Range = [STD] 1.0 - 3.0 MPa, [HIGH] 1.5 - 4.0 MPa)\"","v":"Load Sensing Diff. Pressure: 1.5 MPa (STD)\n(Range = [STD] 1.0 - 3.0 MPa, [HIGH] 1.5 - 4.0 MPa)"},{"$f":"\"负载传感压差设定: 1.5 MPa (标准)\"&CHAR(10)&\"(调整范围 = [标准] 1.0 - 3.0 MPa、[高的] 1.5 - 4.0 MPa)\"","v":"负载传感压差设定: 1.5 MPa (标准)\n(调整范围 = [标准] 1.0 - 3.0 MPa、[高的] 1.5 - 4.0 MPa)"},{"$f":"HLOOKUP($E$1,TAB[],ROW(E45),FALSE)","v":"Load Sensing Diff. Pressure: 1.5 MPa (STD)\n(Range = [STD] 1.0 - 3.0 MPa, [HIGH] 1.5 - 4.0 MPa)"}]
[null,"公差: +0.3/-0.2 MPa (標準)","Tolerance: +0.3/-0.2 MPa (STD)","公差：+0.3/-0.2 MPa (标准)",{"$f":"HLOOKUP($E$1,TAB[],ROW(E46),FALSE)","v":"Tolerance: +0.3/-0.2 MPa (STD)"}]
[null,{"$f":"\"圧力カットオフ: 32 MPa (標準)\"&CHAR(10)&\"(調整範囲 = 5.0 - 35.0 MPa)\"","v":"圧力カットオフ: 32 MPa (標準)\n(調整範囲 = 5.0 - 35.0 MPa)"},{"$f":"\"Pressure Cut-Off: 32 MPa (STD)\"&CHAR(10)&\"(Adjustable Range = 5.0 - 35.0 MPa)\"","v":"Pressure Cut-Off: 32 MPa (STD)\n(Adjustable Range = 5.0 - 35.0 MPa)"},{"$f":"\"压力截断: 32 MPa (标准)\"&CHAR(10)&\"(调整范围 = 5.0 - 35.0 MPa)\"","v":"压力截断: 32 MPa (标准)\n(调整范围 = 5.0 - 35.0 MPa)"},{"$f":"HLOOKUP($E$1,TAB[],ROW(E47),FALSE)","v":"Pressure Cut-Off: 32 MPa (STD)\n(Adjustable Range = 5.0 - 35.0 MPa)"}]
[null,"公差: +0/-1.5 MPa (標準)","Tolerance: +0/-1.5 MPa (STD)","公差：+0/-1.5 MPa (标准)",{"$f":"HLOOKUP($E$1,TAB[],ROW(E48),FALSE)","v":"Tolerance: +0/-1.5 MPa (STD)"}]
[null,"吸入圧力は最大押しのけ容積で0MPa以上を保持してください。","The suction pressure has to be greater or equal to 0 MPa gauge at Max displacement.","吸入压力在最大排量时, 请保持0MPa以上。",{"$f":"HLOOKUP($E$1,TAB[],ROW(E49),FALSE)","v":"The suction pressure has to be greater or equal to 0 MPa gauge at Max displacement."}]
[null,{"$f":"\"ポンプ (スルードライブ含) トルク: \"&\" \"&TEXT('M spec'!L45,\"0\")&\" \"&\"Nm\"&\"\"","v":"ポンプ (スルードライブ含) トルク:  430 Nm"},{"$f":"\"Pump (incl. T/D) Torque: \"&TEXT('M spec'!L45,\"0\")&\" \"&\"Nm\"&\"\"","v":"Pump (incl. T/D) Torque: 430 Nm"},{"$f":"\"泵 (包括贯通式驱动)转矩: \"&TEXT('M spec'!L45,\"0\")&\" \"&\"Nm\"&\"\"","v":"泵 (包括贯通式驱动)转矩: 430 Nm"},{"$f":"HLOOKUP($E$1,TAB[],ROW(E50),FALSE)","v":"Pump (incl. T/D) Torque: 430 Nm"}]
[null,{"$f":"\"スルードライブポンプトルク: \"&\" \"&TEXT('M spec'!L53,\"0\")&\" \"&\"Nm\"","v":"スルードライブポンプトルク:  123 Nm"},{"$f":"\"Through Drive Pump Torque: \"&TEXT('M spec'!L53,\"0\")&\" \"&\"Nm\"","v":"Through Drive Pump Torque: 123 Nm"},{"$f":"\"贯通式驱动泵转矩: \"&TEXT('M spec'!L53,\"0\")&\" \"&\"Nm\"","v":"贯通式驱动泵转矩: 123 Nm"},{"$f":"HLOOKUP($E$1,TAB[],ROW(E51),FALSE)","v":"Through Drive Pump Torque: 123 Nm"}]
[null,{"$f":"\"ポンプ (スルードライブ含) トルク: \"&\" \"&TEXT('I spec'!L35,\"0\")&\" \"&\"Nm\"&\"\"","v":"ポンプ (スルードライブ含) トルク:  430 Nm"},{"$f":"\"Pump (incl. T/D) Torque: \"&TEXT('I spec'!L35,\"0\")&\" \"&\"Nm\"&\"\"","v":"Pump (incl. T/D) Torque: 430 Nm"},{"$f":"\"泵 (包括贯通式驱动)转矩: \"&TEXT('I spec'!L35,\"0\")&\" \"&\"Nm\"&\"\"","v":"泵 (包括贯通式驱动)转矩: 430 Nm"},{"$f":"HLOOKUP($E$1,TAB[],ROW(E52),FALSE)","v":"Pump (incl. T/D) Torque: 430 Nm"}]
[null,{"$f":"\"スルードライブポンプトルク: \"&\" \"&TEXT('I spec'!L43,\"0\")&\" \"&\"Nm\"","v":"スルードライブポンプトルク:  - Nm"},{"$f":"\"Through Drive Pump Torque: \"&TEXT('I spec'!L43,\"0\")&\" \"&\"Nm\"","v":"Through Drive Pump Torque: - Nm"},{"$f":"\"贯通式驱动泵转矩: \"&TEXT('I spec'!L43,\"0\")&\" \"&\"Nm\"","v":"贯通式驱动泵转矩: - Nm"},{"$f":"HLOOKUP($E$1,TAB[],ROW(E53),FALSE)","v":"Through Drive Pump Torque: - Nm"}]
[null,"常用: 0.1 MPa","Continuous: 0.1 MPa","常用：0.1 MPa",{"$f":"HLOOKUP($E$1,TAB[],ROW(E54),FALSE)","v":"Continuous: 0.1 MPa"}]
[null,"ピーク: 0.4 MPa","Peak: 0.4 MPa","峰值: 0.4 MPa",{"$f":"HLOOKUP($E$1,TAB[],ROW(E55),FALSE)","v":"Peak: 0.4 MPa"}]
[null,"ISO VG46相当","Equivalent to ISO VG46","相当于ISO VG46",{"$f":"HLOOKUP($E$1,TAB[],ROW(E56),FALSE)","v":"Equivalent to ISO VG46"}]
[null,"10 ～ 1,000 cSt","10 ～ 1,000 cSt","10 ～ 1,000 cSt",{"$f":"HLOOKUP($E$1,TAB[],ROW(E57),FALSE)","v":"10 ～ 1,000 cSt"}]
[null,"KHI 標準 (サプライヤ名、型式コード、シリアルナンバー)","KHI Standard (Supplier Name, Model Code and S/N)","KHI标准(供应商名称、型号代码、序列号)",{"$f":"HLOOKUP($E$1,TAB[],ROW(E58),FALSE)","v":"KHI Standard (Supplier Name, Model Code and S/N)"}]
[null,"KHI 標準 (下塗り赤)","KHI Standard (Act Primer Red Brown)","KHI标准 (红褐色)",{"$f":"HLOOKUP($E$1,TAB[],ROW(E59),FALSE)","v":"KHI Standard (Act Primer Red Brown)"}]
[null,"元ポンプ型式が分かる場合は、参考のために記入してください。","If the model of original pump can be found, please write down for a reference.","如果知道原泵型号的话, 请填写以供参考。",{"$f":"HLOOKUP($E$1,TAB[],ROW(E60),FALSE)","v":"If the model of original pump can be found, please write down for a reference."}]
[null,"顧客仕様","Customer Specifications","客户规格",{"$f":"HLOOKUP($E$1,TAB[],ROW(E61),FALSE)","v":"Customer Specifications"}]
[null,"最大:","Max:","最大:",{"$f":"HLOOKUP($E$1,TAB[],ROW(E62),FALSE)","v":"Max:"}]
[null,"最高:","Max:","最高:",{"$f":"HLOOKUP($E$1,TAB[],ROW(E63),FALSE)","v":"Max:"}]
[null,"定格:","Rated:","额定:",{"$f":"HLOOKUP($E$1,TAB[],ROW(E64),FALSE)","v":"Rated:"}]
[null,"ピーク:","Peak:","峰值:",{"$f":"HLOOKUP($E$1,TAB[],ROW(E65),FALSE)","v":"Peak:"}]
[null,"定格:","Rated:","额定:",{"$f":"HLOOKUP($E$1,TAB[],ROW(E66),FALSE)","v":"Rated:"}]
[null,"公差:","Tol:","公差:",{"$f":"HLOOKUP($E$1,TAB[],ROW(E67),FALSE)","v":"Tol:"}]
[null,"公差:","Tol:","公差:",{"$f":"HLOOKUP($E$1,TAB[],ROW(E68),FALSE)","v":"Tol:"}]
[null,"油温:","Temp:","油温:",{"$f":"HLOOKUP($E$1,TAB[],ROW(E69),FALSE)","v":"Temp:"}]
[null,"ポンプ:","Pump:","泵:",{"$f":"HLOOKUP($E$1,TAB[],ROW(E70),FALSE)","v":"Pump:"}]
[null,"T/D:","T/D:","T/D:",{"$f":"HLOOKUP($E$1,TAB[],ROW(E71),FALSE)","v":"T/D:"}]
[null,"常用:","Cont:","常时:",{"$f":"HLOOKUP($E$1,TAB[],ROW(E72),FALSE)","v":"Cont:"}]
[null,"ピーク:","Peak:","峰值时:",{"$f":"HLOOKUP($E$1,TAB[],ROW(E73),FALSE)","v":"Peak:"}]
[null,"下塗り赤","Act Primer Red Brown","红底漆",{"$f":"HLOOKUP($E$1,TAB[],ROW(E74),FALSE)","v":"Act Primer Red Brown"}]
[null,"ネオロングレイ","Neoron Gray","Neoron 灰色",{"$f":"HLOOKUP($E$1,TAB[],ROW(E75),FALSE)","v":"Neoron Gray"}]
[null,"ネオロンレッド",{"$f":"\"Neoron Red\"","v":"Neoron Red"},"Neoron 红色",{"$f":"HLOOKUP($E$1,TAB[],ROW(E76),FALSE)","v":"Neoron Red"}]
[null,"イエロープライマー",{"$f":"\"Yellow Primer\"","v":"Yellow Primer"},"黄色底漆",{"$f":"HLOOKUP($E$1,TAB[],ROW(E77),FALSE)","v":"Yellow Primer"}]
[null,"チャコールグレイ","Industrial Charcoal Gray","深灰色",{"$f":"HLOOKUP($E$1,TAB[],ROW(E78),FALSE)","v":"Industrial Charcoal Gray"}]
[null,"顧客要求色","Customer's Specific Color","客户需求色",{"$f":"HLOOKUP($E$1,TAB[],ROW(E79),FALSE)","v":"Customer's Specific Color"}]
[null,"ベッカーズブラック (KPM(UK) 製のみ)","Beckers Black (KPM(UK) products only)","Beckers Black (仅限 KPM(UK) 产品)",{"$f":"HLOOKUP($E$1,TAB[],ROW(E80),FALSE)","v":"Beckers Black (KPM(UK) products only)"}]
[null,"ベッカーズグレイ (KPM(UK) 製のみ)","Beckers Grey (KPM(UK) products only)","Beckers Grey (仅限 KPM(UK) 产品)",{"$f":"HLOOKUP($E$1,TAB[],ROW(E81),FALSE)","v":"Beckers Grey (KPM(UK) products only)"}]
[null,"数量:","Qty's:","数量:",{"$f":"HLOOKUP($E$1,TAB[],ROW(E82),FALSE)","v":"Qty's:"}]
[null,"数量:","Qty's:","数量:",{"$f":"HLOOKUP($E$1,TAB[],ROW(E83),FALSE)","v":"Qty's:"}]
[null,"pcs/年","pcs/y","pcs/年",{"$f":"HLOOKUP($E$1,TAB[],ROW(E84),FALSE)","v":"pcs/y"}]
[null,"納期:","Date:","日期:",{"$f":"HLOOKUP($E$1,TAB[],ROW(E85),FALSE)","v":"Date:"}]
[null,"開始日:","Date:","日期:",{"$f":"HLOOKUP($E$1,TAB[],ROW(E86),FALSE)","v":"Date:"}]
[null,"注記 (その他ご要求仕様)","Comments (Other requirements)","备注 (其他要求规格)",{"$f":"HLOOKUP($E$1,TAB[],ROW(E87),FALSE)","v":"Comments (Other requirements)"}]
[null,"使用条件と負荷デューティー (詳細を記入してください)","Operating condition, Duty cycle etc. (Describe your detail)","使用条件和负载工作状态 (请提供详细信息)",{"$f":"HLOOKUP($E$1,TAB[],ROW(E88),FALSE)","v":"Operating condition, Duty cycle etc. (Describe your detail)"}]
[null,"項目","Items","項目",{"$f":"HLOOKUP($E$1,TAB[],ROW(E89),FALSE)","v":"Items"}]
[null,"No.","No.","No.",{"$f":"HLOOKUP($E$1,TAB[],ROW(E90),FALSE)","v":"No."}]
[null,"標準仕様","Standard Specifications","标准规格",{"$f":"HLOOKUP($E$1,TAB[],ROW(E91),FALSE)","v":"Standard Specifications"}]
[null,"コード","Code","代码",{"$f":"HLOOKUP($E$1,TAB[],ROW(E92),FALSE)","v":"Code"}]
[null,"備考","Note","评论",{"$f":"HLOOKUP($E$1,TAB[],ROW(E93),FALSE)","v":"Note"}]
[null,"ポンプサイズ","Pump Size","泵排量",{"$f":"HLOOKUP($E$1,TAB[],ROW(E94),FALSE)","v":"Pump Size"}]
[null,"デザインシリーズ","Design Series","设计系列",{"$f":"HLOOKUP($E$1,TAB[],ROW(E95),FALSE)","v":"Design Series"}]
[null,"作動油種類","Hydraulic Fluid Type","工作油种类",{"$f":"HLOOKUP($E$1,TAB[],ROW(E96),FALSE)","v":"Hydraulic Fluid Type"}]
[null,"シリーズの仕様","Series Type Code","系列的规格",{"$f":"HLOOKUP($E$1,TAB[],ROW(E97),FALSE)","v":"Series Type Code"}]
[null,"スルードライブとポート位置","Through Drive and Porting","贯通式驱动与油口位置",{"$f":"HLOOKUP($E$1,TAB[],ROW(E98),FALSE)","v":"Through Drive and Porting"}]
[null,"回転方向","Direction of Rotation","旋转方向",{"$f":"HLOOKUP($E$1,TAB[],ROW(E99),FALSE)","v":"Direction of Rotation"}]
[null,"取合いと軸端形状","Mounting Flange and Shaft","配合与轴端形状",{"$f":"HLOOKUP($E$1,TAB[],ROW(E100),FALSE)","v":"Mounting Flange and Shaft"}]
[null,"フランジ / 取付ねじ形状 (吸入、吐出、スルードライブ)","Flange / Mounting Fixing Thread (Suction-Delivery, Through Drive)","法兰盘 /安装螺钉形状 (吸入、排出、贯通式驱动)",{"$f":"HLOOKUP($E$1,TAB[],ROW(E101),FALSE)","v":"Flange / Mounting Fixing Thread (Suction-Delivery, Through Drive)"}]
[null,"レギュレータ種類","Regulator Type","调节器种类",{"$f":"HLOOKUP($E$1,TAB[],ROW(E102),FALSE)","v":"Regulator Type"}]
[null,"アンロード用ソレノイド","Unloader Solenoid","卸荷用电磁铁",{"$f":"HLOOKUP($E$1,TAB[],ROW(E103),FALSE)","v":"Unloader Solenoid"}]
[null,"制御方式の追加","Additional Control Options","控制方式的追加",{"$f":"HLOOKUP($E$1,TAB[],ROW(E104),FALSE)","v":"Additional Control Options"}]
[null,"制御方式の追加","Additional Control Options","控制方式的追加",{"$f":"HLOOKUP($E$1,TAB[],ROW(E105),FALSE)","v":"Additional Control Options"}]
[null,"馬力制御＆流量制御","Torque Limiting & Displacement Control","功率控制 ＆ 流量控制",{"$f":"HLOOKUP($E$1,TAB[],ROW(E106),FALSE)","v":"Torque Limiting & Displacement Control"}]
[null,"特別仕様","Special Suffix","特殊规格",{"$f":"HLOOKUP($E$1,TAB[],ROW(E107),FALSE)","v":"Special Suffix"}]
[null,"最大容量","Max displacement","泵最大排量",{"$f":"HLOOKUP($E$1,TAB[],ROW(E108),FALSE)","v":"Max displacement"}]
[null,"定格圧力","Rated Pressure","额定压力",{"$f":"HLOOKUP($E$1,TAB[],ROW(E109),FALSE)","v":"Rated Pressure"}]
[null,"ピーク圧力","Peak Pressure","峰值压力",{"$f":"HLOOKUP($E$1,TAB[],ROW(E110),FALSE)","v":"Peak Pressure"}]
[null,"自吸最高回転数","S-P Max Speed","自吸最高转速",{"$f":"HLOOKUP($E$1,TAB[],ROW(E111),FALSE)","v":"S-P Max Speed"}]
[null,"最高回転数","Max Speed","最高转速",{"$f":"HLOOKUP($E$1,TAB[],ROW(E112),FALSE)","v":"Max Speed"}]
[null,"K3VL200またはK3VL200Hでは※1 - 定格圧力：35MPa、ピーク圧力：39.2MPa、※2 - 最高回転数：2,200rpm(K3VL200のみ)への仕様アップが可能です。必要があれば当社までご相談ください。","With K3VL200 or K3VL200H,  the specification can be uprated ※1 - \"Rated Pressure : 35MPa, Peak Pressure :  39.2MPa, ※2 - Max Speed : 2,200rpm (Only K3VL200)\". If necessary, please consult with Kawasaki.","可扩展规格有K3VL200或K3VL200H的 ※1 - 额定压力: 35MPa, 峰值压力: 39.2MPa, ※2 - 最高转速:2,200rpm (仅K3VL200) 。如有需要, 请与本公司商谈。",{"$f":"HLOOKUP($E$1,TAB[],ROW(E113),FALSE)","v":"With K3VL200 or K3VL200H,  the specification can be uprated ※1 - \"Rated Pressure : 35MPa, Peak Pressure :  39.2MPa, ※2 - Max Speed : 2,200rpm (Only K3VL200)\". If necessary, please consult with Kawasaki."}]
[null," 鉱物油 (Oリング: ニトリルゴム、 オイルシール: フッ素ゴム)"," Mineral Oil (Orings: Nitrile rubber, Shaft Seal: Fluoro rubber)"," 矿物油 (O形密封圈： 丁腈橡胶、  油封： 氟橡胶)",{"$f":"HLOOKUP($E$1,TAB[],ROW(E114),FALSE)","v":" Mineral Oil (Orings: Nitrile rubber, Shaft Seal: Fluoro rubber)"}]
[null," 全てバイトン (Oリング: フッ素ゴム、 オイルシール: フッ素ゴム)"," Viton Seal Throughout (Orings: Fluoro rubber, Shaft Seal: Fluoro rubber)"," 全部氟化橡胶 (O形密封圈： 氟橡胶、  油封： 氟橡胶)",{"$f":"HLOOKUP($E$1,TAB[],ROW(E115),FALSE)","v":" Viton Seal Throughout (Orings: Fluoro rubber, Shaft Seal: Fluoro rubber)"}]
[null," 水グリコール (Oリング：ニトリルゴム、オイルシール：ニトリルゴム)"," Water Glycol (Orings: Nitrile rubber, Shaft Seal: Nitrile rubber)"," 水-乙二醇 (O形密封圈： 丁腈橡胶、  油封： 丁腈橡胶)",{"$f":"HLOOKUP($E$1,TAB[],ROW(E116),FALSE)","v":" Water Glycol (Orings: Nitrile rubber, Shaft Seal: Nitrile rubber)"}]
[null," 標準"," Standard Type"," 标准",{"$f":"HLOOKUP($E$1,TAB[],ROW(E117),FALSE)","v":" Standard Type"}]
[null," スルードライブ無、サイドポート (右回転のみ)"," w/o Through Drive, Side Ported (Only Clockwise)"," 不带贯通式驱动、侧面油口 (仅限右旋转)",{"$f":"HLOOKUP($E$1,TAB[],ROW(E118),FALSE)","v":" w/o Through Drive, Side Ported (Only Clockwise)"}]
[null," SAE-A 2 ボルト取付、サイドポート"," SAE-A 2 bolt Through Drive, Side Ported"," SAE-A 2 孔安装、侧面油口",{"$f":"HLOOKUP($E$1,TAB[],ROW(E119),FALSE)","v":" SAE-A 2 bolt Through Drive, Side Ported"}]
[null," SAE-B 2 ボルト取付、サイドポート"," SAE-B 2 bolt Through Drive, Side Ported"," SAE-B 2 孔安装、侧面油口",{"$f":"HLOOKUP($E$1,TAB[],ROW(E120),FALSE)","v":" SAE-B 2 bolt Through Drive, Side Ported"}]
[null," SAE-BB 2 ボルト取付、サイドポート"," SAE-BB 2 bolt Through Drive, Side Ported"," SAE-BB 2 孔安装、侧面油口",{"$f":"HLOOKUP($E$1,TAB[],ROW(E121),FALSE)","v":" SAE-BB 2 bolt Through Drive, Side Ported"}]
[null," SAE-C 2 ボルト取付、サイドポート "," SAE-C 2 bolt Through Drive, Side Ported"," SAE-C 2 孔安装、侧面油口",{"$f":"HLOOKUP($E$1,TAB[],ROW(E122),FALSE)","v":" SAE-C 2 bolt Through Drive, Side Ported"}]
[null," SAE-C 4 ボルト取付、サイドポート "," SAE-C 4 bolt Through Drive, Side Ported"," SAE-C 4 孔安装、侧面油口",{"$f":"HLOOKUP($E$1,TAB[],ROW(E123),FALSE)","v":" SAE-C 4 bolt Through Drive, Side Ported"}]
[null," SAE-CC 2 ボルト取付、サイドポート"," SAE-CC 2 bolt Through Drive, Side Ported"," SAE-CC 2 孔安装、侧面油口",{"$f":"HLOOKUP($E$1,TAB[],ROW(E124),FALSE)","v":" SAE-CC 2 bolt Through Drive, Side Ported"}]
[null," SAE-D 4 ボルト取付、サイドポート"," SAE-D 4 bolt Through Drive, Side Ported"," SAE-D 4 孔安装、侧面油口",{"$f":"HLOOKUP($E$1,TAB[],ROW(E125),FALSE)","v":" SAE-D 4 bolt Through Drive, Side Ported"}]
[null," SAE-E 4 ボルト取付、サイドポート"," SAE-E 4 bolt Through Drive, Side Ported"," SAE-E 4 孔安装、侧面油口",{"$f":"HLOOKUP($E$1,TAB[],ROW(E126),FALSE)","v":" SAE-E 4 bolt Through Drive, Side Ported"}]
[null," スルードライブ軸付き、カップリング無、鉄カバーで閉止、サイドポート"," w/ Through Drive Shaft, w/o Coupling, Closed w/ Steel Cover, Side Ported"," 带贯通式驱动轴、不带联轴器、铁罩封闭、侧面油口",{"$f":"HLOOKUP($E$1,TAB[],ROW(E127),FALSE)","v":" w/ Through Drive Shaft, w/o Coupling, Closed w/ Steel Cover, Side Ported"}]
[null," スルードライブ無、リヤポート"," w/o Through Drive, Rear Ported"," 不带贯通式驱动、后面油口",{"$f":"HLOOKUP($E$1,TAB[],ROW(E128),FALSE)","v":" w/o Through Drive, Rear Ported"}]
[null," 右回転"," Clockwise"," 右转",{"$f":"HLOOKUP($E$1,TAB[],ROW(E129),FALSE)","v":" Clockwise"}]
[null," 左回転"," Counterclockwise"," 左转",{"$f":"HLOOKUP($E$1,TAB[],ROW(E130),FALSE)","v":" Counterclockwise"}]
[null," SAE-* マウント & SAE-* キー軸"," SAE-* Mount & SAE-* Keyed Shaft"," SAE-* 安装法兰和 & SAE-* 键轴",{"$f":"HLOOKUP($E$1,TAB[],ROW(E131),FALSE)","v":" SAE-* Mount & SAE-* Keyed Shaft"}]
[null," ISO マウント & ISO キー軸 "," ISO Mount & ISO Keyed Shaft "," ISO 安装法兰和 & ISO 键轴 ",{"$f":"HLOOKUP($E$1,TAB[],ROW(E132),FALSE)","v":" ISO Mount & ISO Keyed Shaft "}]
[null," SAE-* マウント & SAE-* スプライン軸"," SAE-* Mount & SAE-* Spline Shaft"," SAE-* 安装法兰和 & SAE-* 花键轴",{"$f":"HLOOKUP($E$1,TAB[],ROW(E133),FALSE)","v":" SAE-* Mount & SAE-* Spline Shaft"}]
[null," SAE-* マウント & SAE-* スプライン軸 (K3VL112/140 : 4 ボルト D & C)"," SAE-* Mount & SAE-* Spline Shaft (K3VL112/140 : 4 bolt D & C)"," SAE-* 安装法兰和 & SAE-* 花键轴 (K3VL112/140： 4 螺栓 D & C)",{"$f":"HLOOKUP($E$1,TAB[],ROW(E134),FALSE)","v":" SAE-* Mount & SAE-* Spline Shaft (K3VL112/140 : 4 bolt D & C)"}]
[null," SAE-* マウント & SAE-* スプライン軸 (K3VL112/140 : 2 ボルト C & C)"," SAE-* Mount & SAE-* Spline Shaft (K3VL112/140 : 2 bolt C & C)"," SAE-* 安装法兰和 & SAE-* 花键轴 (K3VL112/140： 2 螺栓 C & C)",{"$f":"HLOOKUP($E$1,TAB[],ROW(E135),FALSE)","v":" SAE-* Mount & SAE-* Spline Shaft (K3VL112/140 : 2 bolt C & C)"}]
[null," SAE-* マウント & SAE-* キー軸 (K3VL112/140 : 2 ボルト C & C) "," SAE-* Mount & SAE-* Keyed Shaft (K3VL112/140 : 2 bolt C & C) "," SAE-* 安装法兰和 & SAE-* 键轴 (K3VL112/140： 2 螺栓 C & C) ",{"$f":"HLOOKUP($E$1,TAB[],ROW(E136),FALSE)","v":" SAE-* Mount & SAE-* Keyed Shaft (K3VL112/140 : 2 bolt C & C) "}]
[null," SAE-* マウント & SAE-* スプライン軸 (K3VL112/140 : 2 ボルト C & CC) "," SAE-* Mount & SAE-* Spline Shaft (K3VL112/140 : 2 bolt C & CC) "," SAE-* 安装法兰和 & SAE-* 花键轴 (K3VL112/140： 2 螺栓 C & CC) ",{"$f":"HLOOKUP($E$1,TAB[],ROW(E137),FALSE)","v":" SAE-* Mount & SAE-* Spline Shaft (K3VL112/140 : 2 bolt C & CC) "}]
[null," SAE-* マウント & SAE-* キー軸 (K3VL112/140 : 2 ボルト C & CC) "," SAE-* Mount & SAE-* Keyed Shaft (K3VL112/140 : 2 bolt C & CC) "," SAE-* 安装法兰和 & SAE-* 键轴 (K3VL112/140： 2 螺栓 C & CC) ",{"$f":"HLOOKUP($E$1,TAB[],ROW(E138),FALSE)","v":" SAE-* Mount & SAE-* Keyed Shaft (K3VL112/140 : 2 bolt C & CC) "}]
[null," SAE-* マウント & SAE-* スプライン軸 (K3VL200 : 4 ボルト E & F)"," SAE-* Mount & SAE-* Spline Shaft (K3VL200 : 4 bolt E & F)"," SAE-* 安装法兰和 & SAE-* 花键轴 (K3VL200： 4 螺栓 E & F)",{"$f":"HLOOKUP($E$1,TAB[],ROW(E139),FALSE)","v":" SAE-* Mount & SAE-* Spline Shaft (K3VL200 : 4 bolt E & F)"}]
[null," SAE-* マウント & SAE-* スプライン軸 (K3VL45 : 2 ボルト B & B, K3VL112/140 : 4 ボルト D & CC)"," SAE-* Mount & SAE-* Spline Shaft (K3VL45 : 2 bolt B & B, K3VL112/140 : 4 bolt D & CC)"," SAE-* 安装法兰和 & SAE-* 花键轴 (K3VL45： 2 螺栓 B & B, K3VL112/140： 4 螺栓 D & CC)",{"$f":"HLOOKUP($E$1,TAB[],ROW(E140),FALSE)","v":" SAE-* Mount & SAE-* Spline Shaft (K3VL45 : 2 bolt B & B, K3VL112/140 : 4 bolt D & CC)"}]
[null," SAE-* マウント & JIS キー軸 (ドレンポート Gネジ変換アダプタ付)"," SAE-* Mount & JIS Keyed Shaft (Drain port with G thread adapter)"," SAE-* 安装法兰 & JIS 键轴 (泄漏油油口 带G螺纹转换接头)",{"$f":"HLOOKUP($E$1,TAB[],ROW(E141),FALSE)","v":" SAE-* Mount & JIS Keyed Shaft (Drain port with G thread adapter)"}]
[null," SAE-* マウント & SAE-* スプライン軸 (ドレンポート Gネジ変換アダプタ付)"," SAE-* Mount & SAE-* Spline Shaft (Drain port with G thread adapter)"," SAE-* 安装法兰 & SAE-* 花键轴 (泄漏油油口 带G螺纹转换接头))",{"$f":"HLOOKUP($E$1,TAB[],ROW(E142),FALSE)","v":" SAE-* Mount & SAE-* Spline Shaft (Drain port with G thread adapter)"}]
[null,"吸入/吐出フランジねじ","Flange Thread Suction-Delivery","吸入/排出法兰盘螺钉",{"$f":"HLOOKUP($E$1,TAB[],ROW(E143),FALSE)","v":"Flange Thread Suction-Delivery"}]
[null," Mねじ"," Metric "," M螺纹",{"$f":"HLOOKUP($E$1,TAB[],ROW(E144),FALSE)","v":" Metric "}]
[null," ユニファイねじ"," Unified"," 统一协定螺纹",{"$f":"HLOOKUP($E$1,TAB[],ROW(E145),FALSE)","v":" Unified"}]
[null,"スルードライブ取付ねじ","Mounting Thread Through Drive","贯通式驱动安装螺钉",{"$f":"HLOOKUP($E$1,TAB[],ROW(E146),FALSE)","v":"Mounting Thread Through Drive"}]
[null," Mねじ"," Metric"," M螺纹",{"$f":"HLOOKUP($E$1,TAB[],ROW(E147),FALSE)","v":" Metric"}]
[null," Mねじ"," Metric"," M螺纹",{"$f":"HLOOKUP($E$1,TAB[],ROW(E148),FALSE)","v":" Metric"}]
[null,"ロードセンシング","Load Sense","负载传感",{"$f":"HLOOKUP($E$1,TAB[],ROW(E149),FALSE)","v":"Load Sense"}]
[null," 有 (ブリードオフオリフィス有)"," with (with Bleed‐Off Orifice)"," 有 (带旁路节流)",{"$f":"HLOOKUP($E$1,TAB[],ROW(E150),FALSE)","v":" with (with Bleed‐Off Orifice)"}]
[null," 有 (ブリードオフオリフィス無)"," with (without Bleed‐Off Orifice)"," 有 (不带旁路节流)",{"$f":"HLOOKUP($E$1,TAB[],ROW(E151),FALSE)","v":" with (without Bleed‐Off Orifice)"}]
[null," 有 (ブリードオフオリフィス無)"," with (without Bleed‐Off Orifice)"," 有 (不带旁路节流)",{"$f":"HLOOKUP($E$1,TAB[],ROW(E152),FALSE)","v":" with (without Bleed‐Off Orifice)"}]
[null," 有 (ブリードオフオリフィス無)"," with (without Bleed‐Off Orifice)"," 有 (不带旁路节流)",{"$f":"HLOOKUP($E$1,TAB[],ROW(E153),FALSE)","v":" with (without Bleed‐Off Orifice)"}]
[null," 有 (ブリードオフオリフィス無)"," with (without Bleed‐Off Orifice)"," 有 (不带旁路节流)",{"$f":"HLOOKUP($E$1,TAB[],ROW(E154),FALSE)","v":" with (without Bleed‐Off Orifice)"}]
[null," 有 (ブリードオフオリフィス無)"," with (without Bleed‐Off Orifice)"," 有 (不带旁路节流)",{"$f":"HLOOKUP($E$1,TAB[],ROW(E155),FALSE)","v":" with (without Bleed‐Off Orifice)"}]
[null," 無"," without"," 无",{"$f":"HLOOKUP($E$1,TAB[],ROW(E156),FALSE)","v":" without"}]
[null," 無"," without"," 无",{"$f":"HLOOKUP($E$1,TAB[],ROW(E157),FALSE)","v":" without"}]
[null," 無"," without"," 无",{"$f":"HLOOKUP($E$1,TAB[],ROW(E158),FALSE)","v":" without"}]
[null," 無"," without"," 无",{"$f":"HLOOKUP($E$1,TAB[],ROW(E159),FALSE)","v":" without"}]
[null," 無"," without"," 无",{"$f":"HLOOKUP($E$1,TAB[],ROW(E160),FALSE)","v":" without"}]
[null," 無"," without"," 无",{"$f":"HLOOKUP($E$1,TAB[],ROW(E161),FALSE)","v":" without"}]
[null,"圧力カットオフ","Pressure Cut-Off","压力截断",{"$f":"HLOOKUP($E$1,TAB[],ROW(E162),FALSE)","v":"Pressure Cut-Off"}]
[null," 有"," with"," 有",{"$f":"HLOOKUP($E$1,TAB[],ROW(E163),FALSE)","v":" with"}]
[null," 有"," with"," 有",{"$f":"HLOOKUP($E$1,TAB[],ROW(E164),FALSE)","v":" with"}]
[null," 有 + アンロード制御 (ソレノイド電源OFF時に最小傾転)"," with + Unloading Control (Min disp. at OFF)"," 有 + 卸荷控制 (电磁铁电源OFF时, 最小倾角)",{"$f":"HLOOKUP($E$1,TAB[],ROW(E165),FALSE)","v":" with + Unloading Control (Min disp. at OFF)"}]
[null," 有 + アンロード制御 (ソレノイド電源ON時に最小傾転)"," with + Unloading Control (Min disp. at ON)"," 有 + 卸荷控制 (电磁铁电源ON时, 最小倾角)",{"$f":"HLOOKUP($E$1,TAB[],ROW(E166),FALSE)","v":" with + Unloading Control (Min disp. at ON)"}]
[null," 有 + リモートコントロール (正比例制御)"," with + Remote Control (Prop. Control)"," 有 + 远程控制 (正比例控制)",{"$f":"HLOOKUP($E$1,TAB[],ROW(E167),FALSE)","v":" with + Remote Control (Prop. Control)"}]
[null," 有 + リモートコントロール (正比例制御)"," with + Remote Control (Prop. Control)"," 有 + 远程控制 (正比例控制)",{"$f":"HLOOKUP($E$1,TAB[],ROW(E168),FALSE)","v":" with + Remote Control (Prop. Control)"}]
[null," 有"," with"," 有",{"$f":"HLOOKUP($E$1,TAB[],ROW(E169),FALSE)","v":" with"}]
[null," 有 + アンロード制御 (ソレノイド電源OFF時に最小傾転)"," with + Unloading Control (Min disp. at OFF)"," 有 + 卸荷控制 (电磁铁电源OFF时, 最小倾角)",{"$f":"HLOOKUP($E$1,TAB[],ROW(E170),FALSE)","v":" with + Unloading Control (Min disp. at OFF)"}]
[null," 有 + アンロード制御 (ソレノイド電源ON時に最小傾転)"," with + Unloading Control (Min disp. at ON)"," 有 + 卸荷控制 (电磁铁电源ON时, 最小倾角)",{"$f":"HLOOKUP($E$1,TAB[],ROW(E171),FALSE)","v":" with + Unloading Control (Min disp. at ON)"}]
[null," 有 + リモートコントロール (正比例制御)"," with + Remote Control (Prop. Control)"," 有 + 远程控制 (正比例控制)",{"$f":"HLOOKUP($E$1,TAB[],ROW(E172),FALSE)","v":" with + Remote Control (Prop. Control)"}]
[null," 有 + リモートコントロール (正比例制御)"," with + Remote Control (Prop. Control)"," 有 + 远程控制 (正比例控制)",{"$f":"HLOOKUP($E$1,TAB[],ROW(E173),FALSE)","v":" with + Remote Control (Prop. Control)"}]
[null," 有 + リモートコントロール (逆比例制御)"," with + Remote Control (Inv. Prop. Control)"," 有 + 远程控制 (反比例控制)",{"$f":"HLOOKUP($E$1,TAB[],ROW(E174),FALSE)","v":" with + Remote Control (Inv. Prop. Control)"}]
[null," [10]でPN/PM/LN/LM/PV2/LV2以外を選択した場合"," In case except PN/PM/LN/LM/PV2/LV2 is chosen at [10]"," 在[10]中选择了非PN/PM/LN/LM/PV2/LV2时",{"$f":"HLOOKUP($E$1,TAB[],ROW(E175),FALSE)","v":" In case except PN/PM/LN/LM/PV2/LV2 is chosen at [10]"}]
[null," [10]でLN/PN以外を選択した場合"," In case except LN/PN is chosen at [10]"," 在[10]中选择了非LN/PN时",{"$f":"HLOOKUP($E$1,TAB[],ROW(E176),FALSE)","v":" In case except LN/PN is chosen at [10]"}]
[null," 115V AC, 50, 60 Hz - DIN 43550 プラグ"," 115V AC, 50, 60 Hz - DIN 43550 Plug"," 115V AC, 50, 60 Hz - DIN 43550 插头",{"$f":"HLOOKUP($E$1,TAB[],ROW(E177),FALSE)","v":" 115V AC, 50, 60 Hz - DIN 43550 Plug"}]
[null," 230V AC, 50, 60 Hz - DIN 43550 プラグ"," 230V AC, 50, 60 Hz - DIN 43550 Plug"," 230V AC, 50, 60 Hz - DIN 43550 插头",{"$f":"HLOOKUP($E$1,TAB[],ROW(E178),FALSE)","v":" 230V AC, 50, 60 Hz - DIN 43550 Plug"}]
[null," 12V DC - DIN 43550 プラグ"," 12V DC - DIN 43550 Plug"," 12V DC - DIN 43550 插头",{"$f":"HLOOKUP($E$1,TAB[],ROW(E179),FALSE)","v":" 12V DC - DIN 43550 Plug"}]
[null," 24V DC - DIN 43550 プラグ"," 24V DC - DIN 43550 Plug"," 24 VDC-DIN43550 插头",{"$f":"HLOOKUP($E$1,TAB[],ROW(E180),FALSE)","v":" 24V DC - DIN 43550 Plug"}]
[null," [10]で PV2/LV2 以外を選択した場合"," In case except PV2/LV2 is chosen at [10]"," 在[10]中选择了非PV2/LV2 时",{"$f":"HLOOKUP($E$1,TAB[],ROW(E181),FALSE)","v":" In case except PV2/LV2 is chosen at [10]"}]
[null," Deutsch コネクタ"," With Deutsch Connector"," Deutsch 连接器",{"$f":"HLOOKUP($E$1,TAB[],ROW(E182),FALSE)","v":" With Deutsch Connector"}]
[null," DIN コネクタ"," With DIN Connector"," DIN 连接器",{"$f":"HLOOKUP($E$1,TAB[],ROW(E183),FALSE)","v":" With DIN Connector"}]
[null," 追加の制御無し"," Without Additional Control"," 无追加的控制",{"$f":"HLOOKUP($E$1,TAB[],ROW(E184),FALSE)","v":" Without Additional Control"}]
[null," 馬力制御 or 流量制御"," Torque Limiter (with Provision for Torque Limiter or Displacement Control)"," 功率控制 or 流量控制",{"$f":"HLOOKUP($E$1,TAB[],ROW(E185),FALSE)","v":" Torque Limiter (with Provision for Torque Limiter or Displacement Control)"}]
[null," 馬力制御 & 油圧パワーシフト"," Torque Limiter & Hydraulic Power Shift"," 功率控制 & 液压动力切换",{"$f":"HLOOKUP($E$1,TAB[],ROW(E186),FALSE)","v":" Torque Limiter & Hydraulic Power Shift"}]
[null," 馬力制御 & 電気パワーシフト, 24V DC - Deutsch コネクタ"," Torque Limiter & Electrical Power Shift, 24V DC - Deutsch Connector"," 功率控制 & 电气动力切换, 24V DC - Deutsch Connector",{"$f":"HLOOKUP($E$1,TAB[],ROW(E187),FALSE)","v":" Torque Limiter & Electrical Power Shift, 24V DC - Deutsch Connector"}]
[null," 追加の制御無し"," Without Additional Control"," 无追加的控制",{"$f":"HLOOKUP($E$1,TAB[],ROW(E188),FALSE)","v":" Without Additional Control"}]
[null,"ブランクプレート ([13]で /1 を選択した場合)"," Blanking Plate (In case /1 is chosen at [13])"," 在无油口盖板 ([13]中选择了 /1 时)",{"$f":"HLOOKUP($E$1,TAB[],ROW(E189),FALSE)","v":" Blanking Plate (In case /1 is chosen at [13])"}]
[null," 馬力制御 低設定域 ([13]で /1 を選択した場合)"," Low Setting Range (available for /1 type only)"," 在功率控制 低设定域 ([13]中选择了 /1 时)",{"$f":"HLOOKUP($E$1,TAB[],ROW(E190),FALSE)","v":" Low Setting Range (available for /1 type only)"}]
[null," 馬力制御 低設定域 ([13]で /1 を選択した場合)"," Low Setting Range (available for /1 type only)"," 在功率控制 低设定域 ([13]中选择了 /1 时)",{"$f":"HLOOKUP($E$1,TAB[],ROW(E191),FALSE)","v":" Low Setting Range (available for /1 type only)"}]
[null," 馬力制御 中設定域 ([13]で /1 を選択した場合)"," Medium Setting Range (available for /1 type only)"," 在功率控制 中设定域 ([13]中选择了 /1 时)",{"$f":"HLOOKUP($E$1,TAB[],ROW(E192),FALSE)","v":" Medium Setting Range (available for /1 type only)"}]
[null," 馬力制御 高設定域 ([13]で /1, /2, /3 を選択した場合)"," High Setting Range (available for /1, /2, /3 options)"," 在功率控制 高设定域 ([13]中选择了 /1, /2, /3 时)",{"$f":"HLOOKUP($E$1,TAB[],ROW(E193),FALSE)","v":" High Setting Range (available for /1, /2, /3 options)"}]
[null," 馬力制御 低設定域"," Low Setting Range"," 在功率控制 低设定域",{"$f":"HLOOKUP($E$1,TAB[],ROW(E194),FALSE)","v":" Low Setting Range"}]
[null," 馬力制御 中設定域"," Medium Setting Range"," 在功率控制 中设定域",{"$f":"HLOOKUP($E$1,TAB[],ROW(E195),FALSE)","v":" Medium Setting Range"}]
[null," 馬力制御 高設定域"," High Setting Range"," 在功率控制 高设定域",{"$f":"HLOOKUP($E$1,TAB[],ROW(E196),FALSE)","v":" High Setting Range"}]
[null," 電気流量制御 (パイロット圧力必要) AMP リード線 24V DC"," Electric Displacement Control (Pilot Pres. Required) AMP Flying Lead 24V DC"," 电流量控制 (需要先导压力) AMP导线24V DC",{"$f":"HLOOKUP($E$1,TAB[],ROW(E197),FALSE)","v":" Electric Displacement Control (Pilot Pres. Required) AMP Flying Lead 24V DC"}]
[null," 電気流量制御 (パイロット圧力必要) AMP コネクタ 24V DC"," Electric Displacement Control (Pilot Pres. Required) AMP Moulded 24V DC"," 电流量控制 (需要先导压力) AMP 连接器 24V DC",{"$f":"HLOOKUP($E$1,TAB[],ROW(E198),FALSE)","v":" Electric Displacement Control (Pilot Pres. Required) AMP Moulded 24V DC"}]
[null," 電気流量制御 (パイロット圧力必要) Deutsch コネクタ 24V DC"," Electric Displacement Control (Pilot Pres. Required) Deutsch Moulded 24V DC"," 电流量控制 (需要先导压力) Deutsch 连接器 24V DC",{"$f":"HLOOKUP($E$1,TAB[],ROW(E199),FALSE)","v":" Electric Displacement Control (Pilot Pres. Required) Deutsch Moulded 24V DC"}]
[null," 電気流量制御 (パイロット圧力必要) Deutsch コネクタ 24V DC"," Electric Displacement Control (Pilot Pres. Required) Deutsch Moulded 12V DC"," 电流量控制 (需要先导压力) Deutsch 连接器 24V DC",{"$f":"HLOOKUP($E$1,TAB[],ROW(E200),FALSE)","v":" Electric Displacement Control (Pilot Pres. Required) Deutsch Moulded 12V DC"}]
[null," 油圧流量制御"," Pilot Operated Displacement Control"," 液压流量控制",{"$f":"HLOOKUP($E$1,TAB[],ROW(E201),FALSE)","v":" Pilot Operated Displacement Control"}]
[null," KPMJ 所掌"," Managed by KPMJ"," KPMJ 掌控",{"$f":"HLOOKUP($E$1,TAB[],ROW(E202),FALSE)","v":" Managed by KPMJ"}]
[null," KPM(UK) 所掌"," Managed by KPM(UK)"," KPM(UK) 掌控",{"$f":"HLOOKUP($E$1,TAB[],ROW(E203),FALSE)","v":" Managed by KPM(UK)"}]
[null," ATEXポンプ (爆発性雰囲気での使用) - KPM(UK) 所掌"," ATEX pump (for use in potentially explosive atmosphere) - Managed by KPM(UK)","ATEX泵 (在爆炸性环境中使用) - KPM(UK) 掌控",{"$f":"HLOOKUP($E$1,TAB[],ROW(E204),FALSE)","v":" ATEX pump (for use in potentially explosive atmosphere) - Managed by KPM(UK)"}]
[null,"選択したマウント & 駆動軸","Chosen Mount & Shaft","选择的安装法兰 & 驱动轴",{"$f":"HLOOKUP($E$1,TAB[],ROW(E205),FALSE)","v":"Chosen Mount & Shaft"}]
[null,"マウント ","Mount","安装法兰 ",{"$f":"HLOOKUP($E$1,TAB[],ROW(E206),FALSE)","v":"Mount"}]
[null,"駆動軸 ","Shaft","驱动轴",{"$f":"HLOOKUP($E$1,TAB[],ROW(E207),FALSE)","v":"Shaft"}]
[null,"標準マウント & 駆動軸","Std. Mount & Shaft","标准安装法兰 & 驱动轴",{"$f":"HLOOKUP($E$1,TAB[],ROW(E208),FALSE)","v":"Std. Mount & Shaft"}]
[null,"型式","Model","型号",{"$f":"HLOOKUP($E$1,TAB[],ROW(E209),FALSE)","v":"Model"}]
[null,"マウント","Mount","安装法兰",{"$f":"HLOOKUP($E$1,TAB[],ROW(E210),FALSE)","v":"Mount"}]
[null,"駆動軸","Shaft","驱动轴",{"$f":"HLOOKUP($E$1,TAB[],ROW(E211),FALSE)","v":"Shaft"}]
[null,"2 ボルト SAE-B","2 bolt SAE-B","2 螺栓 SAE-B",{"$f":"HLOOKUP($E$1,TAB[],ROW(E212),FALSE)","v":"2 bolt SAE-B"}]
[null,"2 ボルト SAE-B","2 bolt SAE-B","2 螺栓 SAE-B",{"$f":"HLOOKUP($E$1,TAB[],ROW(E213),FALSE)","v":"2 bolt SAE-B"}]
[null,"2 ボルト SAE-C","2 bolt SAE-C","2 螺栓 SAE-C",{"$f":"HLOOKUP($E$1,TAB[],ROW(E214),FALSE)","v":"2 bolt SAE-C"}]
[null,"4 ボルト SAE-D","4 bolt SAE-D","4 螺栓 SAE-D",{"$f":"HLOOKUP($E$1,TAB[],ROW(E215),FALSE)","v":"4 bolt SAE-D"}]
[null,"4 ボルト SAE-D","4 bolt SAE-D","4 螺栓 SAE-D",{"$f":"HLOOKUP($E$1,TAB[],ROW(E216),FALSE)","v":"4 bolt SAE-D"}]
[null,"4 ボルト SAE-E","4 bolt SAE-E","4 螺栓 SAE-E",{"$f":"HLOOKUP($E$1,TAB[],ROW(E217),FALSE)","v":"4 bolt SAE-E"}]
[null,"馬力制御のトルク設定","Torque Set - Torque Limit","功率控制的扭矩设定",{"$f":"HLOOKUP($E$1,TAB[],ROW(E218),FALSE)","v":"Torque Set - Torque Limit"}]
[null,"パワーシフトのトルク設定","Torque Set - Power Shift","动力切换的扭矩设定",{"$f":"HLOOKUP($E$1,TAB[],ROW(E219),FALSE)","v":"Torque Set - Power Shift"}]
["rev.2","駆動方法","Driving Method","驱动方法",{"$f":"HLOOKUP($E$1,TAB[],ROW(E220),FALSE)","v":"Driving Method"}]
["rev.2","","Confirmation by KPM (UK):","",{"$f":"HLOOKUP($E$1,TAB[],ROW(E221),FALSE)","v":"Confirmation by KPM (UK):"}]

{"sheet":"history","index":5,"n_rows":41,"n_cols":7,"rows_kept":41,"cut":false,"hidden":true,"merged":[]}
[null,"Rev","Date","Who","Request / Correction","Answer","Memo"]
[null,"230811_rev1","23.08.10","S. Jolliffe","Differential Pressure: If a ΔP greater than 2.9MPa is entered, the KPMUK form updates the model code with the “C” heave duty spring option. Could this be coded similar to K3VLS. After selecting the reg, then select either of the below options:","Added adjastable range of C spring. To prevent selecting it without intention, do not add selectable regulator option. If you need the function, needs to update K3VL datasheet.","Update data sheet : Regulator option (C spring, by-pass pate, check valve, etc)"]
[null,"230811_rev1","23.08.10","S. Jolliffe","K3VL200 High Speed: Due to high pressure oil jet at speed above rated additional erosion occurs & the valve cover is updated to include a roll pin. A note was added to contact Kawasaki for review.","Added if 200 or 200H was chosen, a note is displayed at cell AQ7:AT10. To prevent selecting it without intention, I set that the uprated model can not be chosen on the sheet. If you need the function, needs to update K3VL datasheet.","Update data sheet : 200 & 200H uprated model"]
[null,"230811_rev1","23.08.10","S. Jolliffe","K3VL200 & /H High Pressure: Operating pressures up to 35MPa are permitted for this frame size. If torque limit, then standard bearing or if non-torque limiter the front bearing is up rated. A note should be added indicated a max pressure of 35MPa is permitted & to contact Kawasaki.","Added if 200 or 200H was chosen, a note is displayed at cell AQ7:AT10. To prevent selecting it without intention, I set that the uprated model can not be chosen on the sheet. If you need the function, needs to update K3VL datasheet.","Update data sheet : 200 & 200H uprated model"]
[null,"230811_rev1","23.08.10","S. Jolliffe","Why is the K3VL28 not included in the inquiry form? It is in the K3VL catalogue & the current K3VL inquiry form.","Added."]
[null,"230811_rev1","23.08.10","S. Jolliffe"," In the special suffix section, could “ATEX” be added to the drop down as KPMUK only. KPMUK does have a specific catalogue for ATEX options. Also all the electrical options would then need to be grey out. ","Added."]
[null,"230811_rev1","23.08.10","S. Jolliffe","Paint to be updated to include Beckers Grey (KPMUK only)","Added."]
[null,"230811_rev1","23.08.10","S. Jolliffe","On you sheet for the K3VL200/H , the minimum displacement range in cell AE8 is 200-200cc. Should this not be 200-100cc? ","Corrected."]
[null,"230811_rev1","23.08.10","S. Jolliffe","Should the special suffix drop down have a blank option to allow selection of standard product?","Added."]
[null,"230811_rev1","23.08.10","S. Jolliffe","Pressure cut-off range appears to be incorrect for all frame sizes.","Corrected."]
[null,"230811_rev1","23.08.11","杣友","ポンプトルクS27に値入力ができないようです","ロック解除しました。"]
[null,"230811_rev1","23.08.11","杣友","PRRegとT/Lが併用できるようになっておりますが、機能的に併用できなかったと思います。","修正しました。"]
[null,"230811_rev1","23.08.11","杣友","電気PF12VDCのコードが抜けているようです","カタログに記載がないので反映していません。"]
[null,"230811_rev1","23.08.11","杣友","Self prime ****rpm @0cc とありますが0ccとはどういう意味でしょうか","0の箇所にデフォルトの最大容量を入力しました。K3VLは容量を下げた場合の自吸最高回転数の許容値アップはカタログのグラフ参照のため、計算式は削除しました。"]
[null,"230811_rev1","23.08.11","杣友","細かいことですがMax:Up to ** はup to無しでMaxだけでいいかと思いました。あっても通じると思いますが。あとmin-1　はRPMがいいかと。","修正しました。"]
[null,"230811_rev1","23.08.11","杣友","♦マークのEurope USA専用コードは無かったかと思いますので消してもいいかと。","USAでK3VLを受注する際、UK生産になると思いますので◆も選択可でよいと考えています。"]
[null,"230811_rev1","23.08.11","杣友","UKの方も挙げておりますがK3VL28を追加できるといいかと思います。","追加しました。"]
[null,"230811_rev1","23.08.11","杣友","200Hは左回転も対応可能でしたでしょうか。","カタログでは可能となっていますのでカタログの修正が必要です。","カタログアップデート：200H 左回転対応不可"]
[null,"230811_rev1","23.08.11","杣友","200は定格35MPa対応可としてもいいのでは。","200 or 200Hを選択した場合、仕様アップが可能というnoteがAQ7:AT10へ表示されるようにしました。意図せず選択されることを防止するために、仕様アップ版を選択できるようにはしませんでした。いずれにせよ、選択可能にするのであればカタログのアップデートが必要です。","カタログアップデート：200 & 200Hの仕様アップ版"]
[null,"230811_rev1","23.08.11","杣友","200のリアポートは無しとなっていますが対応可では。またcutoffが28MPa STDとなっています。","カタログでは不可となっていますのでカタログの修正が必要です。カットオフは32MPa STDへ修正しました。","カタログアップデート：200 リアポート対応可能"]
[null,"230811_rev1","23.08.15","G. Totman","When selecting “0” type valve cover could rotation “L” option grey out similar to the other options like through drive with frame size, instead of “0” turning red once you have selected rotation “L”. Makes more sense to me to keep looking forward in the code not back? Or a note to say only available in RH or something?","Added a note. And I set that it turns over grey if L is chosen."]
[null,"230811_rev1","23.08.20","藤川","① 塗装：KPM(UK)、KPMJ、是常と使い分ける必要がある。是常で対応できるのは、下塗りとﾈｵﾛﾝｸﾞﾚｰです。","K3VL28, K3VL45を選択した場合、下塗り赤とﾈｵﾛﾝｸﾞﾚｰしか選択できないように制限をかけました。"]
[null,"230811_rev1","23.08.20","藤川","② Stuartが言ってきている下記は、Formには不要と思う。K3VL200&HのHigh Speed、High Pressureに関する箇所、Formを見てKawasaki側が判断すればよい。K3VL28は、Optionが少ないのでいらないと思う。","200 or 200Hを選択した場合、仕様アップが可能というnoteがAQ7:AT10へ表示されるようにしました。意図せず選択されることを防止するために、仕様アップ版を選択できるようにはしませんでした。いずれにせよ、選択可能にするのであればカタログのアップデートが必要です。\nK3VL28はOptionが少ないので掲載を控えていましたが、製造可能なので、こちらにも追加することとします。（製造中止になったのかと誤解されるため）","カタログアップデート：200 & 200Hの仕様アップ版"]
[null,"230811_rev1","23.08.20","藤川","③ 水ｸﾞﾘ：水ｸﾞﾘ仕様は、ﾆｰﾄﾞﾙﾍﾞｱﾘﾝｸﾞが内輪付になりますが、K3VL200にはそのﾍﾞｱﾘﾝｸﾞはありません。45～140とするか？","ｶﾀﾛｸﾞ上で対応可能なのは45～140で、KAWASAKIへ相談となっています。そのままとしておきます。"]
[null,"230811_rev1","23.08.20","藤川","④ 取合いと軸形状：日本のｶﾀﾛｸﾞでは、”H”と”J”が存在する。どうする？産業機器技術部の意見も必要となるのでは？","産業機器技術部（中西さん）に必要ということを確認しました。▲を追加しました。"]
[null,"230811_rev1","23.08.20","藤川","⑤ ”T”の112/140の 4ﾎﾞﾙﾄ　D & CC は、UKのみでしか生産できない特殊品。","◆を追加しました。"]
[null,"230811_rev1","23.08.20","藤川","⑥ PR Regは、Formからなくしたい。今後は、K3VLSで対応とする。","カタログでは可能となっていますのでカタログの修正が必要です。","カタログアップデート：PR Regの廃止"]
[null,"230811_rev1","23.08.20","藤川","⑦ ﾌﾗﾝｼﾞﾀｲﾌﾟの”S””M”：K3VL45を除き、”S”のﾕﾆﾌｧｲﾀｲﾌﾟは、KPM(UK)のみの生産。日本では生産されていない。","◆を追加しました。"]
[null,"230811_rev1","23.08.20","藤川","⑧ ”/3” ： KPM(UK)のｶﾀﾛｸﾞができた当時から指摘しているが、DINﾌﾟﾗｸﾞではない。KPM(UK)の誤記。ﾄﾞｲﾂｺﾈｸﾀです。","修正しました。"]
[null,"230811_rev1","23.08.20","藤川","⑨ ”E1” ： 現状、存在していないので、なくしてもよい。","カタログでは可能となっていますのでカタログの修正が必要です。","カタログアップデート：E1の廃止"]
[null,"230822_rev1","23.08.25","中西","日本生産品以外のコードが記載されている点が、産機用としては活用しにくいように思います。\n国内の産機用途で手配される型式は、ほぼすべてが一般産機用ポンプカタログ（緑のカタログ）に\n記載されているコードに限定されます。それ以外のコードが記載されていると逆に混乱を招く\n可能性があるよう思いました。ですので、産機用としてK3VLSカタログ末尾にあるようなシンプルな形のフォーマットを別途作成する（そうなると入江さんの所掌ではないかもしれませんが）か、モバイル分野の要求元への展開に留めるなどの対応とした方がいいように感じます。否定的な意見で申し訳ないですが、建機/モバイル/産機の多岐用途へ対応しているK3VLは、その用途によって受注方針も違うので、同じフォーマットで全分野に対応というのは中々難しいかもしれません。","モバイルと産機でシートを分け、モバイルはKPMUK製のカタログ、産機の方は緑のカタログでオプションを構成します。"]
[null,"251029_rev2","25.10.29","小倉","馬力制御のトルク設定値がどの型式を選択してもK3VL200の値が出るようになっていたので修正した。"]
[null,"251029_rev2","25.10.29","小倉","K3VL80の標準マウントが存在しない4ボルトになっていたため、2ボルトに変更した。"]
[null,"251029_rev2","25.10.29","小倉","アンロード弁付（PM/PN, LM/LN）の電源ON/OFFの対応関係が逆になっていたので修正した。"]
[null,"251029_rev2","25.10.29","小倉","駆動方法を追加した。"]
[null,"251029_rev2","25.10.29","小倉","K3VL80のスルードライブC4を◆付きにする"]
[null,"251029_rev2","25.11.07","小倉","注記、備考等のフォントサイズデフォルト設定を5→8に変更した。"]
[null,"251029_rev2","25.11.07","小倉","英文のみ、KPM(UK)の承認欄を追加した（KPM(USA)の要望）。"]
[null,"251029_rev2","25.11.07","小倉","ポンプ型式(V10セル)をロックした。"]
[null,"251029_rev2","25.11.07","小倉","文字が切れないようにセルの幅を調整した。"]
[null,"251029_rev2","25.11.07","小倉","回転数の注記を追加した。"]